Workbook

Sheet CAMP PILOTO EVOL
A1: ATUALIZADA EM: 09/12/23 12:44:59 | D1: OK | F1: OK | H1: OK | J1: OK | L1: OK | N1: OK | P1: OK | R1: OK | T1: OK | V1: DIF. LIDER | W1: DIF. 5º | X1: DIF. PRÓXIMO | Y1: OK | AA1: DIF. LIDER | AB1: DIF. 5º | AC1: DIF. PRÓXIMO | AD1: OK | AF1: DIF. LIDER | AG1: DIF. 5º | AH1: DIF. PRÓXIMO | AI1: OK | AK1: DIF. LIDER | AL1: DIF. 5º | AM1: DIF. PRÓXIMO
D2: 1ª etapa | F2: 2ª etapa | H2: 3ª etapa | J2: 4ª etapa | L2: 5ª etapa | N2: 6ª etapa | P2: 7ª etapa | R2: 8ª etapa | T2: 9ª etapa | Y2: 10ª etapa | AD2: 11ª etapa | AI2: 12ª etapa
B4: Nome do (a) Piloto (a) | D4: PILOTO | E4: PONTOS | F4: PILOTO | G4: PONTOS | H4: PILOTO | I4: PONTOS | J4: PILOTO | K4: PONTOS | L4: PILOTO | M4: PONTOS | N4: PILOTO | O4: PONTOS | P4: PILOTO | Q4: PONTOS | R4: PILOTO | S4: PONTOS | T4: PILOTO | U4: PONTOS | Y4: PILOTO | Z4: PONTOS | AD4: PILOTO | AE4: PONTOS | AI4: PILOTO | AJ4: PONTOS
A5: X | B5: Marcelo Augusto | C5: 180 | D5: Marcelo Augusto | E5: 26 | F5: Marcelo Augusto | G5: 38 | H5: Lucas Bessas | I5: 44 | J5: Lucas Bessas | K5: 51 | L5: Lucas Bessas | M5: 69 | N5: Lucas Bessas | O5: 82 | P5: João Lott | Q5: 107 | R5: Marcelo Augusto | S5: 122 | T5: Marcelo Augusto | U5: 138 | V5: - | W5: - | X5: - | Y5: Marcelo Augusto | Z5: 160 | AA5: - | AB5: - | AC5: - | AD5: Marcelo Augusto | AE5: 180 | AF5: - | AG5: - | AH5: - | AI5: Marcelo Augusto | AJ5: 202 | AK5: - | AL5: - | AM5: -
A6: X | B6: Lucas Bessas | C6: 175 | D6: João Lott | E6: 22 | F6: Flávio Lacerda | G6: 36 | H6: Marcelo Augusto | I6: 38 | J6: Matheus Rocha | K6: 44 | L6: João Lott | M6: 61 | N6: João Lott | O6: 81 | P6: Lucas Bessas | Q6: 107 | R6: João Lott | S6: 120 | T6: Lucas Bessas | U6: 133 | V6: =U$5-U6 -> 5 | W6: - | X6: =U5-U6 -> 5 | Y6: Lucas Bessas | Z6: 149 | AA6: =Z$5-Z6 -> 11 | AB6: - | AC6: =Z5-Z6 -> 11 | AD6: Lucas Bessas | AE6: 175 | AF6: =AE$5-AE6 -> 5 | AG6: - | AH6: =AE5-AE6 -> 5 | AI6: Lucas Bessas | AJ6: 190 | AK6: =AJ$5-AJ6 -> 12 | AL6: - | AM6: =AJ5-AJ6 -> 12
A7: X | B7: João Lott | C7: 160 | D7: Henrique Pereira | E7: 20 | F7: João Lott | G7: 36 | H7: João Lott | I7: 36 | J7: Marcelo Augusto | K7: 38 | L7: Matheus Rocha | M7: 59 | N7: Matheus Rocha | O7: 81 | P7: Marcelo Augusto | Q7: 100 | R7: Lucas Bessas | S7: 107 | T7: João Lott | U7: 133 | V7: =U$5-U7 -> 5 | W7: - | X7: =U6-U7 -> 0 | Y7: João Lott | Z7: 147 | AA7: =Z$5-Z7 -> 13 | AB7: - | AC7: =Z6-Z7 -> 2 | AD7: João Lott | AE7: 160 | AF7: =AE$5-AE7 -> 20 | AG7: - | AH7: =AE6-AE7 -> 15 | AI7: João Lott | AJ7: 175 | AK7: =AJ$5-AJ7 -> 27 | AL7: - | AM7: =AJ6-AJ7 -> 15
A8: X | B8: Luciano Macnamarra | C8: 147 | D8: Lucas Bessas | E8: 18 | F8: Lucas Bessas | G8: 36 | H8: Jucimar Vieira | I8: 36 | J8: João Lott | K8: 36 | L8: Marcelo Augusto | M8: 52 | N8: Marcelo Augusto | O8: 78 | P8: Henrique Pereira | Q8: 83 | R8: Henrique Pereira | S8: 103 | T8: Henrique Pereira | U8: 121 | V8: =U$5-U8 -> 17 | W8: - | X8: =U7-U8 -> 12 | Y8: Henrique Pereira | Z8: 139 | AA8: =Z$5-Z8 -> 21 | AB8: - | AC8: =Z7-Z8 -> 8 | AD8: Luciano Macnamarra | AE8: 147 | AF8: =AE$5-AE8 -> 33 | AG8: - | AH8: =AE7-AE8 -> 13 | AI8: Luciano Macnamarra | AJ8: 167 | AK8: =AJ$5-AJ8 -> 35 | AL8: - | AM8: =AJ7-AJ8 -> 8
A9: X | B9: Henrique Pereira | C9: 139 | D9: Gustavo Barros | E9: 16 | F9: Luciano Macnamarra | G9: 29 | H9: Flávio Lacerda | I9: 36 | J9: Jucimar Vieira | K9: 36 | L9: Jucimar Vieira | M9: 49 | N9: Henrique Pereira | O9: 68 | P9: Matheus Rocha | Q9: 81 | R9: Cristiano Cendon | S9: 93 | T9: Cristiano Cendon | U9: 115 | V9: =U$5-U9 -> 23 | W9: - | X9: =U8-U9 -> 6 | Y9: Cristiano Cendon | Z9: 128 | AA9: =Z$5-Z9 -> 32 | AB9: - | AC9: =Z8-Z9 -> 11 | AD9: Henrique Pereira | AE9: 139 | AF9: =AE$5-AE9 -> 41 | AG9: - | AH9: =AE8-AE9 -> 8 | AI9: Henrique Pereira | AJ9: 157 | AK9: =AJ$5-AJ9 -> 45 | AL9: - | AM9: =AJ8-AJ9 -> 10
B10: Raphael Reis | C10: 131 | D10: Henry Douglas | E10: 15 | F10: Jucimar Vieira | G10: 26 | H10: Renato Martins | I10: 33 | J10: Renato Martins | K10: 33 | L10: Henrique Pereira | M10: 48 | N10: Cristiano Cendon | O10: 61 | P10: Luciano Macnamarra | Q10: 77 | R10: Luciano Macnamarra | S10: 93 | T10: Matheus Rocha | U10: 101 | V10: =U$5-U10 -> 37 | W10: =U$9-U10 -> 14 | X10: =U9-U10 -> 14 | Y10: Luciano Macnamarra | Z10: 125 | AA10: =Z$5-Z10 -> 35 | AB10: =Z$9-Z10 -> 3 | AC10: =Z9-Z10 -> 3 | AD10: Raphael Reis | AE10: 131 | AF10: =AE$5-AE10 -> 49 | AG10: =AE$9-AE10 -> 8 | AH10: =AE9-AE10 -> 8 | AI10: Raphael Reis | AJ10: 156 | AK10: =AJ$5-AJ10 -> 46 | AL10: =AJ$9-AJ10 -> 1 | AM10: =AJ9-AJ10 -> 1
B11: Cristiano Cendon | C11: 128 | D11: Flávio Lacerda | E11: 14 | F11: Henrique Pereira | G11: 26 | H11: Luciano Macnamarra | I11: 29 | J11: Luciano Macnamarra | K11: 30 | L11: Cristiano Cendon | M11: 46 | N11: Luciano Macnamarra | O11: 61 | P11: Cristiano Cendon | Q11: 75 | R11: Raphael Reis | S11: 84 | T11: Raphael Reis | U11: 99 | V11: =U$5-U11 -> 39 | W11: =U$9-U11 -> 16 | X11: =U10-U11 -> 2 | Y11: Raphael Reis | Z11: 115 | AA11: =Z$5-Z11 -> 45 | AB11: =Z$9-Z11 -> 13 | AC11: =Z10-Z11 -> 10 | AD11: Cristiano Cendon | AE11: 128 | AF11: =AE$5-AE11 -> 52 | AG11: =AE$9-AE11 -> 11 | AH11: =AE10-AE11 -> 3 | AI11: Cristiano Cendon | AJ11: 141 | AK11: =AJ$5-AJ11 -> 61 | AL11: =AJ$9-AJ11 -> 16 | AM11: =AJ10-AJ11 -> 15
B12: Gijo | C12: 113 | D12: Luciano Macnamarra | E12: 13 | F12: Gustavo Barros | G12: 26 | H12: Henrique Pereira | I12: 26 | J12: Henrique Pereira | K12: 27 | L12: Renato Martins | M12: 45 | N12: Jucimar Vieira | O12: 60 | P12: Jucimar Vieira | Q12: 61 | R12: Matheus Rocha | S12: 81 | T12: Luciano Macnamarra | U12: 99 | V12: =U$5-U12 -> 39 | W12: =U$9-U12 -> 16 | X12: =U11-U12 -> 0 | Y12: Matheus Rocha | Z12: 113 | AA12: =Z$5-Z12 -> 47 | AB12: =Z$9-Z12 -> 15 | AC12: =Z11-Z12 -> 2 | AD12: Matheus Rocha | AE12: 113 | AF12: =AE$5-AE12 -> 67 | AG12: =AE$9-AE12 -> 26 | AH12: =AE11-AE12 -> 15 | AI12: Gijo | AJ12: 121 | AK12: =AJ$5-AJ12 -> 81 | AL12: =AJ$9-AJ12 -> 36 | AM12: =AJ11-AJ12 -> 20
B13: Matheus Rocha | C13: 105 | D13: Victor Vaz | E13: 12 | F13: Henry Douglas | G13: 24 | H13: Gustavo Barros | I13: 26 | J13: Gijo | K13: 26 | L13: Gijo | M13: 44 | N13: Renato Martins | O13: 46 | P13: Raphael Reis | Q13: 58 | R13: Gijo | S13: 72 | T13: Gijo | U13: 67 | V13: =U$5-U13 -> 71 | W13: =U$9-U13 -> 48 | X13: =U12-U13 -> 32 | Y13: Gijo | Z13: 87 | AA13: =Z$5-Z13 -> 73 | AB13: =Z$9-Z13 -> 41 | AC13: =Z12-Z13 -> 26 | AD13: Gijo | AE13: 105 | AF13: =AE$5-AE13 -> 75 | AG13: =AE$9-AE13 -> 34 | AH13: =AE12-AE13 -> 8 | AI13: Matheus Rocha | AJ13: 113 | AK13: =AJ$5-AJ13 -> 89 | AL13: =AJ$9-AJ13 -> 44 | AM13: =AJ12-AJ13 -> 8
B14: Renato Martins | C14: 82 | D14: Levindo Neto | E14: 11 | F14: Luciano Robervine | G14: 23 | H14: Raphael Reis | I14: 24 | J14: Gustavo Barros | K14: 26 | L14: Luciano Macnamarra | M14: 43 | N14: Raphael Reis | O14: 42 | P14: Gijo | Q14: 57 | R14: Jucimar Vieira | S14: 61 | T14: Jucimar Vieira | U14: 56 | V14: =U$5-U14 -> 82 | W14: =U$9-U14 -> 59 | X14: =U13-U14 -> 11 | Y14: Renato Martins | Z14: 67 | AA14: =Z$5-Z14 -> 93 | AB14: =Z$9-Z14 -> 61 | AC14: =Z13-Z14 -> 20 | AD14: Renato Martins | AE14: 82 | AF14: =AE$5-AE14 -> 98 | AG14: =AE$9-AE14 -> 57 | AH14: =AE13-AE14 -> 23 | AI14: Renato Martins | AJ14: 94 | AK14: =AJ$5-AJ14 -> 108 | AL14: =AJ$9-AJ14 -> 63 | AM14: =AJ13-AJ14 -> 19
B15: Thiago Amaro | C15: 65 | D15: Alan Moreira | E15: 10 | F15: Raphael Reis | G15: 21 | H15: Henry Douglas | I15: 24 | J15: Cristiano Cendon | K15: 24 | L15: Raphael Reis | M15: 42 | N15: Gijo | O15: 39 | P15: Renato Martins | Q15: 46 | R15: Thiago Amaro | S15: 49 | T15: Renato Martins | U15: 56 | V15: =U$5-U15 -> 82 | W15: =U$9-U15 -> 59 | X15: =U14-U15 -> 0 | Y15: Thiago Amaro | Z15: 52 | AA15: =Z$5-Z15 -> 108 | AB15: =Z$9-Z15 -> 76 | AC15: =Z14-Z15 -> 15 | AD15: Thiago Amaro | AE15: 65 | AF15: =AE$5-AE15 -> 115 | AG15: =AE$9-AE15 -> 74 | AH15: =AE14-AE15 -> 17 | AI15: Thiago Amaro | AJ15: 65 | AK15: =AJ$5-AJ15 -> 137 | AL15: =AJ$9-AJ15 -> 92 | AM15: =AJ14-AJ15 -> 29
B16: Levindo Neto | C16: 51 | D16: Iago Bastos | E16: 9 | F16: Renato Martins | G16: 14 | H16: Matheus Rocha | I16: 22 | J16: Raphael Reis | K16: 24 | L16: Gustavo Barros | M16: 31 | N16: Thiago Amaro | O16: 35 | P16: Thiago Amaro | Q16: 35 | R16: Renato Martins | S16: 41 | T16: Thiago Amaro | U16: 52 | V16: =U$5-U16 -> 86 | W16: =U$9-U16 -> 63 | X16: =U15-U16 -> 4 | Y16: Jucimar Vieira | Z16: 51 | AA16: =Z$5-Z16 -> 109 | AB16: =Z$9-Z16 -> 77 | AC16: =Z15-Z16 -> 1 | AD16: Jucimar Vieira | AE16: 51 | AF16: =AE$5-AE16 -> 129 | AG16: =AE$9-AE16 -> 88 | AH16: =AE15-AE16 -> 14 | AI16: Levindo Neto | AJ16: 57 | AK16: =AJ$5-AJ16 -> 145 | AL16: =AJ$9-AJ16 -> 100 | AM16: =AJ15-AJ16 -> 8
B17: Jucimar Vieira | C17: 46 | D17: Pedro Toussaint | E17: 8 | F17: Alan Tacchi | G17: 12 | H17: Cristiano Cendon | I17: 21 | J17: Henry Douglas | K17: 24 | L17: Thiago Amaro | M17: 29 | N17: Luciano Robervine | O17: 34 | P17: Gustavo Barros | Q17: 31 | R17: Gustavo Barros | S17: 31 | T17: Levindo Neto | U17: 37 | V17: =U$5-U17 -> 101 | W17: =U$9-U17 -> 78 | X17: =U16-U17 -> 15 | Y17: Levindo Neto | Z17: 32 | AA17: =Z$5-Z17 -> 128 | AB17: =Z$9-Z17 -> 96 | AC17: =Z16-Z17 -> 19 | AD17: Levindo Neto | AE17: 46 | AF17: =AE$5-AE17 -> 134 | AG17: =AE$9-AE17 -> 93 | AH17: =AE16-AE17 -> 5 | AI17: Jucimar Vieira | AJ17: 51 | AK17: =AJ$5-AJ17 -> 151 | AL17: =AJ$9-AJ17 -> 106 | AM17: =AJ16-AJ17 -> 6
B18: Henry Douglas | C18: 28 | D18: Raphael Fraga | E18: 7 | F18: Levindo Neto | G18: 11 | H18: Luciano Robervine | I18: 18 | J18: Flávio Lacerda | K18: 22 | L18: Henry Douglas | M18: 28 | N18: Gustavo Barros | O18: 31 | P18: Luciano Robervine | Q18: 29 | R18: Henry Douglas | S18: 28 | T18: Gustavo Barros | U18: 31 | V18: =U$5-U18 -> 107 | W18: =U$9-U18 -> 84 | X18: =U17-U18 -> 6 | Y18: Henry Douglas | Z18: 28 | AA18: =Z$5-Z18 -> 132 | AB18: =Z$9-Z18 -> 100 | AC18: =Z17-Z18 -> 4 | AD18: Henry Douglas | AE18: 28 | AF18: =AE$5-AE18 -> 152 | AG18: =AE$9-AE18 -> 111 | AH18: =AE17-AE18 -> 18 | AI18: Henry Douglas | AJ18: 28 | AK18: =AJ$5-AJ18 -> 174 | AL18: =AJ$9-AJ18 -> 129 | AM18: =AJ17-AJ18 -> 23
B19: Gustavo Barros | C19: 26 | D19: Raphael Reis | E19: 6 | F19: Cristiano Cendon | G19: 11 | H19: Gijo | I19: 16 | J19: Luciano Robervine | K19: 18 | L19: Alan Moreira | M19: 24 | N19: Henry Douglas | O19: 28 | P19: Henry Douglas | Q19: 28 | R19: Luciano Robervine | S19: 24 | T19: Henry Douglas | U19: 28 | V19: =U$5-U19 -> 110 | W19: =U$9-U19 -> 87 | X19: =U18-U19 -> 3 | Y19: Gustavo Barros | Z19: 26 | AA19: =Z$5-Z19 -> 134 | AB19: =Z$9-Z19 -> 102 | AC19: =Z18-Z19 -> 2 | AD19: Gustavo Barros | AE19: 26 | AF19: =AE$5-AE19 -> 154 | AG19: =AE$9-AE19 -> 113 | AH19: =AE18-AE19 -> 2 | AI19: Gustavo Barros | AJ19: 26 | AK19: =AJ$5-AJ19 -> 176 | AL19: =AJ$9-AJ19 -> 131 | AM19: =AJ18-AJ19 -> 2
B20: Luciano Robervine | C20: 14 | D20: Alan Tacchi | E20: 5 | F20: Thiago Amaro | G20: 11 | H20: Thiago Amaro | I20: 14 | J20: Thiago Amaro | K20: 18 | L20: Flávio Lacerda | M20: 23 | N20: Alan Moreira | O20: 19 | P20: Levindo Neto | Q20: 23 | R20: Levindo Neto | S20: 23 | T20: Luciano Robervine | U20: 19 | V20: =U$5-U20 -> 119 | W20: =U$9-U20 -> 96 | X20: =U19-U20 -> 9 | Y20: Luciano Robervine | Z20: 14 | AA20: =Z$5-Z20 -> 146 | AB20: =Z$9-Z20 -> 114 | AC20: =Z19-Z20 -> 12 | AD20: Luciano Robervine | AE20: 14 | AF20: =AE$5-AE20 -> 166 | AG20: =AE$9-AE20 -> 125 | AH20: =AE19-AE20 -> 12 | AI20: Luciano Robervine | AJ20: 14 | AK20: =AJ$5-AJ20 -> 188 | AL20: =AJ$9-AJ20 -> 143 | AM20: =AJ19-AJ20 -> 12
B21: Alan Moreira | C21: 14 | D21: Lisandro Sodré | E21: 4 | F21: Alan Moreira | G21: 10 | H21: Alan Moreira | I21: 12 | J21: Alan Moreira | K21: 12 | L21: Luciano Robervine | M21: 18 | N21: Levindo Neto | O21: 10 | P21: Alan Moreira | Q21: 19 | R21: Lucas Roscito | S21: 19 | T21: Lucas Roscito | U21: 14 | V21: =U$5-U21 -> 124 | W21: =U$9-U21 -> 101 | X21: =U20-U21 -> 5 | Y21: Alan Moreira | Z21: 14 | AA21: =Z$5-Z21 -> 146 | AB21: =Z$9-Z21 -> 114 | AC21: =Z20-Z21 -> 0 | AD21: Alan Moreira | AE21: 14 | AF21: =AE$5-AE21 -> 166 | AG21: =AE$9-AE21 -> 125 | AH21: =AE20-AE21 -> 0 | AI21: Alan Moreira | AJ21: 14 | AK21: =AJ$5-AJ21 -> 188 | AL21: =AJ$9-AJ21 -> 143 | AM21: =AJ20-AJ21 -> 0
B22: Celso Dantas | C22: 11 | D22: Thiago Amaro | E22: 3 | F22: Lisandro Sodré | G22: 9 | H22: Alan Tacchi | I22: 12 | J22: Levindo Neto | K22: 11 | L22: Levindo Neto | M22: 15 | N22: Lisandro Sodré | O22: 4 | P22: Lucas Roscito | Q22: 12 | R22: Alan Moreira | S22: 14 | T22: Alan Moreira | U22: 14 | V22: =U$5-U22 -> 124 | W22: =U$9-U22 -> 101 | X22: =U21-U22 -> 0 | Y22: Celso Dantas | Z22: 11 | AA22: =Z$5-Z22 -> 149 | AB22: =Z$9-Z22 -> 117 | AC22: =Z21-Z22 -> 3 | AD22: Celso Dantas | AE22: 11 | AF22: =AE$5-AE22 -> 169 | AG22: =AE$9-AE22 -> 128 | AH22: =AE21-AE22 -> 3 | AI22: Celso Dantas | AJ22: 11 | AK22: =AJ$5-AJ22 -> 191 | AL22: =AJ$9-AJ22 -> 146 | AM22: =AJ21-AJ22 -> 3
B23: Lucas Roscito | C23: 9 | D23: Luciano Robervine | E23: 2 | F23: Victor Vaz | G23: 7 | H23: Levindo Neto | I23: 11 | J23: Lisandro Sodré | K23: 9 | L23: Lisandro Sodré | M23: 9 | N23: Victor Vaz | O23: 0 | P23: Celso Dantas | Q23: 11 | R23: Celso Dantas | S23: 11 | T23: Celso Dantas | U23: 11 | V23: =U$5-U23 -> 127 | W23: =U$9-U23 -> 104 | X23: =U22-U23 -> 3 | Y23: Lucas Roscito | Z23: 9 | AA23: =Z$5-Z23 -> 151 | AB23: =Z$9-Z23 -> 119 | AC23: =Z22-Z23 -> 2 | AD23: Lucas Roscito | AE23: 9 | AF23: =AE$5-AE23 -> 171 | AG23: =AE$9-AE23 -> 130 | AH23: =AE22-AE23 -> 2 | AI23: Lucas Roscito | AJ23: 9 | AK23: =AJ$5-AJ23 -> 193 | AL23: =AJ$9-AJ23 -> 148 | AM23: =AJ22-AJ23 -> 2
B24: Victor Vaz | C24: 0 | D24: Jucimar Vieira | E24: 1 | F24: Iago Bastos | G24: 4 | H24: Lisandro Sodré | I24: 9 | J24: Alan Tacchi | K24: 7 | L24: Victor Vaz | M24: 2 | N24: Iago Bastos | O24: 0 | P24: Lisandro Sodré | Q24: 4 | R24: Victor Vaz | S24: 0 | T24: Victor Vaz | U24: 0 | V24: =U$5-U24 -> 138 | W24: =U$9-U24 -> 115 | X24: =U23-U24 -> 11 | Y24: Victor Vaz | Z24: 0 | AA24: =Z$5-Z24 -> 160 | AB24: =Z$9-Z24 -> 128 | AC24: =Z23-Z24 -> 9 | AD24: Victor Vaz | AE24: 0 | AF24: =AE$5-AE24 -> 180 | AG24: =AE$9-AE24 -> 139 | AH24: =AE23-AE24 -> 9 | AI24: Victor Vaz | AJ24: 0 | AK24: =AJ$5-AJ24 -> 202 | AL24: =AJ$9-AJ24 -> 157 | AM24: =AJ23-AJ24 -> 9
B25: Iago Bastos | C25: 0 | D25: Renato Martins | E25: 1 | F25: Pedro Toussaint | G25: 3 | H25: Victor Vaz | I25: 7 | J25: Victor Vaz | K25: 2 | L25: Alan Tacchi | M25: 2 | N25: Pedro Toussaint | O25: 0 | P25: Victor Vaz | Q25: 0 | R25: Iago Bastos | S25: 0 | T25: Iago Bastos | U25: 0 | V25: =U$5-U25 -> 138 | W25: =U$9-U25 -> 115 | X25: =U24-U25 -> 0 | Y25: Iago Bastos | Z25: 0 | AA25: =Z$5-Z25 -> 160 | AB25: =Z$9-Z25 -> 128 | AC25: =Z24-Z25 -> 0 | AD25: Iago Bastos | AE25: 0 | AF25: =AE$5-AE25 -> 180 | AG25: =AE$9-AE25 -> 139 | AH25: =AE24-AE25 -> 0 | AI25: Iago Bastos | AJ25: 0 | AK25: =AJ$5-AJ25 -> 202 | AL25: =AJ$9-AJ25 -> 157 | AM25: =AJ24-AJ25 -> 0
B26: Pedro Toussaint | C26: 0 | D26: Alexandre Missionschnick | E26: 0 | F26: Raphael Fraga | G26: 2 | H26: Raphael Fraga | I26: 2 | J26: Iago Bastos | K26: 0 | L26: Iago Bastos | M26: 0 | N26: Alan Tacchi | O26: 0 | P26: Iago Bastos | Q26: 0 | R26: Pedro Toussaint | S26: 0 | T26: Pedro Toussaint | U26: 0 | V26: =U$5-U26 -> 138 | W26: =U$9-U26 -> 115 | X26: =U25-U26 -> 0 | Y26: Pedro Toussaint | Z26: 0 | AA26: =Z$5-Z26 -> 160 | AB26: =Z$9-Z26 -> 128 | AC26: =Z25-Z26 -> 0 | AD26: Pedro Toussaint | AE26: 0 | AF26: =AE$5-AE26 -> 180 | AG26: =AE$9-AE26 -> 139 | AH26: =AE25-AE26 -> 0 | AI26: Pedro Toussaint | AJ26: 0 | AK26: =AJ$5-AJ26 -> 202 | AL26: =AJ$9-AJ26 -> 157 | AM26: =AJ25-AJ26 -> 0
B27: Alan Tacchi | C27: 0 | D27: Celso Dantas | E27: 0 | F27: Alexandre Missionschnick | G27: 0 | H27: Iago Bastos | I27: 0 | J27: Pedro Toussaint | K27: 0 | L27: Pedro Toussaint | M27: 0 | N27: Raphael Fraga | O27: 0 | P27: Pedro Toussaint | Q27: 0 | R27: Alan Tacchi | S27: 0 | T27: Alan Tacchi | U27: 0 | V27: =U$5-U27 -> 138 | W27: =U$9-U27 -> 115 | X27: =U26-U27 -> 0 | Y27: Alan Tacchi | Z27: 0 | AA27: =Z$5-Z27 -> 160 | AB27: =Z$9-Z27 -> 128 | AC27: =Z26-Z27 -> 0 | AD27: Alan Tacchi | AE27: 0 | AF27: =AE$5-AE27 -> 180 | AG27: =AE$9-AE27 -> 139 | AH27: =AE26-AE27 -> 0 | AI27: Alan Tacchi | AJ27: 0 | AK27: =AJ$5-AJ27 -> 202 | AL27: =AJ$9-AJ27 -> 157 | AM27: =AJ26-AJ27 -> 0
B28: Raphael Fraga | C28: 0 | D28: Matheus Rocha | E28: 0 | F28: Celso Dantas | G28: 0 | H28: Pedro Toussaint | I28: 0 | J28: Raphael Fraga | K28: 0 | L28: Raphael Fraga | M28: 0 | N28: Alexandre Missionschnick | O28: 0 | P28: Alan Tacchi | Q28: 0 | R28: Raphael Fraga | S28: 0 | T28: Raphael Fraga | U28: 0 | V28: =U$5-U28 -> 138 | W28: =U$9-U28 -> 115 | X28: =U27-U28 -> 0 | Y28: Raphael Fraga | Z28: 0 | AA28: =Z$5-Z28 -> 160 | AB28: =Z$9-Z28 -> 128 | AC28: =Z27-Z28 -> 0 | AD28: Raphael Fraga | AE28: 0 | AF28: =AE$5-AE28 -> 180 | AG28: =AE$9-AE28 -> 139 | AH28: =AE27-AE28 -> 0 | AI28: Raphael Fraga | AJ28: 0 | AK28: =AJ$5-AJ28 -> 202 | AL28: =AJ$9-AJ28 -> 157 | AM28: =AJ27-AJ28 -> 0
B29: Lisandro Sodré | C29: 0 | D29: Thiago Santos | E29: 0 | F29: Matheus Rocha | G29: 0 | H29: Alexandre Missionschnick | I29: 0 | J29: Alexandre Missionschnick | K29: 0 | L29: Alexandre Missionschnick | M29: 0 | N29: Celso Dantas | O29: 0 | P29: Raphael Fraga | Q29: 0 | R29: Lisandro Sodré | S29: 0 | T29: Lisandro Sodré | U29: 0 | V29: =U$5-U29 -> 138 | W29: =U$9-U29 -> 115 | X29: =U28-U29 -> 0 | Y29: Lisandro Sodré | Z29: 0 | AA29: =Z$5-Z29 -> 160 | AB29: =Z$9-Z29 -> 128 | AC29: =Z28-Z29 -> 0 | AD29: Lisandro Sodré | AE29: 0 | AF29: =AE$5-AE29 -> 180 | AG29: =AE$9-AE29 -> 139 | AH29: =AE28-AE29 -> 0 | AI29: Lisandro Sodré | AJ29: 0 | AK29: =AJ$5-AJ29 -> 202 | AL29: =AJ$9-AJ29 -> 157 | AM29: =AJ28-AJ29 -> 0
B30: Alexandre Missionschnick | C30: 0 | F30: Thiago Santos | G30: 0 | H30: Celso Dantas | I30: 0 | J30: Celso Dantas | K30: 0 | L30: Celso Dantas | M30: 0 | N30: Thiago Santos | O30: 0 | P30: Alexandre Missionschnick | Q30: 0 | R30: Alexandre Missionschnick | S30: 0 | T30: Alexandre Missionschnick | U30: 0 | V30: =U$5-U30 -> 138 | W30: =U$9-U30 -> 115 | X30: =U29-U30 -> 0 | Y30: Alexandre Missionschnick | Z30: 0 | AA30: =Z$5-Z30 -> 160 | AB30: =Z$9-Z30 -> 128 | AC30: =Z29-Z30 -> 0 | AD30: Alexandre Missionschnick | AE30: 0 | AF30: =AE$5-AE30 -> 180 | AG30: =AE$9-AE30 -> 139 | AH30: =AE29-AE30 -> 0 | AI30: Alexandre Missionschnick | AJ30: 0 | AK30: =AJ$5-AJ30 -> 202 | AL30: =AJ$9-AJ30 -> 157 | AM30: =AJ29-AJ30 -> 0
B31: XXXXX | C31: 0 | H31: Thiago Santos | I31: 0 | J31: Thiago Santos | K31: 0 | L31: Thiago Santos | M31: 0 | P31: Thiago Santos | Q31: 0 | R31: XXXXX | S31: 0 | T31: XXXXX | U31: 0 | V31: =U$5-U31 -> 138 | W31: =U$9-U31 -> 115 | X31: =U30-U31 -> 0 | Y31: XXXXX | Z31: 0 | AA31: =Z$5-Z31 -> 160 | AB31: =Z$9-Z31 -> 128 | AC31: =Z30-Z31 -> 0 | AD31: Thiago Santos | AE31: 0 | AF31: =AE$5-AE31 -> 180 | AG31: =AE$9-AE31 -> 139 | AH31: =AE30-AE31 -> 0 | AI31: Thiago Santos | AJ31: 0 | AK31: =AJ$5-AJ31 -> 202 | AL31: =AJ$9-AJ31 -> 157 | AM31: =AJ30-AJ31 -> 0
B32: Thiago Santos | C32: 28 | Q32: 0 | R32: Thiago Santos | S32: 0 | T32: Thiago Santos | U32: 0 | V32: =U$5-U32 -> 138 | W32: =U$9-U32 -> 115 | X32: =U31-U32 -> 0 | Y32: Thiago Santos | Z32: 0 | AA32: =Z$5-Z32 -> 160 | AB32: =Z$9-Z32 -> 128 | AC32: =Z31-Z32 -> 0 | AE32: 0 | AF32: =AE$5-AE32 -> 180 | AG32: =AE$9-AE32 -> 139 | AH32: =AE31-AE32 -> 0 | AJ32: 0 | AK32: =AJ$5-AJ32 -> 202 | AL32: =AJ$9-AJ32 -> 157 | AM32: =AJ31-AJ32 -> 0
C33: 29 | S33: 0 | V33: =U$5-U33 -> 138 | W33: =U$9-U33 -> 115 | X33: =U32-U33 -> 0 | AA33: =Z$5-Z33 -> 160 | AB33: =Z$9-Z33 -> 128 | AC33: =Z32-Z33 -> 0 | AF33: =AE$5-AE33 -> 180 | AG33: =AE$9-AE33 -> 139 | AH33: =AE32-AE33 -> 0 | AK33: =AJ$5-AJ33 -> 202 | AL33: =AJ$9-AJ33 -> 157 | AM33: =AJ32-AJ33 -> 0
C34: 30 | S34: 0 | V34: =U$5-U34 -> 138 | W34: =U$9-U34 -> 115 | X34: =U33-U34 -> 0 | AA34: =Z$5-Z34 -> 160 | AB34: =Z$9-Z34 -> 128 | AC34: =Z33-Z34 -> 0 | AF34: =AE$5-AE34 -> 180 | AG34: =AE$9-AE34 -> 139 | AH34: =AE33-AE34 -> 0 | AK34: =AJ$5-AJ34 -> 202 | AL34: =AJ$9-AJ34 -> 157 | AM34: =AJ33-AJ34 -> 0
C35: 31 | S35: 0 | V35: =U$5-U35 -> 138 | W35: =U$9-U35 -> 115 | X35: =U34-U35 -> 0 | AA35: =Z$5-Z35 -> 160 | AB35: =Z$9-Z35 -> 128 | AC35: =Z34-Z35 -> 0 | AF35: =AE$5-AE35 -> 180 | AG35: =AE$9-AE35 -> 139 | AH35: =AE34-AE35 -> 0 | AK35: =AJ$5-AJ35 -> 202 | AL35: =AJ$9-AJ35 -> 157 | AM35: =AJ34-AJ35 -> 0
C36: 32 | S36: 0 | V36: =U$5-U36 -> 138 | W36: =U$9-U36 -> 115 | X36: =U35-U36 -> 0 | AA36: =Z$5-Z36 -> 160 | AB36: =Z$9-Z36 -> 128 | AC36: =Z35-Z36 -> 0 | AF36: =AE$5-AE36 -> 180 | AG36: =AE$9-AE36 -> 139 | AH36: =AE35-AE36 -> 0 | AK36: =AJ$5-AJ36 -> 202 | AL36: =AJ$9-AJ36 -> 157 | AM36: =AJ35-AJ36 -> 0
C37: 33 | S37: 0 | V37: =U$5-U37 -> 138 | W37: =U$9-U37 -> 115 | X37: =U36-U37 -> 0 | AA37: =Z$5-Z37 -> 160 | AB37: =Z$9-Z37 -> 128 | AC37: =Z36-Z37 -> 0 | AF37: =AE$5-AE37 -> 180 | AG37: =AE$9-AE37 -> 139 | AH37: =AE36-AE37 -> 0 | AK37: =AJ$5-AJ37 -> 202 | AL37: =AJ$9-AJ37 -> 157 | AM37: =AJ36-AJ37 -> 0
C38: 34 | V38: =U$5-U38 -> 138 | W38: =U$9-U38 -> 115 | X38: =U37-U38 -> 0 | AA38: =Z$5-Z38 -> 160 | AB38: =Z$9-Z38 -> 128 | AC38: =Z37-Z38 -> 0 | AF38: =AE$5-AE38 -> 180 | AG38: =AE$9-AE38 -> 139 | AH38: =AE37-AE38 -> 0 | AK38: =AJ$5-AJ38 -> 202 | AL38: =AJ$9-AJ38 -> 157 | AM38: =AJ37-AJ38 -> 0
C39: 35 | V39: =U$5-U39 -> 138 | W39: =U$9-U39 -> 115 | X39: =U38-U39 -> 0 | AA39: =Z$5-Z39 -> 160 | AB39: =Z$9-Z39 -> 128 | AC39: =Z38-Z39 -> 0 | AF39: =AE$5-AE39 -> 180 | AG39: =AE$9-AE39 -> 139 | AH39: =AE38-AE39 -> 0 | AK39: =AJ$5-AJ39 -> 202 | AL39: =AJ$9-AJ39 -> 157 | AM39: =AJ38-AJ39 -> 0
C40: 36 | V40: =U$5-U40 -> 138 | W40: =U$9-U40 -> 115 | X40: =U39-U40 -> 0 | AA40: =Z$5-Z40 -> 160 | AB40: =Z$9-Z40 -> 128 | AC40: =Z39-Z40 -> 0 | AF40: =AE$5-AE40 -> 180 | AG40: =AE$9-AE40 -> 139 | AH40: =AE39-AE40 -> 0 | AK40: =AJ$5-AJ40 -> 202 | AL40: =AJ$9-AJ40 -> 157 | AM40: =AJ39-AJ40 -> 0
C41: 37 | V41: =U$5-U41 -> 138 | W41: =U$9-U41 -> 115 | X41: =U40-U41 -> 0 | AA41: =Z$5-Z41 -> 160 | AB41: =Z$9-Z41 -> 128 | AC41: =Z40-Z41 -> 0 | AF41: =AE$5-AE41 -> 180 | AG41: =AE$9-AE41 -> 139 | AH41: =AE40-AE41 -> 0 | AK41: =AJ$5-AJ41 -> 202 | AL41: =AJ$9-AJ41 -> 157 | AM41: =AJ40-AJ41 -> 0
C42: 38 | V42: =U$5-U42 -> 138 | W42: =U$9-U42 -> 115 | X42: =U41-U42 -> 0 | AA42: =Z$5-Z42 -> 160 | AB42: =Z$9-Z42 -> 128 | AC42: =Z41-Z42 -> 0 | AF42: =AE$5-AE42 -> 180 | AG42: =AE$9-AE42 -> 139 | AH42: =AE41-AE42 -> 0 | AK42: =AJ$5-AJ42 -> 202 | AL42: =AJ$9-AJ42 -> 157 | AM42: =AJ41-AJ42 -> 0
C43: 39 | V43: =U$5-U43 -> 138 | W43: =U$9-U43 -> 115 | X43: =U42-U43 -> 0 | Z43: 0 | AA43: =Z$5-Z43 -> 160 | AB43: =Z$9-Z43 -> 128 | AC43: =Z42-Z43 -> 0 | AF43: =AE$5-AE43 -> 180 | AG43: =AE$9-AE43 -> 139 | AH43: =AE42-AE43 -> 0 | AK43: =AJ$5-AJ43 -> 202 | AL43: =AJ$9-AJ43 -> 157 | AM43: =AJ42-AJ43 -> 0
C44: 40 | V44: =U$5-U44 -> 138 | W44: =U$9-U44 -> 115 | X44: =U43-U44 -> 0 | Z44: 0 | AA44: =Z$5-Z44 -> 160 | AB44: =Z$9-Z44 -> 128 | AC44: =Z43-Z44 -> 0 | AF44: =AE$5-AE44 -> 180 | AG44: =AE$9-AE44 -> 139 | AH44: =AE43-AE44 -> 0 | AK44: =AJ$5-AJ44 -> 202 | AL44: =AJ$9-AJ44 -> 157 | AM44: =AJ43-AJ44 -> 0
C45: 41 | V45: =U$5-U45 -> 138 | W45: =U$9-U45 -> 115 | X45: =U44-U45 -> 0 | Z45: 0 | AA45: =Z$5-Z45 -> 160 | AB45: =Z$9-Z45 -> 128 | AC45: =Z44-Z45 -> 0 | AF45: =AE$5-AE45 -> 180 | AG45: =AE$9-AE45 -> 139 | AH45: =AE44-AE45 -> 0 | AK45: =AJ$5-AJ45 -> 202 | AL45: =AJ$9-AJ45 -> 157 | AM45: =AJ44-AJ45 -> 0
C46: 42 | V46: =U$5-U46 -> 138 | W46: =U$9-U46 -> 115 | X46: =U45-U46 -> 0 | Z46: 0 | AA46: =Z$5-Z46 -> 160 | AB46: =Z$9-Z46 -> 128 | AC46: =Z45-Z46 -> 0 | AF46: =AE$5-AE46 -> 180 | AG46: =AE$9-AE46 -> 139 | AH46: =AE45-AE46 -> 0 | AK46: =AJ$5-AJ46 -> 202 | AL46: =AJ$9-AJ46 -> 157 | AM46: =AJ45-AJ46 -> 0
C47: 43 | V47: =U$5-U47 -> 138 | W47: =U$9-U47 -> 115 | X47: =U46-U47 -> 0 | Z47: 0 | AA47: =Z$5-Z47 -> 160 | AB47: =Z$9-Z47 -> 128 | AC47: =Z46-Z47 -> 0 | AF47: =AE$5-AE47 -> 180 | AG47: =AE$9-AE47 -> 139 | AH47: =AE46-AE47 -> 0 | AK47: =AJ$5-AJ47 -> 202 | AL47: =AJ$9-AJ47 -> 157 | AM47: =AJ46-AJ47 -> 0
C48: 44 | V48: =U$5-U48 -> 138 | W48: =U$9-U48 -> 115 | X48: =U47-U48 -> 0 | Z48: 0 | AA48: =Z$5-Z48 -> 160 | AB48: =Z$9-Z48 -> 128 | AC48: =Z47-Z48 -> 0 | AF48: =AE$5-AE48 -> 180 | AG48: =AE$9-AE48 -> 139 | AH48: =AE47-AE48 -> 0 | AK48: =AJ$5-AJ48 -> 202 | AL48: =AJ$9-AJ48 -> 157 | AM48: =AJ47-AJ48 -> 0
C49: 45 | V49: =U$5-U49 -> 138 | W49: =U$9-U49 -> 115 | X49: =U48-U49 -> 0 | Z49: 0 | AA49: =Z$5-Z49 -> 160 | AB49: =Z$9-Z49 -> 128 | AC49: =Z48-Z49 -> 0 | AF49: =AE$5-AE49 -> 180 | AG49: =AE$9-AE49 -> 139 | AH49: =AE48-AE49 -> 0 | AK49: =AJ$5-AJ49 -> 202 | AL49: =AJ$9-AJ49 -> 157 | AM49: =AJ48-AJ49 -> 0

Sheet TROCA KART
A1: PILOTO | B1: 1 ETAPA | C1: 2 ETAPA | D1: 3 ETAPA | E1: 4 ETAPA | F1: 5 ETAPA | G1: 6 ETAPA | H1: 7 ETAPA | I1: 8 ETAPA | J1: 9 ETAPA | K1: 10 ETAPA | L1: 11 ETAPA | M1: 12 ETAPA | N1: Troca
A2: Alan Moreira | N2: 0
A3: Alan Tacchi | N3: 0
A4: Alexandre Missionschnick | N4: 0
A5: Celso Dantas | N5: 0
A6: XXXXX | N6: 0
A7: Gustavo Barros | N7: 0
A8: Henrique Pereira | E8: TROCA | I8: TROCA | N8: 2
A9: Henry Douglas | N9: 0
A10: Iago Bastos | N10: 0
A11: João Lott | N11: 0
A12: Jucimar Vieira | D12: TROCA | F12: TROCA | N12: 2
A13: Levindo Neto | N13: 0
A14: Lisandro Sodré | N14: 0
A15: Lucas Bessas | D15: TROCA | N15: 1
A16: Luciano Robervine | N16: 0
A17: Marcelo Augusto | I17: TROCA | N17: 1
A18: Matheus Rocha | N18: 0
A19: Raphael Fraga | N19: 0
A20: Raphael Reis | N20: 0
A21: Renato Martins | D21: TROCA | N21: 1
A22: Thiago Santos | N22: 0
A23: Victor Vaz | N23: 0
A24: Luciano Macnamarra | N24: 0
A25: Thiago Amaro | N25: 0
A26: Pedro Toussaint | N26: 0
A27: Cristiano Cendon | N27: 0
A28: Gijo | N28: 0
A29: Lucas Roscito | N29: 0
A30: 0 | N30: 0
A31: 0 | N31: 0
A32: 0 | N32: 0
A33: 0 | N33: 0
A34: 0 | N34: 0
A35: 0 | N35: 0
A36: 0 | N36: 0
A37: 0 | N37: 0
A38: 0 | N38: 0
A39: 0 | N39: 0
N40: 0
N41: 0
N42: 0
N43: 0
N44: 0
N45: 0
N46: 0

Sheet PRESENÇAS
A1: PILOTO | B1: 1 ETAPA | C1: 2 ETAPA | D1: 3 ETAPA | E1: 4 ETAPA | F1: 5 ETAPA | G1: 6 ETAPA | H1: 7 ETAPA | I1: 8 ETAPA | J1: 9 ETAPA | K1: 10 ETAPA | L1: 11 ETAPA | M1: 12 ETAPA | N1: Faltou | O1: PUNIÇÕES
A2: Alan Moreira | B2: ok | C2: Faltou | D2: ok | E2: Faltou | F2: ok | G2: Faltou | H2: Faltou | I2: Faltou | J2: Faltou | K2: Faltou | L2: Faltou | M2: Faltou | N2: 9 | O2: 0
A3: Alan Tacchi | B3: ok | C3: ok | D3: Faltou | E3: Faltou | F3: Faltou | G3: Faltou | H3: Faltou | I3: Faltou | J3: Faltou | K3: Faltou | L3: Faltou | M3: Faltou | N3: 10 | O3: 0
A4: Alexandre Missionschnick | B4: ok | C4: Faltou | D4: Faltou | E4: Faltou | F4: Faltou | G4: Faltou | H4: Faltou | I4: Faltou | J4: Faltou | K4: Faltou | L4: Faltou | M4: Faltou | N4: 11 | O4: 1
A5: Celso Dantas | B5: Faltou | C5: Faltou | D5: Faltou | E5: Faltou | F5: Faltou | G5: Faltou | H5: ok | I5: Faltou | J5: Faltou | K5: Faltou | L5: Faltou | M5: Faltou | N5: 11 | O5: 0
A6: XXXXX | B6: Faltou | C6: Faltou | D6: Faltou | E6: Faltou | F6: Faltou | G6: Faltou | H6: Faltou | I6: Faltou | J6: Faltou | K6: Faltou | L6: Faltou | M6: Faltou | N6: 12 | O6: 2
A7: Gustavo Barros | B7: ok | C7: ok | D7: ok | E7: Faltou | F7: Faltou | G7: Faltou | H7: Faltou | I7: Faltou | J7: Faltou | K7: Faltou | L7: Faltou | M7: Faltou | N7: 9 | O7: 0
A8: Henrique Pereira | B8: ok | C8: ok | D8: ok | E8: ok | F8: ok | G8: ok | H8: ok | I8: ok | J8: ok | K8: ok | L8: ok | M8: ok | N8: 0 | O8: 2
A9: Henry Douglas | B9: ok | C9: ok | D9: ok | E9: Faltou | F9: Faltou | G9: Faltou | H9: Faltou | I9: Faltou | J9: Faltou | K9: Faltou | L9: Faltou | M9: Faltou | N9: 9 | O9: 0
A10: Iago Bastos | B10: ok | C10: Faltou | D10: Faltou | E10: Faltou | F10: Faltou | G10: Faltou | H10: Faltou | I10: Faltou | J10: Faltou | K10: Faltou | L10: Faltou | M10: Faltou | N10: 11 | O10: 0
A11: João Lott | B11: ok | C11: ok | D11: ok | E11: Faltou | F11: ok | G11: ok | H11: ok | I11: ok | J11: ok | K11: ok | L11: Faltou | M11: ok | N11: 2 | O11: 0
A12: Jucimar Vieira | B12: ok | C12: ok | D12: ok | E12: ok | F12: ok | G12: Faltou | H12: Faltou | I12: Faltou | J12: Faltou | K12: Faltou | L12: Faltou | M12: Faltou | N12: 7 | O12: 0
A13: Levindo Neto | B13: ok | C13: ok | D13: ok | E13: Faltou | F13: Faltou | G13: Faltou | H13: ok | I13: Faltou | J13: ok | K13: Faltou | L13: ok | M13: ok | N13: 5 | O13: 1
A14: Lisandro Sodré | B14: ok | C14: ok | D14: Faltou | E14: Faltou | F14: Faltou | G14: Faltou | H14: Faltou | I14: Faltou | J14: Faltou | K14: Faltou | L14: Faltou | M14: Faltou | N14: 10 | O14: 0
A15: Lucas Bessas | B15: ok | C15: ok | D15: ok | E15: ok | F15: Faltou | G15: ok | H15: ok | I15: Faltou | J15: ok | K15: ok | L15: ok | M15: ok | N15: 2 | O15: 1
A16: Luciano Robervine | B16: ok | C16: ok | D16: Faltou | E16: ok | F16: ok | G16: Faltou | H16: Faltou | I16: Faltou | J16: Faltou | K16: Faltou | L16: Faltou | M16: Faltou | N16: 8 | O16: 2
A17: Marcelo Augusto | B17: ok | C17: ok | D17: ok | E17: Faltou | F17: ok | G17: ok | H17: ok | I17: ok | J17: ok | K17: ok | L17: ok | M17: ok | N17: 1 | O17: 0
A18: Matheus Rocha | B18: Faltou | C18: Faltou | D18: ok | E18: ok | F18: ok | G18: ok | H18: Faltou | I18: Faltou | J18: ok | K18: ok | L18: Faltou | M18: Faltou | N18: 6 | O18: 0
A19: Raphael Fraga | B19: ok | C19: Faltou | D19: Faltou | E19: Faltou | F19: Faltou | G19: Faltou | H19: Faltou | I19: Faltou | J19: Faltou | K19: Faltou | L19: Faltou | M19: Faltou | N19: 11 | O19: 0
A20: Raphael Reis | B20: ok | C20: ok | D20: ok | E20: ok | F20: ok | G20: ok | H20: ok | I20: ok | J20: ok | K20: ok | L20: ok | M20: ok | N20: 0 | O20: 2
A21: Renato Martins | B21: ok | C21: ok | D21: ok | E21: ok | F21: Faltou | G21: Faltou | H21: Faltou | I21: Faltou | J21: ok | K21: ok | L21: ok | M21: ok | N21: 4 | O21: 0
A22: Thiago Santos | B22: Faltou | C22: Faltou | D22: Faltou | E22: Faltou | F22: Faltou | G22: Faltou | H22: Faltou | I22: Faltou | J22: Faltou | K22: Faltou | L22: Faltou | M22: Faltou | N22: 12 | O22: 0
A23: Victor Vaz | B23: ok | C23: Faltou | D23: Faltou | E23: Faltou | F23: Faltou | G23: Faltou | H23: Faltou | I23: Faltou | J23: Faltou | K23: Faltou | L23: Faltou | M23: Faltou | N23: 11 | O23: 0
A24: Luciano Macnamarra | B24: ok | C24: ok | D24: ok | E24: ok | F24: ok | G24: ok | H24: ok | I24: ok | J24: ok | K24: ok | L24: ok | M24: ok | N24: 0 | O24: 1
A25: Thiago Amaro | B25: ok | C25: ok | D25: ok | E25: ok | F25: ok | G25: Faltou | H25: ok | I25: ok | J25: Faltou | K25: Faltou | L25: ok | M25: ok | N25: 3 | O25: 2
A26: Pedro Toussaint | B26: ok | C26: Faltou | D26: Faltou | E26: Faltou | F26: Faltou | G26: Faltou | H26: Faltou | I26: Faltou | J26: Faltou | K26: Faltou | L26: Faltou | M26: Faltou | N26: 11 | O26: 0
A27: Cristiano Cendon | B27: Faltou | C27: ok | D27: ok | E27: ok | F27: ok | G27: ok | H27: ok | I27: ok | J27: ok | K27: ok | L27: ok | M27: ok | N27: 1 | O27: 1
A28: Gijo | B28: Faltou | C28: Faltou | D28: ok | E28: ok | F28: ok | G28: Faltou | H28: ok | I28: ok | J28: Faltou | K28: ok | L28: ok | M28: ok | N28: 4 | O28: 0
A29: Lucas Roscito | B29: Faltou | C29: Faltou | D29: Faltou | E29: Faltou | F29: Faltou | G29: Faltou | H29: ok | I29: ok | J29: Faltou | K29: Faltou | L29: Faltou | M29: Faltou | N29: 10 | O29: 0
N30: 0 | O30: 0
N31: 0 | O31: 0
N32: 0 | O32: 0
N33: 0 | O33: 0
N34: 0 | O34: 0
N35: 0 | O35: 0
N36: 0 | O36: 0
N37: 0 | O37: 0
N38: 0 | O38: 0
N39: 0 | O39: 0
N40: 0 | O40: 0
N41: 0 | O41: 0
N42: 0 | O42: 0
N43: 0 | O43: 0
N44: 0 | O44: 0
N45: 0 | O45: 0
N46: 0.5654761905

Sheet TABELA
A1: 2023 | E1: OK | I1: OK | M1: OK | Q1: OK | U1: OK | Y1: OK | AC1: OK | AG1: OK | AK1: OK | AO1: OK | AS1: OK | AW1: OK
D2: 1ª etapa | H2: 2ª etapa | L2: 3ª etapa | P2: 4ª etapa | T2: 5ª etapa | X2: 6ª etapa | AB2: 7ª etapa | AF2: 8ª etapa | AJ2: 9ª etapa | AN2: 10ª etapa | AR2: 11ª etapa | AV2: 12ª etapa
B4: Nome do (a) Piloto (a) | C4: Pontuação Geral | D4: Posição | E4: Pontos | F4: Bônus | G4: Penalidade | H4: Posição | I4: Pontos | J4: Bônus | K4: Penalidade | L4: Posição | M4: Pontos | N4: Bônus | O4: Penalidade | P4: Posição | Q4: Pontos | R4: Bônus | S4: Penalidade | T4: Posição | U4: Pontos | V4: Bônus | W4: Penalidade | X4: Posição | Y4: Pontos | Z4: Bônus | AA4: Penalidade | AB4: Posição | AC4: Pontos | AD4: Bônus | AE4: Penalidade | AF4: Posição | AG4: Pontos | AH4: Bônus | AI4: Penalidade | AJ4: Posição | AK4: Pontos | AL4: Bônus | AM4: Penalidade | AN4: Posição | AO4: Pontos | AP4: Bônus | AQ4: Penalidade | AR4: Posição | AS4: Pontos | AT4: Bônus | AU4: Penalidade | AV4: Posição | AW4: Pontos | AX4: Bônus | AY4: Penalidade | AZ4: 1º LUGAR | BA4: 2º LUGAR | BB4: 3º LUGAR | BC4: 4º LUGAR | BD4: 5º LUGAR | BE4: 6º LUGAR | BF4: 7º LUGAR | BG4: 8º LUGAR | BH4: 9º LUGAR | BI4: 10º LUGAR | BJ4: 11º LUGAR | BK4: 12º LUGAR | BL4: 13º LUGAR | BM4: 14º LUGAR | BN4: 15º LUGAR | BO4: 16º LUGAR | BP4: 17º LUGAR | BQ4: 18º LUGAR | BR4: 19º LUGAR | BS4: 20º LUGAR | BT4: 21º LUGAR | BU4: 22º LUGAR | BV4: 23º LUGAR | BW4: 24º LUGAR | BX4: 25º LUGAR | BY4: 26º LUGAR | BZ4: 27º LUGAR | CA4: 28º LUGAR | CB4: 29º LUGAR | CC4: 30º LUGAR | CD4: 31º LUGAR | CE4: 32º LUGAR | CF4: 33º LUGAR | CG4: 34º LUGAR | CH4: 35º LUGAR | CI4: 36º LUGAR | CJ4: 37º LUGAR | CK4: 38º LUGAR | CL4: 39º LUGAR | CM4: 40º LUGAR | CN4: 41º LUGAR
A5: 1 | B5: Alan Moreira | C5: 14 | D5: 11 | E5: 10 | I5: 0 | L5: 14 | M5: 7 | N5: 0 | O5: -5 | Q5: 0 | T5: 9 | U5: 12 | Y5: 0 | AA5: -5 | AC5: 0 | AG5: 0 | AI5: -5 | AK5: 0 | AO5: 0 | AS5: 0 | AW5: 0 | AZ5: 0 | BA5: 0 | BB5: 0 | BC5: 0 | BD5: 0 | BE5: 0 | BF5: 0 | BG5: 0 | BH5: 1 | BI5: 0 | BJ5: 1 | BK5: 0 | BL5: 0 | BM5: 1 | BN5: 0 | BO5: 0 | BP5: 0 | BQ5: 0 | BR5: 0 | BS5: 0 | BT5: 0 | BU5: 0 | BV5: 0 | BW5: 0 | BX5: 0 | BY5: 0 | BZ5: 0 | CA5: 0 | CB5: 0 | CC5: 0 | CD5: 0 | CE5: 0 | CF5: 0 | CG5: 0 | CH5: 0 | CI5: 0 | CJ5: 0 | CK5: 0 | CL5: 0 | CM5: 0 | CN5: 0
A6: 2 | B6: Alan Tacchi | C6: 0 | D6: 16 | E6: 5 | H6: 14 | I6: 7 | J6: 0 | M6: 0 | Q6: 0 | S6: -5 | U6: 0 | W6: -5 | Y6: 0 | AA6: -5 | AC6: 0 | AE6: -5 | AG6: 0 | AI6: -5 | AK6: 0 | AM6: -5 | AO6: 0 | AQ6: -5 | AS6: 0 | AW6: 0 | AZ6: 0 | BA6: 0 | BB6: 0 | BC6: 0 | BD6: 0 | BE6: 0 | BF6: 0 | BG6: 0 | BH6: 0 | BI6: 0 | BJ6: 0 | BK6: 0 | BL6: 0 | BM6: 1 | BN6: 0 | BO6: 1 | BP6: 0 | BQ6: 0 | BR6: 0 | BS6: 0 | BT6: 0 | BU6: 0 | BV6: 0 | BW6: 0 | BX6: 0 | BY6: 0 | BZ6: 0 | CA6: 0 | CB6: 0 | CC6: 0 | CD6: 0 | CE6: 0 | CF6: 0 | CG6: 0 | CH6: 0 | CI6: 0 | CJ6: 0 | CK6: 0 | CL6: 0 | CM6: 0 | CN6: 0
A7: 3 | B7: Alexandre Missionschnick | C7: 0 | D7: 30 | E7: 0 | G7: SIM | I7: 0 | M7: 0 | O7: -5 | Q7: 0 | S7: -5 | U7: 0 | W7: -5 | Y7: 0 | AA7: -5 | AC7: 0 | AE7: -5 | AG7: 0 | AI7: -5 | AK7: 0 | AM7: -5 | AO7: 0 | AQ7: -5 | AS7: 0 | AW7: 0 | AZ7: 0 | BA7: 0 | BB7: 0 | BC7: 0 | BD7: 0 | BE7: 0 | BF7: 0 | BG7: 0 | BH7: 0 | BI7: 0 | BJ7: 0 | BK7: 0 | BL7: 0 | BM7: 0 | BN7: 0 | BO7: 0 | BP7: 0 | BQ7: 0 | BR7: 0 | BS7: 0 | BT7: 0 | BU7: 0 | BV7: 0 | BW7: 0 | BX7: 0 | BY7: 0 | BZ7: 0 | CA7: 0 | CB7: 0 | CC7: 1 | CD7: 0 | CE7: 0 | CF7: 0 | CG7: 0 | CH7: 0 | CI7: 0 | CJ7: 0 | CK7: 0 | CL7: 0 | CM7: 0 | CN7: 0
A8: 4 | B8: Celso Dantas | C8: 11 | E8: 0 | I8: 0 | M8: 0 | Q8: 0 | U8: 0 | Y8: 0 | AB8: 10 | AC8: 11 | AG8: 0 | AK8: 0 | AO8: 0 | AS8: 0 | AW8: 0 | AZ8: 0 | BA8: 0 | BB8: 0 | BC8: 0 | BD8: 0 | BE8: 0 | BF8: 0 | BG8: 0 | BH8: 0 | BI8: 1 | BJ8: 0 | BK8: 0 | BL8: 0 | BM8: 0 | BN8: 0 | BO8: 0 | BP8: 0 | BQ8: 0 | BR8: 0 | BS8: 0 | BT8: 0 | BU8: 0 | BV8: 0 | BW8: 0 | BX8: 0 | BY8: 0 | BZ8: 0 | CA8: 0 | CB8: 0 | CC8: 0 | CD8: 0 | CE8: 0 | CF8: 0 | CG8: 0 | CH8: 0 | CI8: 0 | CJ8: 0 | CK8: 0 | CL8: 0 | CM8: 0 | CN8: 0
A9: 5 | B9: XXXXX | C9: 0 | E9: 0 | I9: 0 | M9: 0 | Q9: 0 | S9: SIM | U9: 0 | W9: SIM | Y9: 0 | AC9: 0 | AG9: 0 | AK9: 0 | AO9: 0 | AS9: 0 | AW9: 0 | AZ9: 0 | BA9: 0 | BB9: 0 | BC9: 0 | BD9: 0 | BE9: 0 | BF9: 0 | BG9: 0 | BH9: 0 | BI9: 0 | BJ9: 0 | BK9: 0 | BL9: 0 | BM9: 0 | BN9: 0 | BO9: 0 | BP9: 0 | BQ9: 0 | BR9: 0 | BS9: 0 | BT9: 0 | BU9: 0 | BV9: 0 | BW9: 0 | BX9: 0 | BY9: 0 | BZ9: 0 | CA9: 0 | CB9: 0 | CC9: 0 | CD9: 0 | CE9: 0 | CF9: 0 | CG9: 0 | CH9: 0 | CI9: 0 | CJ9: 0 | CK9: 0 | CL9: 0 | CM9: 0 | CN9: 0
A10: 6 | B10: Gustavo Barros | C10: 26 | D10: 5 | E10: 16 | H10: 11 | I10: 10 | J10: 0 | L10: 16 | M10: 5 | N10: 0 | Q10: 0 | U10: 0 | Y10: 0 | AC10: 0 | AG10: 0 | AK10: 0 | AO10: 0 | AQ10: -5 | AS10: 0 | AW10: 0 | AZ10: 0 | BA10: 0 | BB10: 0 | BC10: 0 | BD10: 1 | BE10: 0 | BF10: 0 | BG10: 0 | BH10: 0 | BI10: 0 | BJ10: 1 | BK10: 0 | BL10: 0 | BM10: 0 | BN10: 0 | BO10: 1 | BP10: 0 | BQ10: 0 | BR10: 0 | BS10: 0 | BT10: 0 | BU10: 0 | BV10: 0 | BW10: 0 | BX10: 0 | BY10: 0 | BZ10: 0 | CA10: 0 | CB10: 0 | CC10: 0 | CD10: 0 | CE10: 0 | CF10: 0 | CG10: 0 | CH10: 0 | CI10: 0 | CJ10: 0 | CK10: 0 | CL10: 0 | CM10: 0 | CN10: 0
A11: 7 | B11: Henrique Pereira | C11: 181 | D11: 3 | E11: 20 | H11: 15 | I11: 6 | J11: 0 | K11: SIM | L11: 6 | M11: 15 | N11: 0 | P11: 3 | Q11: 20 | R11: 1 | T11: 3 | U11: 20 | V11: 1 | X11: 7 | Y11: 14 | AB11: 11 | AC11: 10 | AF11: 3 | AG11: 20 | AJ11: 4 | AK11: 18 | AN11: 4 | AO11: 18 | AR11: 0 | AS11: 0 | AU11: SIM | AV11: 4 | AW11: 18 | AZ11: 0 | BA11: 0 | BB11: 4 | BC11: 3 | BD11: 0 | BE11: 1 | BF11: 1 | BG11: 0 | BH11: 0 | BI11: 0 | BJ11: 1 | BK11: 0 | BL11: 0 | BM11: 0 | BN11: 1 | BO11: 0 | BP11: 0 | BQ11: 0 | BR11: 0 | BS11: 0 | BT11: 0 | BU11: 0 | BV11: 0 | BW11: 0 | BX11: 0 | BY11: 0 | BZ11: 0 | CA11: 0 | CB11: 0 | CC11: 0 | CD11: 0 | CE11: 0 | CF11: 0 | CG11: 0 | CH11: 0 | CI11: 0 | CJ11: 0 | CK11: 0 | CL11: 0 | CM11: 0 | CN11: 0
A12: 8 | B12: Henry Douglas | C12: 28 | D12: 6 | E12: 15 | H12: 12 | I12: 9 | J12: 0 | L12: 12 | M12: 9 | N12: 0 | Q12: 0 | U12: 0 | W12: -5 | Y12: 0 | AC12: 0 | AG12: 0 | AK12: 0 | AO12: 0 | AS12: 0 | AW12: 0 | AZ12: 0 | BA12: 0 | BB12: 0 | BC12: 0 | BD12: 0 | BE12: 1 | BF12: 0 | BG12: 0 | BH12: 0 | BI12: 0 | BJ12: 0 | BK12: 2 | BL12: 0 | BM12: 0 | BN12: 0 | BO12: 0 | BP12: 0 | BQ12: 0 | BR12: 0 | BS12: 0 | BT12: 0 | BU12: 0 | BV12: 0 | BW12: 0 | BX12: 0 | BY12: 0 | BZ12: 0 | CA12: 0 | CB12: 0 | CC12: 0 | CD12: 0 | CE12: 0 | CF12: 0 | CG12: 0 | CH12: 0 | CI12: 0 | CJ12: 0 | CK12: 0 | CL12: 0 | CM12: 0 | CN12: 0
A13: 9 | B13: Iago Bastos | C13: 0 | D13: 12 | E13: 9 | I13: 0 | K13: -5 | M13: 0 | O13: -5 | Q13: 0 | S13: -5 | U13: 0 | W13: -5 | Y13: 0 | AA13: -5 | AC13: 0 | AE13: -5 | AG13: 0 | AI13: -5 | AK13: 0 | AM13: -5 | AO13: 0 | AQ13: -5 | AS13: 0 | AW13: 0 | AZ13: 0 | BA13: 0 | BB13: 0 | BC13: 0 | BD13: 0 | BE13: 0 | BF13: 0 | BG13: 0 | BH13: 0 | BI13: 0 | BJ13: 0 | BK13: 1 | BL13: 0 | BM13: 0 | BN13: 0 | BO13: 0 | BP13: 0 | BQ13: 0 | BR13: 0 | BS13: 0 | BT13: 0 | BU13: 0 | BV13: 0 | BW13: 0 | BX13: 0 | BY13: 0 | BZ13: 0 | CA13: 0 | CB13: 0 | CC13: 0 | CD13: 0 | CE13: 0 | CF13: 0 | CG13: 0 | CH13: 0 | CI13: 0 | CJ13: 0 | CK13: 0 | CL13: 0 | CM13: 0 | CN13: 0
A14: 10 | B14: João Lott | C14: 175 | D14: 2 | E14: 22 | H14: 7 | I14: 14 | J14: 0 | L14: 8 | M14: 13 | N14: 0 | Q14: 0 | T14: 1 | U14: 25 | X14: 3 | Y14: 20 | AB14: 1 | AC14: 25 | AD14: 1 | AF14: 8 | AG14: 13 | AJ14: 8 | AK14: 13 | AN14: 7 | AO14: 14 | AS14: 0 | AV14: 7 | AW14: 14 | AX14: 1 | AZ14: 2 | BA14: 1 | BB14: 1 | BC14: 0 | BD14: 0 | BE14: 0 | BF14: 3 | BG14: 3 | BH14: 0 | BI14: 0 | BJ14: 0 | BK14: 0 | BL14: 0 | BM14: 0 | BN14: 0 | BO14: 0 | BP14: 0 | BQ14: 0 | BR14: 0 | BS14: 0 | BT14: 0 | BU14: 0 | BV14: 0 | BW14: 0 | BX14: 0 | BY14: 0 | BZ14: 0 | CA14: 0 | CB14: 0 | CC14: 0 | CD14: 0 | CE14: 0 | CF14: 0 | CG14: 0 | CH14: 0 | CI14: 0 | CJ14: 0 | CK14: 0 | CL14: 0 | CM14: 0 | CN14: 0
A15: 11 | B15: Jucimar Vieira | C15: 51 | D15: 20 | E15: 1 | H15: 1 | I15: 25 | J15: 0 | L15: 10 | M15: 11 | N15: 0 | P15: 10 | Q15: 11 | T15: 8 | U15: 13 | Y15: 0 | AC15: 0 | AG15: 0 | AK15: 0 | AM15: -5 | AO15: 0 | AQ15: -5 | AS15: 0 | AW15: 0 | AZ15: 1 | BA15: 0 | BB15: 0 | BC15: 0 | BD15: 0 | BE15: 0 | BF15: 0 | BG15: 1 | BH15: 0 | BI15: 2 | BJ15: 0 | BK15: 0 | BL15: 0 | BM15: 0 | BN15: 0 | BO15: 0 | BP15: 0 | BQ15: 0 | BR15: 0 | BS15: 1 | BT15: 0 | BU15: 0 | BV15: 0 | BW15: 0 | BX15: 0 | BY15: 0 | BZ15: 0 | CA15: 0 | CB15: 0 | CC15: 0 | CD15: 0 | CE15: 0 | CF15: 0 | CG15: 0 | CH15: 0 | CI15: 0 | CJ15: 0 | CK15: 0 | CL15: 0 | CM15: 0 | CN15: 0
A16: 12 | B16: Levindo Neto | C16: 57 | D16: 10 | E16: 11 | H16: 27 | I16: 0 | J16: 0 | K16: SIM | L16: 17 | M16: 4 | N16: 0 | Q16: 0 | U16: 0 | Y16: 0 | AA16: -5 | AB16: 8 | AC16: 13 | AG16: 0 | AJ16: 7 | AK16: 14 | AO16: 0 | AQ16: -5 | AR16: 7 | AS16: 14 | AV16: 10 | AW16: 11 | AZ16: 0 | BA16: 0 | BB16: 0 | BC16: 0 | BD16: 0 | BE16: 0 | BF16: 2 | BG16: 1 | BH16: 0 | BI16: 2 | BJ16: 0 | BK16: 0 | BL16: 0 | BM16: 0 | BN16: 0 | BO16: 0 | BP16: 1 | BQ16: 0 | BR16: 0 | BS16: 0 | BT16: 0 | BU16: 0 | BV16: 0 | BW16: 0 | BX16: 0 | BY16: 0 | BZ16: 1 | CA16: 0 | CB16: 0 | CC16: 0 | CD16: 0 | CE16: 0 | CF16: 0 | CG16: 0 | CH16: 0 | CI16: 0 | CJ16: 0 | CK16: 0 | CL16: 0 | CM16: 0 | CN16: 0
A17: 13 | B17: Lisandro Sodré | C17: 0 | D17: 17 | E17: 4 | H17: 16 | I17: 5 | J17: 0 | M17: 0 | Q17: 0 | U17: 0 | Y17: 0 | AA17: -5 | AC17: 0 | AE17: -5 | AG17: 0 | AI17: -5 | AK17: 0 | AM17: -5 | AO17: 0 | AQ17: -5 | AS17: 0 | AW17: 0 | AZ17: 0 | BA17: 0 | BB17: 0 | BC17: 0 | BD17: 0 | BE17: 0 | BF17: 0 | BG17: 0 | BH17: 0 | BI17: 0 | BJ17: 0 | BK17: 0 | BL17: 0 | BM17: 0 | BN17: 0 | BO17: 1 | BP17: 1 | BQ17: 0 | BR17: 0 | BS17: 0 | BT17: 0 | BU17: 0 | BV17: 0 | BW17: 0 | BX17: 0 | BY17: 0 | BZ17: 0 | CA17: 0 | CB17: 0 | CC17: 0 | CD17: 0 | CE17: 0 | CF17: 0 | CG17: 0 | CH17: 0 | CI17: 0 | CJ17: 0 | CK17: 0 | CL17: 0 | CM17: 0 | CN17: 0
A18: 14 | B18: Lucas Bessas | C18: 205 | D18: 4 | E18: 18 | H18: 4 | I18: 18 | J18: 0 | L18: 1 | M18: 25 | N18: 1 | P18: 1 | Q18: 25 | U18: 0 | X18: 5 | Y18: 16 | AB18: 3 | AC18: 20 | AG18: 0 | AI18: SIM | AJ18: 1 | AK18: 25 | AL18: 1 | AN18: 6 | AO18: 15 | AR18: 1 | AS18: 25 | AT18: 1 | AV18: 6 | AW18: 15 | AZ18: 4 | BA18: 0 | BB18: 1 | BC18: 2 | BD18: 1 | BE18: 2 | BF18: 0 | BG18: 0 | BH18: 0 | BI18: 0 | BJ18: 0 | BK18: 0 | BL18: 0 | BM18: 0 | BN18: 0 | BO18: 0 | BP18: 0 | BQ18: 0 | BR18: 0 | BS18: 0 | BT18: 0 | BU18: 0 | BV18: 0 | BW18: 0 | BX18: 0 | BY18: 0 | BZ18: 0 | CA18: 0 | CB18: 0 | CC18: 0 | CD18: 0 | CE18: 0 | CF18: 0 | CG18: 0 | CH18: 0 | CI18: 0 | CJ18: 0 | CK18: 0 | CL18: 0 | CM18: 0 | CN18: 0
A19: 15 | B19: Luciano Robervine | C19: 14 | D19: 19 | E19: 2 | G19: SIM | H19: 3 | I19: 20 | J19: 1 | M19: 0 | O19: -5 | P19: 5 | Q19: 16 | T19: 0 | U19: 0 | W19: SIM | Y19: 0 | AA19: -5 | AC19: 0 | AG19: 0 | AI19: -5 | AK19: 0 | AM19: -5 | AO19: 0 | AQ19: -5 | AS19: 0 | AW19: 0 | AZ19: 0 | BA19: 0 | BB19: 1 | BC19: 0 | BD19: 1 | BE19: 0 | BF19: 0 | BG19: 0 | BH19: 0 | BI19: 0 | BJ19: 0 | BK19: 0 | BL19: 0 | BM19: 0 | BN19: 0 | BO19: 0 | BP19: 0 | BQ19: 0 | BR19: 1 | BS19: 0 | BT19: 0 | BU19: 0 | BV19: 0 | BW19: 0 | BX19: 0 | BY19: 0 | BZ19: 0 | CA19: 0 | CB19: 0 | CC19: 0 | CD19: 0 | CE19: 0 | CF19: 0 | CG19: 0 | CH19: 0 | CI19: 0 | CJ19: 0 | CK19: 0 | CL19: 0 | CM19: 0 | CN19: 0
A20: 16 | B20: Marcelo Augusto | C20: 214 | D20: 1 | E20: 25 | F20: 1 | H20: 9 | I20: 12 | J20: 0 | L20: 9 | M20: 12 | N20: 0 | Q20: 0 | T20: 7 | U20: 14 | X20: 1 | Y20: 25 | Z20: 1 | AB20: 2 | AC20: 22 | AF20: 2 | AG20: 22 | AJ20: 5 | AK20: 16 | AN20: 2 | AO20: 22 | AR20: 3 | AS20: 20 | AV20: 2 | AW20: 22 | AZ20: 2 | BA20: 4 | BB20: 1 | BC20: 0 | BD20: 1 | BE20: 0 | BF20: 1 | BG20: 0 | BH20: 2 | BI20: 0 | BJ20: 0 | BK20: 0 | BL20: 0 | BM20: 0 | BN20: 0 | BO20: 0 | BP20: 0 | BQ20: 0 | BR20: 0 | BS20: 0 | BT20: 0 | BU20: 0 | BV20: 0 | BW20: 0 | BX20: 0 | BY20: 0 | BZ20: 0 | CA20: 0 | CB20: 0 | CC20: 0 | CD20: 0 | CE20: 0 | CF20: 0 | CG20: 0 | CH20: 0 | CI20: 0 | CJ20: 0 | CK20: 0 | CL20: 0 | CM20: 0 | CN20: 0
A21: 17 | B21: Matheus Rocha | C21: 113 | E21: 0 | I21: 0 | L21: 2 | M21: 22 | N21: 0 | P21: 2 | Q21: 22 | T21: 6 | U21: 15 | X21: 2 | Y21: 22 | AC21: 0 | AG21: 0 | AJ21: 3 | AK21: 20 | AN21: 9 | AO21: 12 | AS21: 0 | AW21: 0 | AZ21: 0 | BA21: 3 | BB21: 1 | BC21: 0 | BD21: 0 | BE21: 1 | BF21: 0 | BG21: 0 | BH21: 1 | BI21: 0 | BJ21: 0 | BK21: 0 | BL21: 0 | BM21: 0 | BN21: 0 | BO21: 0 | BP21: 0 | BQ21: 0 | BR21: 0 | BS21: 0 | BT21: 0 | BU21: 0 | BV21: 0 | BW21: 0 | BX21: 0 | BY21: 0 | BZ21: 0 | CA21: 0 | CB21: 0 | CC21: 0 | CD21: 0 | CE21: 0 | CF21: 0 | CG21: 0 | CH21: 0 | CI21: 0 | CJ21: 0 | CK21: 0 | CL21: 0 | CM21: 0 | CN21: 0
A22: 18 | B22: Raphael Fraga | C22: 0 | D22: 14 | E22: 7 | I22: 0 | K22: -5 | M22: 0 | Q22: 0 | S22: -5 | U22: 0 | W22: -5 | Y22: 0 | AA22: -5 | AC22: 0 | AE22: -5 | AG22: 0 | AI22: -5 | AK22: 0 | AM22: -5 | AO22: 0 | AQ22: -5 | AS22: 0 | AW22: 0 | AZ22: 0 | BA22: 0 | BB22: 0 | BC22: 0 | BD22: 0 | BE22: 0 | BF22: 0 | BG22: 0 | BH22: 0 | BI22: 0 | BJ22: 0 | BK22: 0 | BL22: 0 | BM22: 1 | BN22: 0 | BO22: 0 | BP22: 0 | BQ22: 0 | BR22: 0 | BS22: 0 | BT22: 0 | BU22: 0 | BV22: 0 | BW22: 0 | BX22: 0 | BY22: 0 | BZ22: 0 | CA22: 0 | CB22: 0 | CC22: 0 | CD22: 0 | CE22: 0 | CF22: 0 | CG22: 0 | CH22: 0 | CI22: 0 | CJ22: 0 | CK22: 0 | CL22: 0 | CM22: 0 | CN22: 0
A23: 19 | B23: Raphael Reis | C23: 183 | D23: 15 | E23: 6 | G23: SIM | H23: 6 | I23: 15 | J23: 0 | L23: 4 | M23: 18 | N23: 0 | P23: 4 | Q23: 18 | T23: 5 | U23: 16 | X23: 26 | Y23: 0 | AA23: SIM | AB23: 6 | AC23: 15 | AF23: 1 | AG23: 25 | AH23: 1 | AJ23: 9 | AK23: 12 | AN23: 5 | AO23: 16 | AR23: 5 | AS23: 16 | AV23: 1 | AW23: 25 | AZ23: 2 | BA23: 0 | BB23: 0 | BC23: 2 | BD23: 3 | BE23: 2 | BF23: 0 | BG23: 0 | BH23: 1 | BI23: 0 | BJ23: 0 | BK23: 0 | BL23: 0 | BM23: 0 | BN23: 1 | BO23: 0 | BP23: 0 | BQ23: 0 | BR23: 0 | BS23: 0 | BT23: 0 | BU23: 0 | BV23: 0 | BW23: 0 | BX23: 0 | BY23: 1 | BZ23: 0 | CA23: 0 | CB23: 0 | CC23: 0 | CD23: 0 | CE23: 0 | CF23: 0 | CG23: 0 | CH23: 0 | CI23: 0 | CJ23: 0 | CK23: 0 | CL23: 0 | CM23: 0 | CN23: 0
A24: 20 | B24: Renato Martins | C24: 94 | D24: 21 | E24: 1 | H24: 8 | I24: 13 | J24: 0 | L24: 3 | M24: 20 | N24: 0 | P24: 9 | Q24: 12 | U24: 0 | Y24: 0 | AC24: 0 | AG24: 0 | AI24: -5 | AJ24: 6 | AK24: 15 | AN24: 10 | AO24: 11 | AR24: 6 | AS24: 15 | AV24: 9 | AW24: 12 | AZ24: 0 | BA24: 0 | BB24: 1 | BC24: 0 | BD24: 0 | BE24: 2 | BF24: 0 | BG24: 1 | BH24: 2 | BI24: 1 | BJ24: 0 | BK24: 0 | BL24: 0 | BM24: 0 | BN24: 0 | BO24: 0 | BP24: 0 | BQ24: 0 | BR24: 0 | BS24: 0 | BT24: 1 | BU24: 0 | BV24: 0 | BW24: 0 | BX24: 0 | BY24: 0 | BZ24: 0 | CA24: 0 | CB24: 0 | CC24: 0 | CD24: 0 | CE24: 0 | CF24: 0 | CG24: 0 | CH24: 0 | CI24: 0 | CJ24: 0 | CK24: 0 | CL24: 0 | CM24: 0 | CN24: 0
A25: 21 | B25: Thiago Santos | C25: 0 | E25: 0 | I25: 0 | K25: -5 | M25: 0 | O25: -5 | Q25: 0 | S25: -5 | U25: 0 | W25: -5 | Y25: 0 | AA25: -5 | AC25: 0 | AE25: -5 | AG25: 0 | AI25: -5 | AK25: 0 | AM25: -5 | AO25: 0 | AQ25: -5 | AS25: 0 | AW25: 0 | AZ25: 0 | BA25: 0 | BB25: 0 | BC25: 0 | BD25: 0 | BE25: 0 | BF25: 0 | BG25: 0 | BH25: 0 | BI25: 0 | BJ25: 0 | BK25: 0 | BL25: 0 | BM25: 0 | BN25: 0 | BO25: 0 | BP25: 0 | BQ25: 0 | BR25: 0 | BS25: 0 | BT25: 0 | BU25: 0 | BV25: 0 | BW25: 0 | BX25: 0 | BY25: 0 | BZ25: 0 | CA25: 0 | CB25: 0 | CC25: 0 | CD25: 0 | CE25: 0 | CF25: 0 | CG25: 0 | CH25: 0 | CI25: 0 | CJ25: 0 | CK25: 0 | CL25: 0 | CM25: 0 | CN25: 0
A26: 22 | B26: Victor Vaz | C26: 0 | D26: 9 | E26: 12 | I26: 0 | K26: -5 | M26: 0 | Q26: 0 | S26: -5 | U26: 0 | Y26: 0 | AA26: -5 | AC26: 0 | AE26: -5 | AG26: 0 | AI26: -5 | AK26: 0 | AM26: -5 | AO26: 0 | AQ26: -5 | AS26: 0 | AW26: 0 | AZ26: 0 | BA26: 0 | BB26: 0 | BC26: 0 | BD26: 0 | BE26: 0 | BF26: 0 | BG26: 0 | BH26: 1 | BI26: 0 | BJ26: 0 | BK26: 0 | BL26: 0 | BM26: 0 | BN26: 0 | BO26: 0 | BP26: 0 | BQ26: 0 | BR26: 0 | BS26: 0 | BT26: 0 | BU26: 0 | BV26: 0 | BW26: 0 | BX26: 0 | BY26: 0 | BZ26: 0 | CA26: 0 | CB26: 0 | CC26: 0 | CD26: 0 | CE26: 0 | CF26: 0 | CG26: 0 | CH26: 0 | CI26: 0 | CJ26: 0 | CK26: 0 | CL26: 0 | CM26: 0 | CN26: 0
A27: 23 | B27: Luciano Macnamarra | C27: 185 | D27: 8 | E27: 13 | H27: 5 | I27: 16 | J27: 0 | L27: 13 | M27: 8 | N27: 0 | P27: 7 | Q27: 14 | T27: 11 | U27: 10 | X27: 4 | Y27: 18 | AB27: 5 | AC27: 16 | AF27: 5 | AG27: 16 | AJ27: 15 | AK27: 6 | AM27: SIM | AN27: 1 | AO27: 25 | AP27: 1 | AR27: 2 | AS27: 22 | AV27: 3 | AW27: 20 | AZ27: 1 | BA27: 1 | BB27: 1 | BC27: 1 | BD27: 3 | BE27: 0 | BF27: 1 | BG27: 1 | BH27: 0 | BI27: 0 | BJ27: 1 | BK27: 0 | BL27: 1 | BM27: 0 | BN27: 1 | BO27: 0 | BP27: 0 | BQ27: 0 | BR27: 0 | BS27: 0 | BT27: 0 | BU27: 0 | BV27: 0 | BW27: 0 | BX27: 0 | BY27: 0 | BZ27: 0 | CA27: 0 | CB27: 0 | CC27: 0 | CD27: 0 | CE27: 0 | CF27: 0 | CG27: 0 | CH27: 0 | CI27: 0 | CJ27: 0 | CK27: 0 | CL27: 0 | CM27: 0 | CN27: 0
A28: 24 | B28: Thiago Amaro | C28: 65 | D28: 18 | E28: 3 | H28: 13 | I28: 8 | J28: 0 | L28: 15 | M28: 6 | N28: 0 | P28: 11 | Q28: 10 | T28: 10 | U28: 11 | Y28: 0 | AB28: 0 | AC28: 0 | AE28: SIM | AF28: 7 | AG28: 14 | AK28: 0 | AO28: 0 | AR28: 8 | AS28: 13 | AV28: 30 | AW28: 0 | AY28: SIM | AZ28: 0 | BA28: 0 | BB28: 0 | BC28: 0 | BD28: 0 | BE28: 0 | BF28: 1 | BG28: 1 | BH28: 0 | BI28: 1 | BJ28: 1 | BK28: 0 | BL28: 1 | BM28: 0 | BN28: 1 | BO28: 0 | BP28: 0 | BQ28: 1 | BR28: 0 | BS28: 0 | BT28: 0 | BU28: 0 | BV28: 0 | BW28: 0 | BX28: 0 | BY28: 0 | BZ28: 0 | CA28: 0 | CB28: 0 | CC28: 1 | CD28: 0 | CE28: 0 | CF28: 0 | CG28: 0 | CH28: 0 | CI28: 0 | CJ28: 0 | CK28: 0 | CL28: 0 | CM28: 0 | CN28: 0
A29: 25 | B29: Pedro Toussaint | C29: 0 | D29: 13 | E29: 8 | I29: 0 | K29: -5 | M29: 0 | O29: -5 | Q29: 0 | S29: -5 | U29: 0 | W29: -5 | Y29: 0 | AA29: -5 | AC29: 0 | AE29: -5 | AG29: 0 | AI29: -5 | AK29: 0 | AM29: -5 | AO29: 0 | AQ29: -5 | AS29: 0 | AW29: 0 | AZ29: 0 | BA29: 0 | BB29: 0 | BC29: 0 | BD29: 0 | BE29: 0 | BF29: 0 | BG29: 0 | BH29: 0 | BI29: 0 | BJ29: 0 | BK29: 0 | BL29: 1 | BM29: 0 | BN29: 0 | BO29: 0 | BP29: 0 | BQ29: 0 | BR29: 0 | BS29: 0 | BT29: 0 | BU29: 0 | BV29: 0 | BW29: 0 | BX29: 0 | BY29: 0 | BZ29: 0 | CA29: 0 | CB29: 0 | CC29: 0 | CD29: 0 | CE29: 0 | CF29: 0 | CG29: 0 | CH29: 0 | CI29: 0 | CJ29: 0 | CK29: 0 | CL29: 0 | CM29: 0 | CN29: 0
A30: 26 | B30: Cristiano Cendon | C30: 151 | E30: 0 | H30: 10 | I30: 11 | J30: 0 | L30: 11 | M30: 10 | N30: 0 | P30: 8 | Q30: 13 | T30: 2 | U30: 22 | X30: 6 | Y30: 15 | AB30: 7 | AC30: 14 | AF30: 4 | AG30: 18 | AJ30: 2 | AK30: 22 | AN30: 8 | AO30: 13 | AR30: 0 | AS30: 0 | AU30: SIM | AV30: 8 | AW30: 13 | AZ30: 0 | BA30: 2 | BB30: 0 | BC30: 1 | BD30: 0 | BE30: 1 | BF30: 1 | BG30: 3 | BH30: 0 | BI30: 1 | BJ30: 1 | BK30: 0 | BL30: 0 | BM30: 0 | BN30: 0 | BO30: 0 | BP30: 0 | BQ30: 0 | BR30: 0 | BS30: 0 | BT30: 0 | BU30: 0 | BV30: 0 | BW30: 0 | BX30: 0 | BY30: 0 | BZ30: 0 | CA30: 0 | CB30: 0 | CC30: 0 | CD30: 0 | CE30: 0 | CF30: 0 | CG30: 0 | CH30: 0 | CI30: 0 | CJ30: 0 | CK30: 0 | CL30: 0 | CM30: 0 | CN30: 0
A31: 27 | B31: Gijo | C31: 121 | E31: 0 | I31: 0 | L31: 5 | M31: 16 | N31: 0 | P31: 6 | Q31: 15 | S31: -5 | T31: 4 | U31: 18 | Y31: 0 | AA31: -5 | AB31: 4 | AC31: 18 | AF31: 6 | AG31: 15 | AK31: 0 | AM31: -5 | AN31: 3 | AO31: 20 | AR31: 4 | AS31: 18 | AV31: 5 | AW31: 16 | AZ31: 0 | BA31: 0 | BB31: 1 | BC31: 3 | BD31: 2 | BE31: 2 | BF31: 0 | BG31: 0 | BH31: 0 | BI31: 0 | BJ31: 0 | BK31: 0 | BL31: 0 | BM31: 0 | BN31: 0 | BO31: 0 | BP31: 0 | BQ31: 0 | BR31: 0 | BS31: 0 | BT31: 0 | BU31: 0 | BV31: 0 | BW31: 0 | BX31: 0 | BY31: 0 | BZ31: 0 | CA31: 0 | CB31: 0 | CC31: 0 | CD31: 0 | CE31: 0 | CF31: 0 | CG31: 0 | CH31: 0 | CI31: 0 | CJ31: 0 | CK31: 0 | CL31: 0 | CM31: 0 | CN31: 0
A32: 28 | B32: Lucas Roscito | C32: 9 | E32: 0 | I32: 0 | M32: 0 | Q32: 0 | U32: 0 | Y32: 0 | AB32: 9 | AC32: 12 | AF32: 9 | AG32: 12 | AI32: -5 | AK32: 0 | AM32: -5 | AO32: 0 | AQ32: -5 | AS32: 0 | AW32: 0 | AZ32: 0 | BA32: 0 | BB32: 0 | BC32: 0 | BD32: 0 | BE32: 0 | BF32: 0 | BG32: 0 | BH32: 2 | BI32: 0 | BJ32: 0 | BK32: 0 | BL32: 0 | BM32: 0 | BN32: 0 | BO32: 0 | BP32: 0 | BQ32: 0 | BR32: 0 | BS32: 0 | BT32: 0 | BU32: 0 | BV32: 0 | BW32: 0 | BX32: 0 | BY32: 0 | BZ32: 0 | CA32: 0 | CB32: 0 | CC32: 0 | CD32: 0 | CE32: 0 | CF32: 0 | CG32: 0 | CH32: 0 | CI32: 0 | CJ32: 0 | CK32: 0 | CL32: 0 | CM32: 0 | CN32: 0
A33: 29 | C33: 0 | E33: 0 | I33: 0 | M33: 0 | Q33: 0 | U33: 0 | Y33: 0 | AC33: 0 | AG33: 0 | AK33: 0 | AO33: 0 | AS33: 0 | AW33: 0 | AZ33: 0 | BA33: 0 | BB33: 0 | BC33: 0 | BD33: 0 | BE33: 0 | BF33: 0 | BG33: 0 | BH33: 0 | BI33: 0 | BJ33: 0 | BK33: 0 | BL33: 0 | BM33: 0 | BN33: 0 | BO33: 0 | BP33: 0 | BQ33: 0 | BR33: 0 | BS33: 0 | BT33: 0 | BU33: 0 | BV33: 0 | BW33: 0 | BX33: 0 | BY33: 0 | BZ33: 0 | CA33: 0 | CB33: 0 | CC33: 0 | CD33: 0 | CE33: 0 | CF33: 0 | CG33: 0 | CH33: 0 | CI33: 0 | CJ33: 0 | CK33: 0 | CL33: 0 | CM33: 0 | CN33: 0
A34: 30 | C34: 0 | E34: 0 | I34: 0 | M34: 0 | Q34: 0 | U34: 0 | Y34: 0 | AC34: 0 | AG34: 0 | AK34: 0 | AO34: 0 | AS34: 0 | AW34: 0 | AZ34: 0 | BA34: 0 | BB34: 0 | BC34: 0 | BD34: 0 | BE34: 0 | BF34: 0 | BG34: 0 | BH34: 0 | BI34: 0 | BJ34: 0 | BK34: 0 | BL34: 0 | BM34: 0 | BN34: 0 | BO34: 0 | BP34: 0 | BQ34: 0 | BR34: 0 | BS34: 0 | BT34: 0 | BU34: 0 | BV34: 0 | BW34: 0 | BX34: 0 | BY34: 0 | BZ34: 0 | CA34: 0 | CB34: 0 | CC34: 0 | CD34: 0 | CE34: 0 | CF34: 0 | CG34: 0 | CH34: 0 | CI34: 0 | CJ34: 0 | CK34: 0 | CL34: 0 | CM34: 0 | CN34: 0
A35: 31 | C35: 0 | E35: 0 | I35: 0 | M35: 0 | Q35: 0 | U35: 0 | Y35: 0 | AC35: 0 | AG35: 0 | AK35: 0 | AO35: 0 | AS35: 0 | AW35: 0 | AZ35: 0 | BA35: 0 | BB35: 0 | BC35: 0 | BD35: 0 | BE35: 0 | BF35: 0 | BG35: 0 | BH35: 0 | BI35: 0 | BJ35: 0 | BK35: 0 | BL35: 0 | BM35: 0 | BN35: 0 | BO35: 0 | BP35: 0 | BQ35: 0 | BR35: 0 | BS35: 0 | BT35: 0 | BU35: 0 | BV35: 0 | BW35: 0 | BX35: 0 | BY35: 0 | BZ35: 0 | CA35: 0 | CB35: 0 | CC35: 0 | CD35: 0 | CE35: 0 | CF35: 0 | CG35: 0 | CH35: 0 | CI35: 0 | CJ35: 0 | CK35: 0 | CL35: 0 | CM35: 0 | CN35: 0
A36: 32 | C36: 0 | E36: 0 | I36: 0 | M36: 0 | Q36: 0 | U36: 0 | Y36: 0 | AC36: 0 | AG36: 0 | AK36: 0 | AO36: 0 | AS36: 0 | AW36: 0 | AZ36: 0 | BA36: 0 | BB36: 0 | BC36: 0 | BD36: 0 | BE36: 0 | BF36: 0 | BG36: 0 | BH36: 0 | BI36: 0 | BJ36: 0 | BK36: 0 | BL36: 0 | BM36: 0 | BN36: 0 | BO36: 0 | BP36: 0 | BQ36: 0 | BR36: 0 | BS36: 0 | BT36: 0 | BU36: 0 | BV36: 0 | BW36: 0 | BX36: 0 | BY36: 0 | BZ36: 0 | CA36: 0 | CB36: 0 | CC36: 0 | CD36: 0 | CE36: 0 | CF36: 0 | CG36: 0 | CH36: 0 | CI36: 0 | CJ36: 0 | CK36: 0 | CL36: 0 | CM36: 0 | CN36: 0
A37: 33 | C37: 0 | E37: 0 | I37: 0 | M37: 0 | Q37: 0 | U37: 0 | Y37: 0 | AC37: 0 | AG37: 0 | AK37: 0 | AO37: 0 | AS37: 0 | AW37: 0 | AZ37: 0 | BA37: 0 | BB37: 0 | BC37: 0 | BD37: 0 | BE37: 0 | BF37: 0 | BG37: 0 | BH37: 0 | BI37: 0 | BJ37: 0 | BK37: 0 | BL37: 0 | BM37: 0 | BN37: 0 | BO37: 0 | BP37: 0 | BQ37: 0 | BR37: 0 | BS37: 0 | BT37: 0 | BU37: 0 | BV37: 0 | BW37: 0 | BX37: 0 | BY37: 0 | BZ37: 0 | CA37: 0 | CB37: 0 | CC37: 0 | CD37: 0 | CE37: 0 | CF37: 0 | CG37: 0 | CH37: 0 | CI37: 0 | CJ37: 0 | CK37: 0 | CL37: 0 | CM37: 0 | CN37: 0
A38: 34 | C38: 0 | E38: 0 | I38: 0 | M38: 0 | Q38: 0 | U38: 0 | Y38: 0 | AC38: 0 | AG38: 0 | AK38: 0 | AO38: 0 | AS38: 0 | AW38: 0 | AZ38: 0 | BA38: 0 | BB38: 0 | BC38: 0 | BD38: 0 | BE38: 0 | BF38: 0 | BG38: 0 | BH38: 0 | BI38: 0 | BJ38: 0 | BK38: 0 | BL38: 0 | BM38: 0 | BN38: 0 | BO38: 0 | BP38: 0 | BQ38: 0 | BR38: 0 | BS38: 0 | BT38: 0 | BU38: 0 | BV38: 0 | BW38: 0 | BX38: 0 | BY38: 0 | BZ38: 0 | CA38: 0 | CB38: 0 | CC38: 0 | CD38: 0 | CE38: 0 | CF38: 0 | CG38: 0 | CH38: 0 | CI38: 0 | CJ38: 0 | CK38: 0 | CL38: 0 | CM38: 0 | CN38: 0
A39: 35 | C39: 0 | E39: 0 | I39: 0 | M39: 0 | Q39: 0 | U39: 0 | Y39: 0 | AC39: 0 | AG39: 0 | AK39: 0 | AO39: 0 | AS39: 0 | AW39: 0 | AZ39: 0 | BA39: 0 | BB39: 0 | BC39: 0 | BD39: 0 | BE39: 0 | BF39: 0 | BG39: 0 | BH39: 0 | BI39: 0 | BJ39: 0 | BK39: 0 | BL39: 0 | BM39: 0 | BN39: 0 | BO39: 0 | BP39: 0 | BQ39: 0 | BR39: 0 | BS39: 0 | BT39: 0 | BU39: 0 | BV39: 0 | BW39: 0 | BX39: 0 | BY39: 0 | BZ39: 0 | CA39: 0 | CB39: 0 | CC39: 0 | CD39: 0 | CE39: 0 | CF39: 0 | CG39: 0 | CH39: 0 | CI39: 0 | CJ39: 0 | CK39: 0 | CL39: 0 | CM39: 0 | CN39: 0
A40: 36 | C40: 0 | E40: 0 | I40: 0 | M40: 0 | Q40: 0 | U40: 0 | Y40: 0 | AC40: 0 | AG40: 0 | AK40: 0 | AO40: 0 | AS40: 0 | AW40: 0 | AZ40: 0 | BA40: 0 | BB40: 0 | BC40: 0 | BD40: 0 | BE40: 0 | BF40: 0 | BG40: 0 | BH40: 0 | BI40: 0 | BJ40: 0 | BK40: 0 | BL40: 0 | BM40: 0 | BN40: 0 | BO40: 0 | BP40: 0 | BQ40: 0 | BR40: 0 | BS40: 0 | BT40: 0 | BU40: 0 | BV40: 0 | BW40: 0 | BX40: 0 | BY40: 0 | BZ40: 0 | CA40: 0 | CB40: 0 | CC40: 0 | CD40: 0 | CE40: 0 | CF40: 0 | CG40: 0 | CH40: 0 | CI40: 0 | CJ40: 0 | CK40: 0 | CL40: 0 | CM40: 0 | CN40: 0
A41: 37 | C41: 0 | E41: 0 | I41: 0 | M41: 0 | Q41: 0 | U41: 0 | Y41: 0 | AC41: 0 | AG41: 0 | AK41: 0 | AO41: 0 | AS41: 0 | AW41: 0 | AZ41: 0 | BA41: 0 | BB41: 0 | BC41: 0 | BD41: 0 | BE41: 0 | BF41: 0 | BG41: 0 | BH41: 0 | BI41: 0 | BJ41: 0 | BK41: 0 | BL41: 0 | BM41: 0 | BN41: 0 | BO41: 0 | BP41: 0 | BQ41: 0 | BR41: 0 | BS41: 0 | BT41: 0 | BU41: 0 | BV41: 0 | BW41: 0 | BX41: 0 | BY41: 0 | BZ41: 0 | CA41: 0 | CB41: 0 | CC41: 0 | CD41: 0 | CE41: 0 | CF41: 0 | CG41: 0 | CH41: 0 | CI41: 0 | CJ41: 0 | CK41: 0 | CL41: 0 | CM41: 0 | CN41: 0
A42: 38 | C42: 0 | E42: 0 | I42: 0 | M42: 0 | Q42: 0 | U42: 0 | Y42: 0 | AC42: 0 | AG42: 0 | AK42: 0 | AO42: 0 | AS42: 0 | AW42: 0 | AZ42: 0 | BA42: 0 | BB42: 0 | BC42: 0 | BD42: 0 | BE42: 0 | BF42: 0 | BG42: 0 | BH42: 0 | BI42: 0 | BJ42: 0 | BK42: 0 | BL42: 0 | BM42: 0 | BN42: 0 | BO42: 0 | BP42: 0 | BQ42: 0 | BR42: 0 | BS42: 0 | BT42: 0 | BU42: 0 | BV42: 0 | BW42: 0 | BX42: 0 | BY42: 0 | BZ42: 0 | CA42: 0 | CB42: 0 | CC42: 0 | CD42: 0 | CE42: 0 | CF42: 0 | CG42: 0 | CH42: 0 | CI42: 0 | CJ42: 0 | CK42: 0 | CL42: 0 | CM42: 0 | CN42: 0
A43: 39 | C43: 0 | E43: 0 | I43: 0 | M43: 0 | Q43: 0 | U43: 0 | Y43: 0 | AC43: 0 | AG43: 0 | AK43: 0 | AO43: 0 | AS43: 0 | AW43: 0 | AZ43: 0 | BA43: 0 | BB43: 0 | BC43: 0 | BD43: 0 | BE43: 0 | BF43: 0 | BG43: 0 | BH43: 0 | BI43: 0 | BJ43: 0 | BK43: 0 | BL43: 0 | BM43: 0 | BN43: 0 | BO43: 0 | BP43: 0 | BQ43: 0 | BR43: 0 | BS43: 0 | BT43: 0 | BU43: 0 | BV43: 0 | BW43: 0 | BX43: 0 | BY43: 0 | BZ43: 0 | CA43: 0 | CB43: 0 | CC43: 0 | CD43: 0 | CE43: 0 | CF43: 0 | CG43: 0 | CH43: 0 | CI43: 0 | CJ43: 0 | CK43: 0 | CL43: 0 | CM43: 0 | CN43: 0
A44: 40 | C44: 0 | E44: 0 | I44: 0 | M44: 0 | Q44: 0 | U44: 0 | Y44: 0 | AC44: 0 | AG44: 0 | AK44: 0 | AO44: 0 | AS44: 0 | AW44: 0 | AZ44: 0 | BA44: 0 | BB44: 0 | BC44: 0 | BD44: 0 | BE44: 0 | BF44: 0 | BG44: 0 | BH44: 0 | BI44: 0 | BJ44: 0 | BK44: 0 | BL44: 0 | BM44: 0 | BN44: 0 | BO44: 0 | BP44: 0 | BQ44: 0 | BR44: 0 | BS44: 0 | BT44: 0 | BU44: 0 | BV44: 0 | BW44: 0 | BX44: 0 | BY44: 0 | BZ44: 0 | CA44: 0 | CB44: 0 | CC44: 0 | CD44: 0 | CE44: 0 | CF44: 0 | CG44: 0 | CH44: 0 | CI44: 0 | CJ44: 0 | CK44: 0 | CL44: 0 | CM44: 0 | CN44: 0
A45: 41 | C45: 0 | E45: 0 | I45: 0 | M45: 0 | Q45: 0 | U45: 0 | Y45: 0 | AC45: 0 | AG45: 0 | AK45: 0 | AO45: 0 | AS45: 0 | AW45: 0 | AZ45: 0 | BA45: 0 | BB45: 0 | BC45: 0 | BD45: 0 | BE45: 0 | BF45: 0 | BG45: 0 | BH45: 0 | BI45: 0 | BJ45: 0 | BK45: 0 | BL45: 0 | BM45: 0 | BN45: 0 | BO45: 0 | BP45: 0 | BQ45: 0 | BR45: 0 | BS45: 0 | BT45: 0 | BU45: 0 | BV45: 0 | BW45: 0 | BX45: 0 | BY45: 0 | BZ45: 0 | CA45: 0 | CB45: 0 | CC45: 0 | CD45: 0 | CE45: 0 | CF45: 0 | CG45: 0 | CH45: 0 | CI45: 0 | CJ45: 0 | CK45: 0 | CL45: 0 | CM45: 0 | CN45: 0
A46: 42 | C46: 0 | E46: 0 | I46: 0 | M46: 0 | Q46: 0 | U46: 0 | Y46: 0 | AC46: 0 | AG46: 0 | AK46: 0 | AO46: 0 | AS46: 0 | AW46: 0 | AZ46: 0 | BA46: 0 | BB46: 0 | BC46: 0 | BD46: 0 | BE46: 0 | BF46: 0 | BG46: 0 | BH46: 0 | BI46: 0 | BJ46: 0 | BK46: 0 | BL46: 0 | BM46: 0 | BN46: 0 | BO46: 0 | BP46: 0 | BQ46: 0 | BR46: 0 | BS46: 0 | BT46: 0 | BU46: 0 | BV46: 0 | BW46: 0 | BX46: 0 | BY46: 0 | BZ46: 0 | CA46: 0 | CB46: 0 | CC46: 0 | CD46: 0 | CE46: 0 | CF46: 0 | CG46: 0 | CH46: 0 | CI46: 0 | CJ46: 0 | CK46: 0 | CL46: 0 | CM46: 0 | CN46: 0
A47: 43 | C47: 0 | E47: 0 | I47: 0 | M47: 0 | Q47: 0 | U47: 0 | Y47: 0 | AC47: 0 | AG47: 0 | AK47: 0 | AO47: 0 | AS47: 0 | AW47: 0 | AZ47: 0 | BA47: 0 | BB47: 0 | BC47: 0 | BD47: 0 | BE47: 0 | BF47: 0 | BG47: 0 | BH47: 0 | BI47: 0 | BJ47: 0 | BK47: 0 | BL47: 0 | BM47: 0 | BN47: 0 | BO47: 0 | BP47: 0 | BQ47: 0 | BR47: 0 | BS47: 0 | BT47: 0 | BU47: 0 | BV47: 0 | BW47: 0 | BX47: 0 | BY47: 0 | BZ47: 0 | CA47: 0 | CB47: 0 | CC47: 0 | CD47: 0 | CE47: 0 | CF47: 0 | CG47: 0 | CH47: 0 | CI47: 0 | CJ47: 0 | CK47: 0 | CL47: 0 | CM47: 0 | CN47: 0
A48: 44 | C48: 0 | E48: 0 | I48: 0 | M48: 0 | Q48: 0 | U48: 0 | Y48: 0 | AC48: 0 | AG48: 0 | AK48: 0 | AO48: 0 | AS48: 0 | AW48: 0 | AZ48: 0 | BA48: 0 | BB48: 0 | BC48: 0 | BD48: 0 | BE48: 0 | BF48: 0 | BG48: 0 | BH48: 0 | BI48: 0 | BJ48: 0 | BK48: 0 | BL48: 0 | BM48: 0 | BN48: 0 | BO48: 0 | BP48: 0 | BQ48: 0 | BR48: 0 | BS48: 0 | BT48: 0 | BU48: 0 | BV48: 0 | BW48: 0 | BX48: 0 | BY48: 0 | BZ48: 0 | CA48: 0 | CB48: 0 | CC48: 0 | CD48: 0 | CE48: 0 | CF48: 0 | CG48: 0 | CH48: 0 | CI48: 0 | CJ48: 0 | CK48: 0 | CL48: 0 | CM48: 0 | CN48: 0
A49: 45 | C49: 0 | E49: 0 | I49: 0 | M49: 0 | Q49: 0 | U49: 0 | Y49: 0 | AC49: 0 | AG49: 0 | AK49: 0 | AO49: 0 | AS49: 0 | AW49: 0 | AZ49: 0 | BA49: 0 | BB49: 0 | BC49: 0 | BD49: 0 | BE49: 0 | BF49: 0 | BG49: 0 | BH49: 0 | BI49: 0 | BJ49: 0 | BK49: 0 | BL49: 0 | BM49: 0 | BN49: 0 | BO49: 0 | BP49: 0 | BQ49: 0 | BR49: 0 | BS49: 0 | BT49: 0 | BU49: 0 | BV49: 0 | BW49: 0 | BX49: 0 | BY49: 0 | BZ49: 0 | CA49: 0 | CB49: 0 | CC49: 0 | CD49: 0 | CE49: 0 | CF49: 0 | CG49: 0 | CH49: 0 | CI49: 0 | CJ49: 0 | CK49: 0 | CL49: 0 | CM49: 0 | CN49: 0

Sheet Classificação Geral
A1: 2023 | E1: OK | I1: OK | M1: OK | Q1: OK | U1: OK | Y1: OK | AC1: OK | AG1: OK | AK1: OK | AO1: OK | AS1: OK | AW1: OK
D2: 1ª etapa | H2: 2ª etapa | L2: 3ª etapa | P2: 4ª etapa | T2: 5ª etapa | X2: 6ª etapa | AB2: 7ª etapa | AF2: 8ª etapa | AJ2: 9ª etapa | AN2: 10ª etapa | AR2: 11ª etapa | AV2: 12ª etapa
B4: Nome do (a) Piloto (a) | C4: Pontuação Geral | D4: Posição | E4: Pontos | F4: Bônus | G4: Penalidade | H4: Posição | I4: Pontos | J4: Bônus | K4: Penalidade | L4: Posição | M4: Pontos | N4: Bônus | O4: Penalidade | P4: Posição | Q4: Pontos | R4: Bônus | S4: Penalidade | T4: Posição | U4: Pontos | V4: Bônus | W4: Penalidade | X4: Posição | Y4: Pontos | Z4: Bônus | AA4: Penalidade | AB4: Posição | AC4: Pontos | AD4: Bônus | AE4: Penalidade | AF4: Posição | AG4: Pontos | AH4: Bônus | AI4: Penalidade | AJ4: Posição | AK4: Pontos | AL4: Bônus | AM4: Penalidade | AN4: Posição | AO4: Pontos | AP4: Bônus | AQ4: Penalidade | AR4: Posição | AS4: Pontos | AT4: Bônus | AU4: Penalidade | AV4: Posição | AW4: Pontos | AX4: Bônus | AY4: Penalidade | AZ4: 1º LUGAR | BA4: 2º LUGAR | BB4: 3º LUGAR | BC4: 4º LUGAR | BD4: 5º LUGAR | BE4: 6º LUGAR | BF4: 7º LUGAR | BG4: 8º LUGAR | BH4: 9º LUGAR | BI4: 10º LUGAR | BJ4: 11º LUGAR | BK4: 12º LUGAR | BL4: 13º LUGAR | BM4: 14º LUGAR | BN4: 15º LUGAR | BO4: 16º LUGAR | BP4: 17º LUGAR | BQ4: 18º LUGAR | BR4: 19º LUGAR | BS4: 20º LUGAR | BT4: 21º LUGAR | BU4: 22º LUGAR | BV4: 23º LUGAR | BW4: 24º LUGAR | BX4: 25º LUGAR | BY4: 26º LUGAR | BZ4: 27º LUGAR | CA4: 28º LUGAR | CB4: 29º LUGAR | CC4: 30º LUGAR | CD4: 31º LUGAR | CE4: 32º LUGAR | CF4: 33º LUGAR | CG4: 34º LUGAR | CH4: 35º LUGAR | CI4: 36º LUGAR | CJ4: 37º LUGAR | CK4: 38º LUGAR | CL4: 39º LUGAR | CM4: 40º LUGAR | CN4: 41º LUGAR
A5: 1 | B5: Marcelo Augusto | C5: 214 | D5: 1 | E5: 25 | F5: 1 | H5: 9 | I5: 12 | J5: 0 | L5: 9 | M5: 12 | N5: 0 | Q5: 0 | T5: 7 | U5: 14 | X5: 1 | Y5: 25 | Z5: 1 | AB5: 2 | AC5: 22 | AF5: 2 | AG5: 22 | AJ5: 5 | AK5: 16 | AN5: 2 | AO5: 22 | AR5: 3 | AS5: 20 | AV5: 2 | AW5: 22 | AZ5: 2 | BA5: 4 | BB5: 1 | BC5: 0 | BD5: 1 | BE5: 0 | BF5: 1 | BG5: 0 | BH5: 2 | BI5: 0 | BJ5: 0 | BK5: 0 | BL5: 0 | BM5: 0 | BN5: 0 | BO5: 0 | BP5: 0 | BQ5: 0 | BR5: 0 | BS5: 0 | BT5: 0 | BU5: 0 | BV5: 0 | BW5: 0 | BX5: 0 | BY5: 0 | BZ5: 0 | CA5: 0 | CB5: 0 | CC5: 0 | CD5: 0 | CE5: 0 | CF5: 0 | CG5: 0 | CH5: 0 | CI5: 0 | CJ5: 0 | CK5: 0 | CL5: 0 | CM5: 0 | CN5: 0
A6: 2 | B6: Lucas Bessas | C6: 205 | D6: 4 | E6: 18 | H6: 4 | I6: 18 | J6: 0 | L6: 1 | M6: 25 | N6: 1 | P6: 1 | Q6: 25 | U6: 0 | X6: 5 | Y6: 16 | AB6: 3 | AC6: 20 | AG6: 0 | AI6: SIM | AJ6: 1 | AK6: 25 | AL6: 1 | AN6: 6 | AO6: 15 | AR6: 1 | AS6: 25 | AT6: 1 | AV6: 6 | AW6: 15 | AZ6: 4 | BA6: 0 | BB6: 1 | BC6: 2 | BD6: 1 | BE6: 2 | BF6: 0 | BG6: 0 | BH6: 0 | BI6: 0 | BJ6: 0 | BK6: 0 | BL6: 0 | BM6: 0 | BN6: 0 | BO6: 0 | BP6: 0 | BQ6: 0 | BR6: 0 | BS6: 0 | BT6: 0 | BU6: 0 | BV6: 0 | BW6: 0 | BX6: 0 | BY6: 0 | BZ6: 0 | CA6: 0 | CB6: 0 | CC6: 0 | CD6: 0 | CE6: 0 | CF6: 0 | CG6: 0 | CH6: 0 | CI6: 0 | CJ6: 0 | CK6: 0 | CL6: 0 | CM6: 0 | CN6: 0
A7: 3 | B7: Luciano Macnamarra | C7: 185 | D7: 8 | E7: 13 | H7: 5 | I7: 16 | J7: 0 | L7: 13 | M7: 8 | N7: 0 | P7: 7 | Q7: 14 | T7: 11 | U7: 10 | X7: 4 | Y7: 18 | AB7: 5 | AC7: 16 | AF7: 5 | AG7: 16 | AJ7: 15 | AK7: 6 | AM7: SIM | AN7: 1 | AO7: 25 | AP7: 1 | AR7: 2 | AS7: 22 | AV7: 3 | AW7: 20 | AZ7: 1 | BA7: 1 | BB7: 1 | BC7: 1 | BD7: 3 | BE7: 0 | BF7: 1 | BG7: 1 | BH7: 0 | BI7: 0 | BJ7: 1 | BK7: 0 | BL7: 1 | BM7: 0 | BN7: 1 | BO7: 0 | BP7: 0 | BQ7: 0 | BR7: 0 | BS7: 0 | BT7: 0 | BU7: 0 | BV7: 0 | BW7: 0 | BX7: 0 | BY7: 0 | BZ7: 0 | CA7: 0 | CB7: 0 | CC7: 0 | CD7: 0 | CE7: 0 | CF7: 0 | CG7: 0 | CH7: 0 | CI7: 0 | CJ7: 0 | CK7: 0 | CL7: 0 | CM7: 0 | CN7: 0
A8: 4 | B8: Raphael Reis | C8: 183 | D8: 15 | E8: 6 | G8: SIM | H8: 6 | I8: 15 | J8: 0 | L8: 4 | M8: 18 | N8: 0 | P8: 4 | Q8: 18 | T8: 5 | U8: 16 | X8: 26 | Y8: 0 | AA8: SIM | AB8: 6 | AC8: 15 | AF8: 1 | AG8: 25 | AH8: 1 | AJ8: 9 | AK8: 12 | AN8: 5 | AO8: 16 | AR8: 5 | AS8: 16 | AV8: 1 | AW8: 25 | AZ8: 2 | BA8: 0 | BB8: 0 | BC8: 2 | BD8: 3 | BE8: 2 | BF8: 0 | BG8: 0 | BH8: 1 | BI8: 0 | BJ8: 0 | BK8: 0 | BL8: 0 | BM8: 0 | BN8: 1 | BO8: 0 | BP8: 0 | BQ8: 0 | BR8: 0 | BS8: 0 | BT8: 0 | BU8: 0 | BV8: 0 | BW8: 0 | BX8: 0 | BY8: 1 | BZ8: 0 | CA8: 0 | CB8: 0 | CC8: 0 | CD8: 0 | CE8: 0 | CF8: 0 | CG8: 0 | CH8: 0 | CI8: 0 | CJ8: 0 | CK8: 0 | CL8: 0 | CM8: 0 | CN8: 0
A9: 5 | B9: Henrique Pereira | C9: 181 | D9: 3 | E9: 20 | H9: 15 | I9: 6 | J9: 0 | K9: SIM | L9: 6 | M9: 15 | N9: 0 | P9: 3 | Q9: 20 | R9: 1 | T9: 3 | U9: 20 | V9: 1 | X9: 7 | Y9: 14 | AB9: 11 | AC9: 10 | AF9: 3 | AG9: 20 | AJ9: 4 | AK9: 18 | AN9: 4 | AO9: 18 | AR9: 0 | AS9: 0 | AU9: SIM | AV9: 4 | AW9: 18 | AZ9: 0 | BA9: 0 | BB9: 4 | BC9: 3 | BD9: 0 | BE9: 1 | BF9: 1 | BG9: 0 | BH9: 0 | BI9: 0 | BJ9: 1 | BK9: 0 | BL9: 0 | BM9: 0 | BN9: 1 | BO9: 0 | BP9: 0 | BQ9: 0 | BR9: 0 | BS9: 0 | BT9: 0 | BU9: 0 | BV9: 0 | BW9: 0 | BX9: 0 | BY9: 0 | BZ9: 0 | CA9: 0 | CB9: 0 | CC9: 0 | CD9: 0 | CE9: 0 | CF9: 0 | CG9: 0 | CH9: 0 | CI9: 0 | CJ9: 0 | CK9: 0 | CL9: 0 | CM9: 0 | CN9: 0
A10: 6 | B10: João Lott | C10: 175 | D10: 2 | E10: 22 | H10: 7 | I10: 14 | J10: 0 | L10: 8 | M10: 13 | N10: 0 | Q10: 0 | T10: 1 | U10: 25 | X10: 3 | Y10: 20 | AB10: 1 | AC10: 25 | AD10: 1 | AF10: 8 | AG10: 13 | AJ10: 8 | AK10: 13 | AN10: 7 | AO10: 14 | AS10: 0 | AV10: 7 | AW10: 14 | AX10: 1 | AZ10: 2 | BA10: 1 | BB10: 1 | BC10: 0 | BD10: 0 | BE10: 0 | BF10: 3 | BG10: 3 | BH10: 0 | BI10: 0 | BJ10: 0 | BK10: 0 | BL10: 0 | BM10: 0 | BN10: 0 | BO10: 0 | BP10: 0 | BQ10: 0 | BR10: 0 | BS10: 0 | BT10: 0 | BU10: 0 | BV10: 0 | BW10: 0 | BX10: 0 | BY10: 0 | BZ10: 0 | CA10: 0 | CB10: 0 | CC10: 0 | CD10: 0 | CE10: 0 | CF10: 0 | CG10: 0 | CH10: 0 | CI10: 0 | CJ10: 0 | CK10: 0 | CL10: 0 | CM10: 0 | CN10: 0
A11: 7 | B11: Cristiano Cendon | C11: 151 | E11: 0 | H11: 10 | I11: 11 | J11: 0 | L11: 11 | M11: 10 | N11: 0 | P11: 8 | Q11: 13 | T11: 2 | U11: 22 | X11: 6 | Y11: 15 | AB11: 7 | AC11: 14 | AF11: 4 | AG11: 18 | AJ11: 2 | AK11: 22 | AN11: 8 | AO11: 13 | AR11: 0 | AS11: 0 | AU11: SIM | AV11: 8 | AW11: 13 | AZ11: 0 | BA11: 2 | BB11: 0 | BC11: 1 | BD11: 0 | BE11: 1 | BF11: 1 | BG11: 3 | BH11: 0 | BI11: 1 | BJ11: 1 | BK11: 0 | BL11: 0 | BM11: 0 | BN11: 0 | BO11: 0 | BP11: 0 | BQ11: 0 | BR11: 0 | BS11: 0 | BT11: 0 | BU11: 0 | BV11: 0 | BW11: 0 | BX11: 0 | BY11: 0 | BZ11: 0 | CA11: 0 | CB11: 0 | CC11: 0 | CD11: 0 | CE11: 0 | CF11: 0 | CG11: 0 | CH11: 0 | CI11: 0 | CJ11: 0 | CK11: 0 | CL11: 0 | CM11: 0 | CN11: 0
A12: 8 | B12: Gijo | C12: 121 | E12: 0 | I12: 0 | L12: 5 | M12: 16 | N12: 0 | P12: 6 | Q12: 15 | S12: -5 | T12: 4 | U12: 18 | Y12: 0 | AA12: -5 | AB12: 4 | AC12: 18 | AF12: 6 | AG12: 15 | AK12: 0 | AM12: -5 | AN12: 3 | AO12: 20 | AR12: 4 | AS12: 18 | AV12: 5 | AW12: 16 | AZ12: 0 | BA12: 0 | BB12: 1 | BC12: 3 | BD12: 2 | BE12: 2 | BF12: 0 | BG12: 0 | BH12: 0 | BI12: 0 | BJ12: 0 | BK12: 0 | BL12: 0 | BM12: 0 | BN12: 0 | BO12: 0 | BP12: 0 | BQ12: 0 | BR12: 0 | BS12: 0 | BT12: 0 | BU12: 0 | BV12: 0 | BW12: 0 | BX12: 0 | BY12: 0 | BZ12: 0 | CA12: 0 | CB12: 0 | CC12: 0 | CD12: 0 | CE12: 0 | CF12: 0 | CG12: 0 | CH12: 0 | CI12: 0 | CJ12: 0 | CK12: 0 | CL12: 0 | CM12: 0 | CN12: 0
A13: 9 | B13: Matheus Rocha | C13: 113 | E13: 0 | I13: 0 | L13: 2 | M13: 22 | N13: 0 | P13: 2 | Q13: 22 | T13: 6 | U13: 15 | X13: 2 | Y13: 22 | AC13: 0 | AG13: 0 | AJ13: 3 | AK13: 20 | AN13: 9 | AO13: 12 | AS13: 0 | AW13: 0 | AZ13: 0 | BA13: 3 | BB13: 1 | BC13: 0 | BD13: 0 | BE13: 1 | BF13: 0 | BG13: 0 | BH13: 1 | BI13: 0 | BJ13: 0 | BK13: 0 | BL13: 0 | BM13: 0 | BN13: 0 | BO13: 0 | BP13: 0 | BQ13: 0 | BR13: 0 | BS13: 0 | BT13: 0 | BU13: 0 | BV13: 0 | BW13: 0 | BX13: 0 | BY13: 0 | BZ13: 0 | CA13: 0 | CB13: 0 | CC13: 0 | CD13: 0 | CE13: 0 | CF13: 0 | CG13: 0 | CH13: 0 | CI13: 0 | CJ13: 0 | CK13: 0 | CL13: 0 | CM13: 0 | CN13: 0
A14: 10 | B14: Renato Martins | C14: 94 | D14: 21 | E14: 1 | H14: 8 | I14: 13 | J14: 0 | L14: 3 | M14: 20 | N14: 0 | P14: 9 | Q14: 12 | U14: 0 | Y14: 0 | AC14: 0 | AG14: 0 | AI14: -5 | AJ14: 6 | AK14: 15 | AN14: 10 | AO14: 11 | AR14: 6 | AS14: 15 | AV14: 9 | AW14: 12 | AZ14: 0 | BA14: 0 | BB14: 1 | BC14: 0 | BD14: 0 | BE14: 2 | BF14: 0 | BG14: 1 | BH14: 2 | BI14: 1 | BJ14: 0 | BK14: 0 | BL14: 0 | BM14: 0 | BN14: 0 | BO14: 0 | BP14: 0 | BQ14: 0 | BR14: 0 | BS14: 0 | BT14: 1 | BU14: 0 | BV14: 0 | BW14: 0 | BX14: 0 | BY14: 0 | BZ14: 0 | CA14: 0 | CB14: 0 | CC14: 0 | CD14: 0 | CE14: 0 | CF14: 0 | CG14: 0 | CH14: 0 | CI14: 0 | CJ14: 0 | CK14: 0 | CL14: 0 | CM14: 0 | CN14: 0
A15: 11 | B15: Thiago Amaro | C15: 65 | D15: 18 | E15: 3 | H15: 13 | I15: 8 | J15: 0 | L15: 15 | M15: 6 | N15: 0 | P15: 11 | Q15: 10 | T15: 10 | U15: 11 | Y15: 0 | AB15: 0 | AC15: 0 | AE15: SIM | AF15: 7 | AG15: 14 | AK15: 0 | AO15: 0 | AR15: 8 | AS15: 13 | AV15: 30 | AW15: 0 | AY15: SIM | AZ15: 0 | BA15: 0 | BB15: 0 | BC15: 0 | BD15: 0 | BE15: 0 | BF15: 1 | BG15: 1 | BH15: 0 | BI15: 1 | BJ15: 1 | BK15: 0 | BL15: 1 | BM15: 0 | BN15: 1 | BO15: 0 | BP15: 0 | BQ15: 1 | BR15: 0 | BS15: 0 | BT15: 0 | BU15: 0 | BV15: 0 | BW15: 0 | BX15: 0 | BY15: 0 | BZ15: 0 | CA15: 0 | CB15: 0 | CC15: 1 | CD15: 0 | CE15: 0 | CF15: 0 | CG15: 0 | CH15: 0 | CI15: 0 | CJ15: 0 | CK15: 0 | CL15: 0 | CM15: 0 | CN15: 0
A16: 12 | B16: Levindo Neto | C16: 57 | D16: 10 | E16: 11 | H16: 27 | I16: 0 | J16: 0 | K16: SIM | L16: 17 | M16: 4 | N16: 0 | Q16: 0 | U16: 0 | Y16: 0 | AA16: -5 | AB16: 8 | AC16: 13 | AG16: 0 | AJ16: 7 | AK16: 14 | AO16: 0 | AQ16: -5 | AR16: 7 | AS16: 14 | AV16: 10 | AW16: 11 | AZ16: 0 | BA16: 0 | BB16: 0 | BC16: 0 | BD16: 0 | BE16: 0 | BF16: 2 | BG16: 1 | BH16: 0 | BI16: 2 | BJ16: 0 | BK16: 0 | BL16: 0 | BM16: 0 | BN16: 0 | BO16: 0 | BP16: 1 | BQ16: 0 | BR16: 0 | BS16: 0 | BT16: 0 | BU16: 0 | BV16: 0 | BW16: 0 | BX16: 0 | BY16: 0 | BZ16: 1 | CA16: 0 | CB16: 0 | CC16: 0 | CD16: 0 | CE16: 0 | CF16: 0 | CG16: 0 | CH16: 0 | CI16: 0 | CJ16: 0 | CK16: 0 | CL16: 0 | CM16: 0 | CN16: 0
A17: 13 | B17: Jucimar Vieira | C17: 51 | D17: 20 | E17: 1 | H17: 1 | I17: 25 | J17: 0 | L17: 10 | M17: 11 | N17: 0 | P17: 10 | Q17: 11 | T17: 8 | U17: 13 | Y17: 0 | AC17: 0 | AG17: 0 | AK17: 0 | AM17: -5 | AO17: 0 | AQ17: -5 | AS17: 0 | AW17: 0 | AZ17: 1 | BA17: 0 | BB17: 0 | BC17: 0 | BD17: 0 | BE17: 0 | BF17: 0 | BG17: 1 | BH17: 0 | BI17: 2 | BJ17: 0 | BK17: 0 | BL17: 0 | BM17: 0 | BN17: 0 | BO17: 0 | BP17: 0 | BQ17: 0 | BR17: 0 | BS17: 1 | BT17: 0 | BU17: 0 | BV17: 0 | BW17: 0 | BX17: 0 | BY17: 0 | BZ17: 0 | CA17: 0 | CB17: 0 | CC17: 0 | CD17: 0 | CE17: 0 | CF17: 0 | CG17: 0 | CH17: 0 | CI17: 0 | CJ17: 0 | CK17: 0 | CL17: 0 | CM17: 0 | CN17: 0
A18: 14 | B18: Henry Douglas | C18: 28 | D18: 6 | E18: 15 | H18: 12 | I18: 9 | J18: 0 | L18: 12 | M18: 9 | N18: 0 | Q18: 0 | U18: 0 | W18: -5 | Y18: 0 | AC18: 0 | AG18: 0 | AK18: 0 | AO18: 0 | AS18: 0 | AW18: 0 | AZ18: 0 | BA18: 0 | BB18: 0 | BC18: 0 | BD18: 0 | BE18: 1 | BF18: 0 | BG18: 0 | BH18: 0 | BI18: 0 | BJ18: 0 | BK18: 2 | BL18: 0 | BM18: 0 | BN18: 0 | BO18: 0 | BP18: 0 | BQ18: 0 | BR18: 0 | BS18: 0 | BT18: 0 | BU18: 0 | BV18: 0 | BW18: 0 | BX18: 0 | BY18: 0 | BZ18: 0 | CA18: 0 | CB18: 0 | CC18: 0 | CD18: 0 | CE18: 0 | CF18: 0 | CG18: 0 | CH18: 0 | CI18: 0 | CJ18: 0 | CK18: 0 | CL18: 0 | CM18: 0 | CN18: 0
A19: 15 | B19: Gustavo Barros | C19: 26 | D19: 5 | E19: 16 | H19: 11 | I19: 10 | J19: 0 | L19: 16 | M19: 5 | N19: 0 | Q19: 0 | U19: 0 | Y19: 0 | AC19: 0 | AG19: 0 | AK19: 0 | AO19: 0 | AQ19: -5 | AS19: 0 | AW19: 0 | AZ19: 0 | BA19: 0 | BB19: 0 | BC19: 0 | BD19: 1 | BE19: 0 | BF19: 0 | BG19: 0 | BH19: 0 | BI19: 0 | BJ19: 1 | BK19: 0 | BL19: 0 | BM19: 0 | BN19: 0 | BO19: 1 | BP19: 0 | BQ19: 0 | BR19: 0 | BS19: 0 | BT19: 0 | BU19: 0 | BV19: 0 | BW19: 0 | BX19: 0 | BY19: 0 | BZ19: 0 | CA19: 0 | CB19: 0 | CC19: 0 | CD19: 0 | CE19: 0 | CF19: 0 | CG19: 0 | CH19: 0 | CI19: 0 | CJ19: 0 | CK19: 0 | CL19: 0 | CM19: 0 | CN19: 0
A20: 16 | B20: Luciano Robervine | C20: 14 | D20: 19 | E20: 2 | G20: SIM | H20: 3 | I20: 20 | J20: 1 | M20: 0 | O20: -5 | P20: 5 | Q20: 16 | T20: 0 | U20: 0 | W20: SIM | Y20: 0 | AA20: -5 | AC20: 0 | AG20: 0 | AI20: -5 | AK20: 0 | AM20: -5 | AO20: 0 | AQ20: -5 | AS20: 0 | AW20: 0 | AZ20: 0 | BA20: 0 | BB20: 1 | BC20: 0 | BD20: 1 | BE20: 0 | BF20: 0 | BG20: 0 | BH20: 0 | BI20: 0 | BJ20: 0 | BK20: 0 | BL20: 0 | BM20: 0 | BN20: 0 | BO20: 0 | BP20: 0 | BQ20: 0 | BR20: 1 | BS20: 0 | BT20: 0 | BU20: 0 | BV20: 0 | BW20: 0 | BX20: 0 | BY20: 0 | BZ20: 0 | CA20: 0 | CB20: 0 | CC20: 0 | CD20: 0 | CE20: 0 | CF20: 0 | CG20: 0 | CH20: 0 | CI20: 0 | CJ20: 0 | CK20: 0 | CL20: 0 | CM20: 0 | CN20: 0
A21: 17 | B21: Alan Moreira | C21: 14 | D21: 11 | E21: 10 | I21: 0 | L21: 14 | M21: 7 | N21: 0 | O21: -5 | Q21: 0 | T21: 9 | U21: 12 | Y21: 0 | AA21: -5 | AC21: 0 | AG21: 0 | AI21: -5 | AK21: 0 | AO21: 0 | AS21: 0 | AW21: 0 | AZ21: 0 | BA21: 0 | BB21: 0 | BC21: 0 | BD21: 0 | BE21: 0 | BF21: 0 | BG21: 0 | BH21: 1 | BI21: 0 | BJ21: 1 | BK21: 0 | BL21: 0 | BM21: 1 | BN21: 0 | BO21: 0 | BP21: 0 | BQ21: 0 | BR21: 0 | BS21: 0 | BT21: 0 | BU21: 0 | BV21: 0 | BW21: 0 | BX21: 0 | BY21: 0 | BZ21: 0 | CA21: 0 | CB21: 0 | CC21: 0 | CD21: 0 | CE21: 0 | CF21: 0 | CG21: 0 | CH21: 0 | CI21: 0 | CJ21: 0 | CK21: 0 | CL21: 0 | CM21: 0 | CN21: 0
A22: 18 | B22: Celso Dantas | C22: 11 | E22: 0 | I22: 0 | M22: 0 | Q22: 0 | U22: 0 | Y22: 0 | AB22: 10 | AC22: 11 | AG22: 0 | AK22: 0 | AO22: 0 | AS22: 0 | AW22: 0 | AZ22: 0 | BA22: 0 | BB22: 0 | BC22: 0 | BD22: 0 | BE22: 0 | BF22: 0 | BG22: 0 | BH22: 0 | BI22: 1 | BJ22: 0 | BK22: 0 | BL22: 0 | BM22: 0 | BN22: 0 | BO22: 0 | BP22: 0 | BQ22: 0 | BR22: 0 | BS22: 0 | BT22: 0 | BU22: 0 | BV22: 0 | BW22: 0 | BX22: 0 | BY22: 0 | BZ22: 0 | CA22: 0 | CB22: 0 | CC22: 0 | CD22: 0 | CE22: 0 | CF22: 0 | CG22: 0 | CH22: 0 | CI22: 0 | CJ22: 0 | CK22: 0 | CL22: 0 | CM22: 0 | CN22: 0
A23: 19 | B23: Lucas Roscito | C23: 9 | E23: 0 | I23: 0 | M23: 0 | Q23: 0 | U23: 0 | Y23: 0 | AB23: 9 | AC23: 12 | AF23: 9 | AG23: 12 | AI23: -5 | AK23: 0 | AM23: -5 | AO23: 0 | AQ23: -5 | AS23: 0 | AW23: 0 | AZ23: 0 | BA23: 0 | BB23: 0 | BC23: 0 | BD23: 0 | BE23: 0 | BF23: 0 | BG23: 0 | BH23: 2 | BI23: 0 | BJ23: 0 | BK23: 0 | BL23: 0 | BM23: 0 | BN23: 0 | BO23: 0 | BP23: 0 | BQ23: 0 | BR23: 0 | BS23: 0 | BT23: 0 | BU23: 0 | BV23: 0 | BW23: 0 | BX23: 0 | BY23: 0 | BZ23: 0 | CA23: 0 | CB23: 0 | CC23: 0 | CD23: 0 | CE23: 0 | CF23: 0 | CG23: 0 | CH23: 0 | CI23: 0 | CJ23: 0 | CK23: 0 | CL23: 0 | CM23: 0 | CN23: 0
A24: 20 | B24: Victor Vaz | C24: 0 | D24: 9 | E24: 12 | I24: 0 | K24: -5 | M24: 0 | Q24: 0 | S24: -5 | U24: 0 | Y24: 0 | AA24: -5 | AC24: 0 | AE24: -5 | AG24: 0 | AI24: -5 | AK24: 0 | AM24: -5 | AO24: 0 | AQ24: -5 | AS24: 0 | AW24: 0 | AZ24: 0 | BA24: 0 | BB24: 0 | BC24: 0 | BD24: 0 | BE24: 0 | BF24: 0 | BG24: 0 | BH24: 1 | BI24: 0 | BJ24: 0 | BK24: 0 | BL24: 0 | BM24: 0 | BN24: 0 | BO24: 0 | BP24: 0 | BQ24: 0 | BR24: 0 | BS24: 0 | BT24: 0 | BU24: 0 | BV24: 0 | BW24: 0 | BX24: 0 | BY24: 0 | BZ24: 0 | CA24: 0 | CB24: 0 | CC24: 0 | CD24: 0 | CE24: 0 | CF24: 0 | CG24: 0 | CH24: 0 | CI24: 0 | CJ24: 0 | CK24: 0 | CL24: 0 | CM24: 0 | CN24: 0
A25: 21 | B25: Iago Bastos | C25: 0 | D25: 12 | E25: 9 | I25: 0 | K25: -5 | M25: 0 | O25: -5 | Q25: 0 | S25: -5 | U25: 0 | W25: -5 | Y25: 0 | AA25: -5 | AC25: 0 | AE25: -5 | AG25: 0 | AI25: -5 | AK25: 0 | AM25: -5 | AO25: 0 | AQ25: -5 | AS25: 0 | AW25: 0 | AZ25: 0 | BA25: 0 | BB25: 0 | BC25: 0 | BD25: 0 | BE25: 0 | BF25: 0 | BG25: 0 | BH25: 0 | BI25: 0 | BJ25: 0 | BK25: 1 | BL25: 0 | BM25: 0 | BN25: 0 | BO25: 0 | BP25: 0 | BQ25: 0 | BR25: 0 | BS25: 0 | BT25: 0 | BU25: 0 | BV25: 0 | BW25: 0 | BX25: 0 | BY25: 0 | BZ25: 0 | CA25: 0 | CB25: 0 | CC25: 0 | CD25: 0 | CE25: 0 | CF25: 0 | CG25: 0 | CH25: 0 | CI25: 0 | CJ25: 0 | CK25: 0 | CL25: 0 | CM25: 0 | CN25: 0
A26: 22 | B26: Pedro Toussaint | C26: 0 | D26: 13 | E26: 8 | I26: 0 | K26: -5 | M26: 0 | O26: -5 | Q26: 0 | S26: -5 | U26: 0 | W26: -5 | Y26: 0 | AA26: -5 | AC26: 0 | AE26: -5 | AG26: 0 | AI26: -5 | AK26: 0 | AM26: -5 | AO26: 0 | AQ26: -5 | AS26: 0 | AW26: 0 | AZ26: 0 | BA26: 0 | BB26: 0 | BC26: 0 | BD26: 0 | BE26: 0 | BF26: 0 | BG26: 0 | BH26: 0 | BI26: 0 | BJ26: 0 | BK26: 0 | BL26: 1 | BM26: 0 | BN26: 0 | BO26: 0 | BP26: 0 | BQ26: 0 | BR26: 0 | BS26: 0 | BT26: 0 | BU26: 0 | BV26: 0 | BW26: 0 | BX26: 0 | BY26: 0 | BZ26: 0 | CA26: 0 | CB26: 0 | CC26: 0 | CD26: 0 | CE26: 0 | CF26: 0 | CG26: 0 | CH26: 0 | CI26: 0 | CJ26: 0 | CK26: 0 | CL26: 0 | CM26: 0 | CN26: 0
A27: 23 | B27: Alan Tacchi | C27: 0 | D27: 16 | E27: 5 | H27: 14 | I27: 7 | J27: 0 | M27: 0 | Q27: 0 | S27: -5 | U27: 0 | W27: -5 | Y27: 0 | AA27: -5 | AC27: 0 | AE27: -5 | AG27: 0 | AI27: -5 | AK27: 0 | AM27: -5 | AO27: 0 | AQ27: -5 | AS27: 0 | AW27: 0 | AZ27: 0 | BA27: 0 | BB27: 0 | BC27: 0 | BD27: 0 | BE27: 0 | BF27: 0 | BG27: 0 | BH27: 0 | BI27: 0 | BJ27: 0 | BK27: 0 | BL27: 0 | BM27: 1 | BN27: 0 | BO27: 1 | BP27: 0 | BQ27: 0 | BR27: 0 | BS27: 0 | BT27: 0 | BU27: 0 | BV27: 0 | BW27: 0 | BX27: 0 | BY27: 0 | BZ27: 0 | CA27: 0 | CB27: 0 | CC27: 0 | CD27: 0 | CE27: 0 | CF27: 0 | CG27: 0 | CH27: 0 | CI27: 0 | CJ27: 0 | CK27: 0 | CL27: 0 | CM27: 0 | CN27: 0
A28: 24 | B28: Raphael Fraga | C28: 0 | D28: 14 | E28: 7 | I28: 0 | K28: -5 | M28: 0 | Q28: 0 | S28: -5 | U28: 0 | W28: -5 | Y28: 0 | AA28: -5 | AC28: 0 | AE28: -5 | AG28: 0 | AI28: -5 | AK28: 0 | AM28: -5 | AO28: 0 | AQ28: -5 | AS28: 0 | AW28: 0 | AZ28: 0 | BA28: 0 | BB28: 0 | BC28: 0 | BD28: 0 | BE28: 0 | BF28: 0 | BG28: 0 | BH28: 0 | BI28: 0 | BJ28: 0 | BK28: 0 | BL28: 0 | BM28: 1 | BN28: 0 | BO28: 0 | BP28: 0 | BQ28: 0 | BR28: 0 | BS28: 0 | BT28: 0 | BU28: 0 | BV28: 0 | BW28: 0 | BX28: 0 | BY28: 0 | BZ28: 0 | CA28: 0 | CB28: 0 | CC28: 0 | CD28: 0 | CE28: 0 | CF28: 0 | CG28: 0 | CH28: 0 | CI28: 0 | CJ28: 0 | CK28: 0 | CL28: 0 | CM28: 0 | CN28: 0
A29: 25 | B29: Lisandro Sodré | C29: 0 | D29: 17 | E29: 4 | H29: 16 | I29: 5 | J29: 0 | M29: 0 | Q29: 0 | U29: 0 | Y29: 0 | AA29: -5 | AC29: 0 | AE29: -5 | AG29: 0 | AI29: -5 | AK29: 0 | AM29: -5 | AO29: 0 | AQ29: -5 | AS29: 0 | AW29: 0 | AZ29: 0 | BA29: 0 | BB29: 0 | BC29: 0 | BD29: 0 | BE29: 0 | BF29: 0 | BG29: 0 | BH29: 0 | BI29: 0 | BJ29: 0 | BK29: 0 | BL29: 0 | BM29: 0 | BN29: 0 | BO29: 1 | BP29: 1 | BQ29: 0 | BR29: 0 | BS29: 0 | BT29: 0 | BU29: 0 | BV29: 0 | BW29: 0 | BX29: 0 | BY29: 0 | BZ29: 0 | CA29: 0 | CB29: 0 | CC29: 0 | CD29: 0 | CE29: 0 | CF29: 0 | CG29: 0 | CH29: 0 | CI29: 0 | CJ29: 0 | CK29: 0 | CL29: 0 | CM29: 0 | CN29: 0
A30: 26 | B30: Alexandre Missionschnick | C30: 0 | D30: 30 | E30: 0 | G30: SIM | I30: 0 | M30: 0 | O30: -5 | Q30: 0 | S30: -5 | U30: 0 | W30: -5 | Y30: 0 | AA30: -5 | AC30: 0 | AE30: -5 | AG30: 0 | AI30: -5 | AK30: 0 | AM30: -5 | AO30: 0 | AQ30: -5 | AS30: 0 | AW30: 0 | AZ30: 0 | BA30: 0 | BB30: 0 | BC30: 0 | BD30: 0 | BE30: 0 | BF30: 0 | BG30: 0 | BH30: 0 | BI30: 0 | BJ30: 0 | BK30: 0 | BL30: 0 | BM30: 0 | BN30: 0 | BO30: 0 | BP30: 0 | BQ30: 0 | BR30: 0 | BS30: 0 | BT30: 0 | BU30: 0 | BV30: 0 | BW30: 0 | BX30: 0 | BY30: 0 | BZ30: 0 | CA30: 0 | CB30: 0 | CC30: 1 | CD30: 0 | CE30: 0 | CF30: 0 | CG30: 0 | CH30: 0 | CI30: 0 | CJ30: 0 | CK30: 0 | CL30: 0 | CM30: 0 | CN30: 0
A31: 27 | B31: XXXXX | C31: 0 | E31: 0 | I31: 0 | M31: 0 | Q31: 0 | S31: SIM | U31: 0 | W31: SIM | Y31: 0 | AC31: 0 | AG31: 0 | AK31: 0 | AO31: 0 | AS31: 0 | AW31: 0 | AZ31: 0 | BA31: 0 | BB31: 0 | BC31: 0 | BD31: 0 | BE31: 0 | BF31: 0 | BG31: 0 | BH31: 0 | BI31: 0 | BJ31: 0 | BK31: 0 | BL31: 0 | BM31: 0 | BN31: 0 | BO31: 0 | BP31: 0 | BQ31: 0 | BR31: 0 | BS31: 0 | BT31: 0 | BU31: 0 | BV31: 0 | BW31: 0 | BX31: 0 | BY31: 0 | BZ31: 0 | CA31: 0 | CB31: 0 | CC31: 0 | CD31: 0 | CE31: 0 | CF31: 0 | CG31: 0 | CH31: 0 | CI31: 0 | CJ31: 0 | CK31: 0 | CL31: 0 | CM31: 0 | CN31: 0
A32: 28 | B32: Thiago Santos | C32: 0 | E32: 0 | I32: 0 | K32: -5 | M32: 0 | O32: -5 | Q32: 0 | S32: -5 | U32: 0 | W32: -5 | Y32: 0 | AA32: -5 | AC32: 0 | AE32: -5 | AG32: 0 | AI32: -5 | AK32: 0 | AM32: -5 | AO32: 0 | AQ32: -5 | AS32: 0 | AW32: 0 | AZ32: 0 | BA32: 0 | BB32: 0 | BC32: 0 | BD32: 0 | BE32: 0 | BF32: 0 | BG32: 0 | BH32: 0 | BI32: 0 | BJ32: 0 | BK32: 0 | BL32: 0 | BM32: 0 | BN32: 0 | BO32: 0 | BP32: 0 | BQ32: 0 | BR32: 0 | BS32: 0 | BT32: 0 | BU32: 0 | BV32: 0 | BW32: 0 | BX32: 0 | BY32: 0 | BZ32: 0 | CA32: 0 | CB32: 0 | CC32: 0 | CD32: 0 | CE32: 0 | CF32: 0 | CG32: 0 | CH32: 0 | CI32: 0 | CJ32: 0 | CK32: 0 | CL32: 0 | CM32: 0 | CN32: 0
A33: 29 | C33: 0 | E33: 0 | I33: 0 | M33: 0 | Q33: 0 | U33: 0 | Y33: 0 | AC33: 0 | AG33: 0 | AK33: 0 | AO33: 0 | AS33: 0 | AW33: 0 | AZ33: 0 | BA33: 0 | BB33: 0 | BC33: 0 | BD33: 0 | BE33: 0 | BF33: 0 | BG33: 0 | BH33: 0 | BI33: 0 | BJ33: 0 | BK33: 0 | BL33: 0 | BM33: 0 | BN33: 0 | BO33: 0 | BP33: 0 | BQ33: 0 | BR33: 0 | BS33: 0 | BT33: 0 | BU33: 0 | BV33: 0 | BW33: 0 | BX33: 0 | BY33: 0 | BZ33: 0 | CA33: 0 | CB33: 0 | CC33: 0 | CD33: 0 | CE33: 0 | CF33: 0 | CG33: 0 | CH33: 0 | CI33: 0 | CJ33: 0 | CK33: 0 | CL33: 0 | CM33: 0 | CN33: 0
A34: 30 | C34: 0 | E34: 0 | I34: 0 | M34: 0 | Q34: 0 | U34: 0 | Y34: 0 | AC34: 0 | AG34: 0 | AK34: 0 | AO34: 0 | AS34: 0 | AW34: 0 | AZ34: 0 | BA34: 0 | BB34: 0 | BC34: 0 | BD34: 0 | BE34: 0 | BF34: 0 | BG34: 0 | BH34: 0 | BI34: 0 | BJ34: 0 | BK34: 0 | BL34: 0 | BM34: 0 | BN34: 0 | BO34: 0 | BP34: 0 | BQ34: 0 | BR34: 0 | BS34: 0 | BT34: 0 | BU34: 0 | BV34: 0 | BW34: 0 | BX34: 0 | BY34: 0 | BZ34: 0 | CA34: 0 | CB34: 0 | CC34: 0 | CD34: 0 | CE34: 0 | CF34: 0 | CG34: 0 | CH34: 0 | CI34: 0 | CJ34: 0 | CK34: 0 | CL34: 0 | CM34: 0 | CN34: 0
A35: 31 | C35: 0 | E35: 0 | I35: 0 | M35: 0 | Q35: 0 | U35: 0 | Y35: 0 | AC35: 0 | AG35: 0 | AK35: 0 | AO35: 0 | AS35: 0 | AW35: 0 | AZ35: 0 | BA35: 0 | BB35: 0 | BC35: 0 | BD35: 0 | BE35: 0 | BF35: 0 | BG35: 0 | BH35: 0 | BI35: 0 | BJ35: 0 | BK35: 0 | BL35: 0 | BM35: 0 | BN35: 0 | BO35: 0 | BP35: 0 | BQ35: 0 | BR35: 0 | BS35: 0 | BT35: 0 | BU35: 0 | BV35: 0 | BW35: 0 | BX35: 0 | BY35: 0 | BZ35: 0 | CA35: 0 | CB35: 0 | CC35: 0 | CD35: 0 | CE35: 0 | CF35: 0 | CG35: 0 | CH35: 0 | CI35: 0 | CJ35: 0 | CK35: 0 | CL35: 0 | CM35: 0 | CN35: 0
A36: 32 | C36: 0 | E36: 0 | I36: 0 | M36: 0 | Q36: 0 | U36: 0 | Y36: 0 | AC36: 0 | AG36: 0 | AK36: 0 | AO36: 0 | AS36: 0 | AW36: 0 | AZ36: 0 | BA36: 0 | BB36: 0 | BC36: 0 | BD36: 0 | BE36: 0 | BF36: 0 | BG36: 0 | BH36: 0 | BI36: 0 | BJ36: 0 | BK36: 0 | BL36: 0 | BM36: 0 | BN36: 0 | BO36: 0 | BP36: 0 | BQ36: 0 | BR36: 0 | BS36: 0 | BT36: 0 | BU36: 0 | BV36: 0 | BW36: 0 | BX36: 0 | BY36: 0 | BZ36: 0 | CA36: 0 | CB36: 0 | CC36: 0 | CD36: 0 | CE36: 0 | CF36: 0 | CG36: 0 | CH36: 0 | CI36: 0 | CJ36: 0 | CK36: 0 | CL36: 0 | CM36: 0 | CN36: 0
A37: 33 | C37: 0 | E37: 0 | I37: 0 | M37: 0 | Q37: 0 | U37: 0 | Y37: 0 | AC37: 0 | AG37: 0 | AK37: 0 | AO37: 0 | AS37: 0 | AW37: 0 | AZ37: 0 | BA37: 0 | BB37: 0 | BC37: 0 | BD37: 0 | BE37: 0 | BF37: 0 | BG37: 0 | BH37: 0 | BI37: 0 | BJ37: 0 | BK37: 0 | BL37: 0 | BM37: 0 | BN37: 0 | BO37: 0 | BP37: 0 | BQ37: 0 | BR37: 0 | BS37: 0 | BT37: 0 | BU37: 0 | BV37: 0 | BW37: 0 | BX37: 0 | BY37: 0 | BZ37: 0 | CA37: 0 | CB37: 0 | CC37: 0 | CD37: 0 | CE37: 0 | CF37: 0 | CG37: 0 | CH37: 0 | CI37: 0 | CJ37: 0 | CK37: 0 | CL37: 0 | CM37: 0 | CN37: 0
A38: 34 | C38: 0 | E38: 0 | I38: 0 | M38: 0 | Q38: 0 | U38: 0 | Y38: 0 | AC38: 0 | AG38: 0 | AK38: 0 | AO38: 0 | AS38: 0 | AW38: 0 | AZ38: 0 | BA38: 0 | BB38: 0 | BC38: 0 | BD38: 0 | BE38: 0 | BF38: 0 | BG38: 0 | BH38: 0 | BI38: 0 | BJ38: 0 | BK38: 0 | BL38: 0 | BM38: 0 | BN38: 0 | BO38: 0 | BP38: 0 | BQ38: 0 | BR38: 0 | BS38: 0 | BT38: 0 | BU38: 0 | BV38: 0 | BW38: 0 | BX38: 0 | BY38: 0 | BZ38: 0 | CA38: 0 | CB38: 0 | CC38: 0 | CD38: 0 | CE38: 0 | CF38: 0 | CG38: 0 | CH38: 0 | CI38: 0 | CJ38: 0 | CK38: 0 | CL38: 0 | CM38: 0 | CN38: 0
A39: 35 | C39: 0 | E39: 0 | I39: 0 | M39: 0 | Q39: 0 | U39: 0 | Y39: 0 | AC39: 0 | AG39: 0 | AK39: 0 | AO39: 0 | AS39: 0 | AW39: 0 | AZ39: 0 | BA39: 0 | BB39: 0 | BC39: 0 | BD39: 0 | BE39: 0 | BF39: 0 | BG39: 0 | BH39: 0 | BI39: 0 | BJ39: 0 | BK39: 0 | BL39: 0 | BM39: 0 | BN39: 0 | BO39: 0 | BP39: 0 | BQ39: 0 | BR39: 0 | BS39: 0 | BT39: 0 | BU39: 0 | BV39: 0 | BW39: 0 | BX39: 0 | BY39: 0 | BZ39: 0 | CA39: 0 | CB39: 0 | CC39: 0 | CD39: 0 | CE39: 0 | CF39: 0 | CG39: 0 | CH39: 0 | CI39: 0 | CJ39: 0 | CK39: 0 | CL39: 0 | CM39: 0 | CN39: 0
A40: 36 | C40: 0 | E40: 0 | I40: 0 | M40: 0 | Q40: 0 | U40: 0 | Y40: 0 | AC40: 0 | AG40: 0 | AK40: 0 | AO40: 0 | AS40: 0 | AW40: 0 | AZ40: 0 | BA40: 0 | BB40: 0 | BC40: 0 | BD40: 0 | BE40: 0 | BF40: 0 | BG40: 0 | BH40: 0 | BI40: 0 | BJ40: 0 | BK40: 0 | BL40: 0 | BM40: 0 | BN40: 0 | BO40: 0 | BP40: 0 | BQ40: 0 | BR40: 0 | BS40: 0 | BT40: 0 | BU40: 0 | BV40: 0 | BW40: 0 | BX40: 0 | BY40: 0 | BZ40: 0 | CA40: 0 | CB40: 0 | CC40: 0 | CD40: 0 | CE40: 0 | CF40: 0 | CG40: 0 | CH40: 0 | CI40: 0 | CJ40: 0 | CK40: 0 | CL40: 0 | CM40: 0 | CN40: 0
A41: 37 | C41: 0 | E41: 0 | I41: 0 | M41: 0 | Q41: 0 | U41: 0 | Y41: 0 | AC41: 0 | AG41: 0 | AK41: 0 | AO41: 0 | AS41: 0 | AW41: 0 | AZ41: 0 | BA41: 0 | BB41: 0 | BC41: 0 | BD41: 0 | BE41: 0 | BF41: 0 | BG41: 0 | BH41: 0 | BI41: 0 | BJ41: 0 | BK41: 0 | BL41: 0 | BM41: 0 | BN41: 0 | BO41: 0 | BP41: 0 | BQ41: 0 | BR41: 0 | BS41: 0 | BT41: 0 | BU41: 0 | BV41: 0 | BW41: 0 | BX41: 0 | BY41: 0 | BZ41: 0 | CA41: 0 | CB41: 0 | CC41: 0 | CD41: 0 | CE41: 0 | CF41: 0 | CG41: 0 | CH41: 0 | CI41: 0 | CJ41: 0 | CK41: 0 | CL41: 0 | CM41: 0 | CN41: 0
A42: 38 | C42: 0 | E42: 0 | I42: 0 | M42: 0 | Q42: 0 | U42: 0 | Y42: 0 | AC42: 0 | AG42: 0 | AK42: 0 | AO42: 0 | AS42: 0 | AW42: 0 | AZ42: 0 | BA42: 0 | BB42: 0 | BC42: 0 | BD42: 0 | BE42: 0 | BF42: 0 | BG42: 0 | BH42: 0 | BI42: 0 | BJ42: 0 | BK42: 0 | BL42: 0 | BM42: 0 | BN42: 0 | BO42: 0 | BP42: 0 | BQ42: 0 | BR42: 0 | BS42: 0 | BT42: 0 | BU42: 0 | BV42: 0 | BW42: 0 | BX42: 0 | BY42: 0 | BZ42: 0 | CA42: 0 | CB42: 0 | CC42: 0 | CD42: 0 | CE42: 0 | CF42: 0 | CG42: 0 | CH42: 0 | CI42: 0 | CJ42: 0 | CK42: 0 | CL42: 0 | CM42: 0 | CN42: 0
A43: 39 | C43: 0 | E43: 0 | I43: 0 | M43: 0 | Q43: 0 | U43: 0 | Y43: 0 | AC43: 0 | AG43: 0 | AK43: 0 | AO43: 0 | AS43: 0 | AW43: 0 | AZ43: 0 | BA43: 0 | BB43: 0 | BC43: 0 | BD43: 0 | BE43: 0 | BF43: 0 | BG43: 0 | BH43: 0 | BI43: 0 | BJ43: 0 | BK43: 0 | BL43: 0 | BM43: 0 | BN43: 0 | BO43: 0 | BP43: 0 | BQ43: 0 | BR43: 0 | BS43: 0 | BT43: 0 | BU43: 0 | BV43: 0 | BW43: 0 | BX43: 0 | BY43: 0 | BZ43: 0 | CA43: 0 | CB43: 0 | CC43: 0 | CD43: 0 | CE43: 0 | CF43: 0 | CG43: 0 | CH43: 0 | CI43: 0 | CJ43: 0 | CK43: 0 | CL43: 0 | CM43: 0 | CN43: 0
A44: 40 | C44: 0 | E44: 0 | I44: 0 | M44: 0 | Q44: 0 | U44: 0 | Y44: 0 | AC44: 0 | AG44: 0 | AK44: 0 | AO44: 0 | AS44: 0 | AW44: 0 | AZ44: 0 | BA44: 0 | BB44: 0 | BC44: 0 | BD44: 0 | BE44: 0 | BF44: 0 | BG44: 0 | BH44: 0 | BI44: 0 | BJ44: 0 | BK44: 0 | BL44: 0 | BM44: 0 | BN44: 0 | BO44: 0 | BP44: 0 | BQ44: 0 | BR44: 0 | BS44: 0 | BT44: 0 | BU44: 0 | BV44: 0 | BW44: 0 | BX44: 0 | BY44: 0 | BZ44: 0 | CA44: 0 | CB44: 0 | CC44: 0 | CD44: 0 | CE44: 0 | CF44: 0 | CG44: 0 | CH44: 0 | CI44: 0 | CJ44: 0 | CK44: 0 | CL44: 0 | CM44: 0 | CN44: 0
A45: 41 | C45: 0 | E45: 0 | I45: 0 | M45: 0 | Q45: 0 | U45: 0 | Y45: 0 | AC45: 0 | AG45: 0 | AK45: 0 | AO45: 0 | AS45: 0 | AW45: 0 | AZ45: 0 | BA45: 0 | BB45: 0 | BC45: 0 | BD45: 0 | BE45: 0 | BF45: 0 | BG45: 0 | BH45: 0 | BI45: 0 | BJ45: 0 | BK45: 0 | BL45: 0 | BM45: 0 | BN45: 0 | BO45: 0 | BP45: 0 | BQ45: 0 | BR45: 0 | BS45: 0 | BT45: 0 | BU45: 0 | BV45: 0 | BW45: 0 | BX45: 0 | BY45: 0 | BZ45: 0 | CA45: 0 | CB45: 0 | CC45: 0 | CD45: 0 | CE45: 0 | CF45: 0 | CG45: 0 | CH45: 0 | CI45: 0 | CJ45: 0 | CK45: 0 | CL45: 0 | CM45: 0 | CN45: 0
A46: 42 | C46: 0 | E46: 0 | I46: 0 | M46: 0 | Q46: 0 | U46: 0 | Y46: 0 | AC46: 0 | AG46: 0 | AK46: 0 | AO46: 0 | AS46: 0 | AW46: 0 | AZ46: 0 | BA46: 0 | BB46: 0 | BC46: 0 | BD46: 0 | BE46: 0 | BF46: 0 | BG46: 0 | BH46: 0 | BI46: 0 | BJ46: 0 | BK46: 0 | BL46: 0 | BM46: 0 | BN46: 0 | BO46: 0 | BP46: 0 | BQ46: 0 | BR46: 0 | BS46: 0 | BT46: 0 | BU46: 0 | BV46: 0 | BW46: 0 | BX46: 0 | BY46: 0 | BZ46: 0 | CA46: 0 | CB46: 0 | CC46: 0 | CD46: 0 | CE46: 0 | CF46: 0 | CG46: 0 | CH46: 0 | CI46: 0 | CJ46: 0 | CK46: 0 | CL46: 0 | CM46: 0 | CN46: 0
A47: 43 | C47: 0 | E47: 0 | I47: 0 | M47: 0 | Q47: 0 | U47: 0 | Y47: 0 | AC47: 0 | AG47: 0 | AK47: 0 | AO47: 0 | AS47: 0 | AW47: 0 | AZ47: 0 | BA47: 0 | BB47: 0 | BC47: 0 | BD47: 0 | BE47: 0 | BF47: 0 | BG47: 0 | BH47: 0 | BI47: 0 | BJ47: 0 | BK47: 0 | BL47: 0 | BM47: 0 | BN47: 0 | BO47: 0 | BP47: 0 | BQ47: 0 | BR47: 0 | BS47: 0 | BT47: 0 | BU47: 0 | BV47: 0 | BW47: 0 | BX47: 0 | BY47: 0 | BZ47: 0 | CA47: 0 | CB47: 0 | CC47: 0 | CD47: 0 | CE47: 0 | CF47: 0 | CG47: 0 | CH47: 0 | CI47: 0 | CJ47: 0 | CK47: 0 | CL47: 0 | CM47: 0 | CN47: 0
A48: 44 | C48: 0 | E48: 0 | I48: 0 | M48: 0 | Q48: 0 | U48: 0 | Y48: 0 | AC48: 0 | AG48: 0 | AK48: 0 | AO48: 0 | AS48: 0 | AW48: 0 | AZ48: 0 | BA48: 0 | BB48: 0 | BC48: 0 | BD48: 0 | BE48: 0 | BF48: 0 | BG48: 0 | BH48: 0 | BI48: 0 | BJ48: 0 | BK48: 0 | BL48: 0 | BM48: 0 | BN48: 0 | BO48: 0 | BP48: 0 | BQ48: 0 | BR48: 0 | BS48: 0 | BT48: 0 | BU48: 0 | BV48: 0 | BW48: 0 | BX48: 0 | BY48: 0 | BZ48: 0 | CA48: 0 | CB48: 0 | CC48: 0 | CD48: 0 | CE48: 0 | CF48: 0 | CG48: 0 | CH48: 0 | CI48: 0 | CJ48: 0 | CK48: 0 | CL48: 0 | CM48: 0 | CN48: 0
A49: 45 | C49: 0 | E49: 0 | I49: 0 | M49: 0 | Q49: 0 | U49: 0 | Y49: 0 | AC49: 0 | AG49: 0 | AK49: 0 | AO49: 0 | AS49: 0 | AW49: 0 | AZ49: 0 | BA49: 0 | BB49: 0 | BC49: 0 | BD49: 0 | BE49: 0 | BF49: 0 | BG49: 0 | BH49: 0 | BI49: 0 | BJ49: 0 | BK49: 0 | BL49: 0 | BM49: 0 | BN49: 0 | BO49: 0 | BP49: 0 | BQ49: 0 | BR49: 0 | BS49: 0 | BT49: 0 | BU49: 0 | BV49: 0 | BW49: 0 | BX49: 0 | BY49: 0 | BZ49: 0 | CA49: 0 | CB49: 0 | CC49: 0 | CD49: 0 | CE49: 0 | CF49: 0 | CG49: 0 | CH49: 0 | CI49: 0 | CJ49: 0 | CK49: 0 | CL49: 0 | CM49: 0 | CN49: 0

Sheet Class. elimin. 2 piores res
A1: 2023 | E1: OK | I1: OK | M1: OK | Q1: OK | U1: OK | Y1: OK | AC1: OK | AG1: OK | AK1: OK | AO1: OK | AS1: OK | AW1: OK
D2: 1ª etapa | H2: 2ª etapa | L2: 3ª etapa | P2: 4ª etapa | T2: 5ª etapa | X2: 6ª etapa | AB2: 7ª etapa | AF2: 8ª etapa | AJ2: 9ª etapa | AN2: 10ª etapa | AR2: 11ª etapa | AV2: 12ª etapa
B4: Nome do (a) Piloto (a) | C4: Pontuação Geral | D4: Posição | E4: Pontos | F4: Bônus | G4: Penalidade | H4: Posição | I4: Pontos | J4: Bônus | K4: Penalidade | L4: Posição | M4: Pontos | N4: Bônus | O4: Penalidade | P4: Posição | Q4: Pontos | R4: Bônus | S4: Penalidade | T4: Posição | U4: Pontos | V4: Bônus | W4: Penalidade | X4: Posição | Y4: Pontos | Z4: Bônus | AA4: Penalidade | AB4: Posição | AC4: Pontos | AD4: Bônus | AE4: Penalidade | AF4: Posição | AG4: Pontos | AH4: Bônus | AI4: Penalidade | AJ4: Posição | AK4: Pontos | AL4: Bônus | AM4: Penalidade | AN4: Posição | AO4: Pontos | AP4: Bônus | AQ4: Penalidade | AR4: Posição | AS4: Pontos | AT4: Bônus | AU4: Penalidade | AV4: Posição | AW4: Pontos | AX4: Bônus | AY4: Penalidade | AZ4: 1º LUGAR | BA4: 2º LUGAR | BB4: 3º LUGAR | BC4: 4º LUGAR | BD4: 5º LUGAR | BE4: 6º LUGAR | BF4: 7º LUGAR | BG4: 8º LUGAR | BH4: 9º LUGAR | BI4: 10º LUGAR | BJ4: 11º LUGAR | BK4: 12º LUGAR | BL4: 13º LUGAR | BM4: 14º LUGAR | BN4: 15º LUGAR | BO4: 16º LUGAR | BP4: 17º LUGAR | BQ4: 18º LUGAR | BR4: 19º LUGAR | BS4: 20º LUGAR | BT4: 21º LUGAR | BU4: 22º LUGAR | BV4: 23º LUGAR | BW4: 24º LUGAR | BX4: 25º LUGAR | BY4: 26º LUGAR | BZ4: 27º LUGAR | CA4: 28º LUGAR | CB4: 29º LUGAR | CC4: 30º LUGAR | CD4: 31º LUGAR | CE4: 32º LUGAR | CF4: 33º LUGAR | CG4: 34º LUGAR | CH4: 35º LUGAR | CI4: 36º LUGAR | CJ4: 37º LUGAR | CK4: 38º LUGAR | CL4: 39º LUGAR | CM4: 40º LUGAR | CN4: 41º LUGAR
A5: 1 | B5: Marcelo Augusto | C5: 202 | D5: 1 | E5: 25 | F5: 1 | H5: 9 | I5: 12* | J5: 0 | L5: 9 | M5: 12 | N5: 0 | Q5: 0* | T5: 7 | U5: 14 | X5: 1 | Y5: 25 | Z5: 1 | AB5: 2 | AC5: 22 | AF5: 2 | AG5: 22 | AJ5: 5 | AK5: 16 | AN5: 2 | AO5: 22 | AR5: 3 | AS5: 20 | AV5: 2 | AW5: 22 | AZ5: 2 | BA5: 4 | BB5: 1 | BC5: 0 | BD5: 1 | BE5: 0 | BF5: 1 | BG5: 0 | BH5: 2 | BI5: 0 | BJ5: 0 | BK5: 0 | BL5: 0 | BM5: 0 | BN5: 0 | BO5: 0 | BP5: 0 | BQ5: 0 | BR5: 0 | BS5: 0 | BT5: 0 | BU5: 0 | BV5: 0 | BW5: 0 | BX5: 0 | BY5: 0 | BZ5: 0 | CA5: 0 | CB5: 0 | CC5: 0 | CD5: 0 | CE5: 0 | CF5: 0 | CG5: 0 | CH5: 0 | CI5: 0 | CJ5: 0 | CK5: 0 | CL5: 0 | CM5: 0 | CN5: 0
A6: 2 | B6: Lucas Bessas | C6: 190 | D6: 4 | E6: 18 | H6: 4 | I6: 18 | J6: 0 | L6: 1 | M6: 25 | N6: 1 | P6: 1 | Q6: 25 | U6: 0* | X6: 5 | Y6: 16 | AB6: 3 | AC6: 20 | AG6: 0 | AI6: SIM | AJ6: 1 | AK6: 25 | AL6: 1 | AN6: 6 | AO6: 15* | AR6: 1 | AS6: 25 | AT6: 1 | AV6: 6 | AW6: 15 | AZ6: 4 | BA6: 0 | BB6: 1 | BC6: 2 | BD6: 1 | BE6: 2 | BF6: 0 | BG6: 0 | BH6: 0 | BI6: 0 | BJ6: 0 | BK6: 0 | BL6: 0 | BM6: 0 | BN6: 0 | BO6: 0 | BP6: 0 | BQ6: 0 | BR6: 0 | BS6: 0 | BT6: 0 | BU6: 0 | BV6: 0 | BW6: 0 | BX6: 0 | BY6: 0 | BZ6: 0 | CA6: 0 | CB6: 0 | CC6: 0 | CD6: 0 | CE6: 0 | CF6: 0 | CG6: 0 | CH6: 0 | CI6: 0 | CJ6: 0 | CK6: 0 | CL6: 0 | CM6: 0 | CN6: 0
A7: 3 | B7: João Lott | C7: 175 | D7: 2 | E7: 22 | H7: 7 | I7: 14 | J7: 0 | L7: 8 | M7: 13 | N7: 0 | Q7: 0* | T7: 1 | U7: 25 | X7: 3 | Y7: 20 | AB7: 1 | AC7: 25 | AD7: 1 | AF7: 8 | AG7: 13 | AJ7: 8 | AK7: 13 | AN7: 7 | AO7: 14 | AS7: 0* | AV7: 7 | AW7: 14 | AX7: 1 | AZ7: 2 | BA7: 1 | BB7: 1 | BC7: 0 | BD7: 0 | BE7: 0 | BF7: 3 | BG7: 3 | BH7: 0 | BI7: 0 | BJ7: 0 | BK7: 0 | BL7: 0 | BM7: 0 | BN7: 0 | BO7: 0 | BP7: 0 | BQ7: 0 | BR7: 0 | BS7: 0 | BT7: 0 | BU7: 0 | BV7: 0 | BW7: 0 | BX7: 0 | BY7: 0 | BZ7: 0 | CA7: 0 | CB7: 0 | CC7: 0 | CD7: 0 | CE7: 0 | CF7: 0 | CG7: 0 | CH7: 0 | CI7: 0 | CJ7: 0 | CK7: 0 | CL7: 0 | CM7: 0 | CN7: 0
A8: 4 | B8: Luciano Macnamarra | C8: 167 | D8: 8 | E8: 13 | H8: 5 | I8: 16 | J8: 0 | L8: 13 | M8: 8* | N8: 0 | P8: 7 | Q8: 14 | T8: 11 | U8: 10* | X8: 4 | Y8: 18 | AB8: 5 | AC8: 16 | AF8: 5 | AG8: 16 | AJ8: 15 | AK8: 6 | AM8: SIM | AN8: 1 | AO8: 25 | AP8: 1 | AR8: 2 | AS8: 22 | AV8: 3 | AW8: 20 | AZ8: 1 | BA8: 1 | BB8: 1 | BC8: 1 | BD8: 3 | BE8: 0 | BF8: 1 | BG8: 1 | BH8: 0 | BI8: 0 | BJ8: 1 | BK8: 0 | BL8: 1 | BM8: 0 | BN8: 1 | BO8: 0 | BP8: 0 | BQ8: 0 | BR8: 0 | BS8: 0 | BT8: 0 | BU8: 0 | BV8: 0 | BW8: 0 | BX8: 0 | BY8: 0 | BZ8: 0 | CA8: 0 | CB8: 0 | CC8: 0 | CD8: 0 | CE8: 0 | CF8: 0 | CG8: 0 | CH8: 0 | CI8: 0 | CJ8: 0 | CK8: 0 | CL8: 0 | CM8: 0 | CN8: 0
A9: 5 | B9: Henrique Pereira | C9: 157 | D9: 3 | E9: 20 | H9: 15 | I9: 6 | J9: 0 | K9: SIM | L9: 6 | M9: 15 | N9: 0 | P9: 3 | Q9: 20 | R9: 1 | T9: 3 | U9: 20 | V9: 1 | X9: 7 | Y9: 14* | AB9: 11 | AC9: 10* | AF9: 3 | AG9: 20 | AJ9: 4 | AK9: 18 | AN9: 4 | AO9: 18 | AR9: 0 | AS9: 0 | AU9: SIM | AV9: 4 | AW9: 18 | AZ9: 0 | BA9: 0 | BB9: 4 | BC9: 3 | BD9: 0 | BE9: 1 | BF9: 1 | BG9: 0 | BH9: 0 | BI9: 0 | BJ9: 1 | BK9: 0 | BL9: 0 | BM9: 0 | BN9: 1 | BO9: 0 | BP9: 0 | BQ9: 0 | BR9: 0 | BS9: 0 | BT9: 0 | BU9: 0 | BV9: 0 | BW9: 0 | BX9: 0 | BY9: 0 | BZ9: 0 | CA9: 0 | CB9: 0 | CC9: 0 | CD9: 0 | CE9: 0 | CF9: 0 | CG9: 0 | CH9: 0 | CI9: 0 | CJ9: 0 | CK9: 0 | CL9: 0 | CM9: 0 | CN9: 0
A10: 6 | B10: Raphael Reis | C10: 156 | D10: 15 | E10: 6 | G10: SIM | H10: 6 | I10: 15* | J10: 0 | L10: 4 | M10: 18 | N10: 0 | P10: 4 | Q10: 18 | T10: 5 | U10: 16 | X10: 26 | Y10: 0 | AA10: SIM | AB10: 6 | AC10: 15 | AF10: 1 | AG10: 25 | AH10: 1 | AJ10: 9 | AK10: 12* | AN10: 5 | AO10: 16 | AR10: 5 | AS10: 16 | AV10: 1 | AW10: 25 | AZ10: 2 | BA10: 0 | BB10: 0 | BC10: 2 | BD10: 3 | BE10: 2 | BF10: 0 | BG10: 0 | BH10: 1 | BI10: 0 | BJ10: 0 | BK10: 0 | BL10: 0 | BM10: 0 | BN10: 1 | BO10: 0 | BP10: 0 | BQ10: 0 | BR10: 0 | BS10: 0 | BT10: 0 | BU10: 0 | BV10: 0 | BW10: 0 | BX10: 0 | BY10: 1 | BZ10: 0 | CA10: 0 | CB10: 0 | CC10: 0 | CD10: 0 | CE10: 0 | CF10: 0 | CG10: 0 | CH10: 0 | CI10: 0 | CJ10: 0 | CK10: 0 | CL10: 0 | CM10: 0 | CN10: 0
A11: 7 | B11: Cristiano Cendon | C11: 141 | E11: 0* | H11: 10 | I11: 11 | J11: 0 | L11: 11 | M11: 10* | N11: 0 | P11: 8 | Q11: 13 | T11: 2 | U11: 22 | X11: 6 | Y11: 15 | AB11: 7 | AC11: 14 | AF11: 4 | AG11: 18 | AJ11: 2 | AK11: 22 | AN11: 8 | AO11: 13 | AR11: 0 | AS11: 0 | AU11: SIM | AV11: 8 | AW11: 13 | AZ11: 0 | BA11: 2 | BB11: 0 | BC11: 1 | BD11: 0 | BE11: 1 | BF11: 1 | BG11: 3 | BH11: 0 | BI11: 1 | BJ11: 1 | BK11: 0 | BL11: 0 | BM11: 0 | BN11: 0 | BO11: 0 | BP11: 0 | BQ11: 0 | BR11: 0 | BS11: 0 | BT11: 0 | BU11: 0 | BV11: 0 | BW11: 0 | BX11: 0 | BY11: 0 | BZ11: 0 | CA11: 0 | CB11: 0 | CC11: 0 | CD11: 0 | CE11: 0 | CF11: 0 | CG11: 0 | CH11: 0 | CI11: 0 | CJ11: 0 | CK11: 0 | CL11: 0 | CM11: 0 | CN11: 0
A12: 8 | B12: Gijo | C12: 121 | E12: 0* | I12: 0* | L12: 5 | M12: 16 | N12: 0 | P12: 6 | Q12: 15 | S12: -5 | T12: 4 | U12: 18 | Y12: 0 | AA12: -5 | AB12: 4 | AC12: 18 | AF12: 6 | AG12: 15 | AK12: 0 | AM12: -5 | AN12: 3 | AO12: 20 | AR12: 4 | AS12: 18 | AV12: 5 | AW12: 16 | AZ12: 0 | BA12: 0 | BB12: 1 | BC12: 3 | BD12: 2 | BE12: 2 | BF12: 0 | BG12: 0 | BH12: 0 | BI12: 0 | BJ12: 0 | BK12: 0 | BL12: 0 | BM12: 0 | BN12: 0 | BO12: 0 | BP12: 0 | BQ12: 0 | BR12: 0 | BS12: 0 | BT12: 0 | BU12: 0 | BV12: 0 | BW12: 0 | BX12: 0 | BY12: 0 | BZ12: 0 | CA12: 0 | CB12: 0 | CC12: 0 | CD12: 0 | CE12: 0 | CF12: 0 | CG12: 0 | CH12: 0 | CI12: 0 | CJ12: 0 | CK12: 0 | CL12: 0 | CM12: 0 | CN12: 0
A13: 9 | B13: Matheus Rocha | C13: 113 | E13: 0* | I13: 0* | L13: 2 | M13: 22 | N13: 0 | P13: 2 | Q13: 22 | T13: 6 | U13: 15 | X13: 2 | Y13: 22 | AC13: 0 | AG13: 0 | AJ13: 3 | AK13: 20 | AN13: 9 | AO13: 12 | AS13: 0 | AW13: 0 | AZ13: 0 | BA13: 3 | BB13: 1 | BC13: 0 | BD13: 0 | BE13: 1 | BF13: 0 | BG13: 0 | BH13: 1 | BI13: 0 | BJ13: 0 | BK13: 0 | BL13: 0 | BM13: 0 | BN13: 0 | BO13: 0 | BP13: 0 | BQ13: 0 | BR13: 0 | BS13: 0 | BT13: 0 | BU13: 0 | BV13: 0 | BW13: 0 | BX13: 0 | BY13: 0 | BZ13: 0 | CA13: 0 | CB13: 0 | CC13: 0 | CD13: 0 | CE13: 0 | CF13: 0 | CG13: 0 | CH13: 0 | CI13: 0 | CJ13: 0 | CK13: 0 | CL13: 0 | CM13: 0 | CN13: 0
A14: 10 | B14: Renato Martins | C14: 94 | D14: 21 | E14: 1 | H14: 8 | I14: 13 | J14: 0 | L14: 3 | M14: 20 | N14: 0 | P14: 9 | Q14: 12 | U14: 0* | Y14: 0* | AC14: 0 | AG14: 0 | AI14: -5 | AJ14: 6 | AK14: 15 | AN14: 10 | AO14: 11 | AR14: 6 | AS14: 15 | AV14: 9 | AW14: 12 | AZ14: 0 | BA14: 0 | BB14: 1 | BC14: 0 | BD14: 0 | BE14: 2 | BF14: 0 | BG14: 1 | BH14: 2 | BI14: 1 | BJ14: 0 | BK14: 0 | BL14: 0 | BM14: 0 | BN14: 0 | BO14: 0 | BP14: 0 | BQ14: 0 | BR14: 0 | BS14: 0 | BT14: 1 | BU14: 0 | BV14: 0 | BW14: 0 | BX14: 0 | BY14: 0 | BZ14: 0 | CA14: 0 | CB14: 0 | CC14: 0 | CD14: 0 | CE14: 0 | CF14: 0 | CG14: 0 | CH14: 0 | CI14: 0 | CJ14: 0 | CK14: 0 | CL14: 0 | CM14: 0 | CN14: 0
A15: 11 | B15: Thiago Amaro | C15: 65 | D15: 18 | E15: 3 | H15: 13 | I15: 8 | J15: 0 | L15: 15 | M15: 6 | N15: 0 | P15: 11 | Q15: 10 | T15: 10 | U15: 11 | Y15: 0* | AB15: 0 | AC15: 0 | AE15: SIM | AF15: 7 | AG15: 14 | AK15: 0* | AO15: 0 | AR15: 8 | AS15: 13 | AV15: 30 | AW15: 0 | AY15: SIM | AZ15: 0 | BA15: 0 | BB15: 0 | BC15: 0 | BD15: 0 | BE15: 0 | BF15: 1 | BG15: 1 | BH15: 0 | BI15: 1 | BJ15: 1 | BK15: 0 | BL15: 1 | BM15: 0 | BN15: 1 | BO15: 0 | BP15: 0 | BQ15: 1 | BR15: 0 | BS15: 0 | BT15: 0 | BU15: 0 | BV15: 0 | BW15: 0 | BX15: 0 | BY15: 0 | BZ15: 0 | CA15: 0 | CB15: 0 | CC15: 1 | CD15: 0 | CE15: 0 | CF15: 0 | CG15: 0 | CH15: 0 | CI15: 0 | CJ15: 0 | CK15: 0 | CL15: 0 | CM15: 0 | CN15: 0
A16: 12 | B16: Levindo Neto | C16: 57 | D16: 10 | E16: 11 | H16: 27 | I16: 0 | J16: 0 | K16: SIM | L16: 17 | M16: 4 | N16: 0 | Q16: 0* | U16: 0* | Y16: 0 | AA16: -5 | AB16: 8 | AC16: 13 | AG16: 0 | AJ16: 7 | AK16: 14 | AO16: 0 | AQ16: -5 | AR16: 7 | AS16: 14 | AV16: 10 | AW16: 11 | AZ16: 0 | BA16: 0 | BB16: 0 | BC16: 0 | BD16: 0 | BE16: 0 | BF16: 2 | BG16: 1 | BH16: 0 | BI16: 2 | BJ16: 0 | BK16: 0 | BL16: 0 | BM16: 0 | BN16: 0 | BO16: 0 | BP16: 1 | BQ16: 0 | BR16: 0 | BS16: 0 | BT16: 0 | BU16: 0 | BV16: 0 | BW16: 0 | BX16: 0 | BY16: 0 | BZ16: 1 | CA16: 0 | CB16: 0 | CC16: 0 | CD16: 0 | CE16: 0 | CF16: 0 | CG16: 0 | CH16: 0 | CI16: 0 | CJ16: 0 | CK16: 0 | CL16: 0 | CM16: 0 | CN16: 0
A17: 13 | B17: Jucimar Vieira | C17: 51 | D17: 20 | E17: 1 | H17: 1 | I17: 25 | J17: 0 | L17: 10 | M17: 11 | N17: 0 | P17: 10 | Q17: 11 | T17: 8 | U17: 13 | Y17: 0* | AC17: 0* | AG17: 0 | AK17: 0 | AM17: -5 | AO17: 0 | AQ17: -5 | AS17: 0 | AW17: 0 | AZ17: 1 | BA17: 0 | BB17: 0 | BC17: 0 | BD17: 0 | BE17: 0 | BF17: 0 | BG17: 1 | BH17: 0 | BI17: 2 | BJ17: 0 | BK17: 0 | BL17: 0 | BM17: 0 | BN17: 0 | BO17: 0 | BP17: 0 | BQ17: 0 | BR17: 0 | BS17: 1 | BT17: 0 | BU17: 0 | BV17: 0 | BW17: 0 | BX17: 0 | BY17: 0 | BZ17: 0 | CA17: 0 | CB17: 0 | CC17: 0 | CD17: 0 | CE17: 0 | CF17: 0 | CG17: 0 | CH17: 0 | CI17: 0 | CJ17: 0 | CK17: 0 | CL17: 0 | CM17: 0 | CN17: 0
A18: 14 | B18: Henry Douglas | C18: 28 | D18: 6 | E18: 15 | H18: 12 | I18: 9 | J18: 0 | L18: 12 | M18: 9 | N18: 0 | Q18: 0* | U18: 0* | W18: -5 | Y18: 0 | AC18: 0 | AG18: 0 | AK18: 0 | AO18: 0 | AS18: 0 | AW18: 0 | AZ18: 0 | BA18: 0 | BB18: 0 | BC18: 0 | BD18: 0 | BE18: 1 | BF18: 0 | BG18: 0 | BH18: 0 | BI18: 0 | BJ18: 0 | BK18: 2 | BL18: 0 | BM18: 0 | BN18: 0 | BO18: 0 | BP18: 0 | BQ18: 0 | BR18: 0 | BS18: 0 | BT18: 0 | BU18: 0 | BV18: 0 | BW18: 0 | BX18: 0 | BY18: 0 | BZ18: 0 | CA18: 0 | CB18: 0 | CC18: 0 | CD18: 0 | CE18: 0 | CF18: 0 | CG18: 0 | CH18: 0 | CI18: 0 | CJ18: 0 | CK18: 0 | CL18: 0 | CM18: 0 | CN18: 0
A19: 15 | B19: Gustavo Barros | C19: 26 | D19: 5 | E19: 16 | H19: 11 | I19: 10 | J19: 0 | L19: 16 | M19: 5 | N19: 0 | Q19: 0* | U19: 0* | Y19: 0 | AC19: 0 | AG19: 0 | AK19: 0 | AO19: 0 | AQ19: -5 | AS19: 0 | AW19: 0 | AZ19: 0 | BA19: 0 | BB19: 0 | BC19: 0 | BD19: 1 | BE19: 0 | BF19: 0 | BG19: 0 | BH19: 0 | BI19: 0 | BJ19: 1 | BK19: 0 | BL19: 0 | BM19: 0 | BN19: 0 | BO19: 1 | BP19: 0 | BQ19: 0 | BR19: 0 | BS19: 0 | BT19: 0 | BU19: 0 | BV19: 0 | BW19: 0 | BX19: 0 | BY19: 0 | BZ19: 0 | CA19: 0 | CB19: 0 | CC19: 0 | CD19: 0 | CE19: 0 | CF19: 0 | CG19: 0 | CH19: 0 | CI19: 0 | CJ19: 0 | CK19: 0 | CL19: 0 | CM19: 0 | CN19: 0
A20: 16 | B20: Luciano Robervine | C20: 14 | D20: 19 | E20: 2 | G20: SIM | H20: 3 | I20: 20 | J20: 1 | M20: 0* | O20: -5 | P20: 5 | Q20: 16 | T20: 0 | U20: 0 | W20: SIM | Y20: 0* | AA20: -5 | AC20: 0 | AG20: 0 | AI20: -5 | AK20: 0 | AM20: -5 | AO20: 0 | AQ20: -5 | AS20: 0 | AW20: 0 | AZ20: 0 | BA20: 0 | BB20: 1 | BC20: 0 | BD20: 1 | BE20: 0 | BF20: 0 | BG20: 0 | BH20: 0 | BI20: 0 | BJ20: 0 | BK20: 0 | BL20: 0 | BM20: 0 | BN20: 0 | BO20: 0 | BP20: 0 | BQ20: 0 | BR20: 1 | BS20: 0 | BT20: 0 | BU20: 0 | BV20: 0 | BW20: 0 | BX20: 0 | BY20: 0 | BZ20: 0 | CA20: 0 | CB20: 0 | CC20: 0 | CD20: 0 | CE20: 0 | CF20: 0 | CG20: 0 | CH20: 0 | CI20: 0 | CJ20: 0 | CK20: 0 | CL20: 0 | CM20: 0 | CN20: 0
A21: 17 | B21: Alan Moreira | C21: 14 | D21: 11 | E21: 10 | I21: 0* | L21: 14 | M21: 7 | N21: 0 | O21: -5 | Q21: 0* | T21: 9 | U21: 12 | Y21: 0 | AA21: -5 | AC21: 0 | AG21: 0 | AI21: -5 | AK21: 0 | AO21: 0 | AS21: 0 | AW21: 0 | AZ21: 0 | BA21: 0 | BB21: 0 | BC21: 0 | BD21: 0 | BE21: 0 | BF21: 0 | BG21: 0 | BH21: 1 | BI21: 0 | BJ21: 1 | BK21: 0 | BL21: 0 | BM21: 1 | BN21: 0 | BO21: 0 | BP21: 0 | BQ21: 0 | BR21: 0 | BS21: 0 | BT21: 0 | BU21: 0 | BV21: 0 | BW21: 0 | BX21: 0 | BY21: 0 | BZ21: 0 | CA21: 0 | CB21: 0 | CC21: 0 | CD21: 0 | CE21: 0 | CF21: 0 | CG21: 0 | CH21: 0 | CI21: 0 | CJ21: 0 | CK21: 0 | CL21: 0 | CM21: 0 | CN21: 0
A22: 18 | B22: Celso Dantas | C22: 11 | E22: 0* | I22: 0* | M22: 0 | Q22: 0 | U22: 0 | Y22: 0 | AB22: 10 | AC22: 11 | AG22: 0 | AK22: 0 | AO22: 0 | AS22: 0 | AW22: 0 | AZ22: 0 | BA22: 0 | BB22: 0 | BC22: 0 | BD22: 0 | BE22: 0 | BF22: 0 | BG22: 0 | BH22: 0 | BI22: 1 | BJ22: 0 | BK22: 0 | BL22: 0 | BM22: 0 | BN22: 0 | BO22: 0 | BP22: 0 | BQ22: 0 | BR22: 0 | BS22: 0 | BT22: 0 | BU22: 0 | BV22: 0 | BW22: 0 | BX22: 0 | BY22: 0 | BZ22: 0 | CA22: 0 | CB22: 0 | CC22: 0 | CD22: 0 | CE22: 0 | CF22: 0 | CG22: 0 | CH22: 0 | CI22: 0 | CJ22: 0 | CK22: 0 | CL22: 0 | CM22: 0 | CN22: 0
A23: 19 | B23: Lucas Roscito | C23: 9 | E23: 0* | I23: 0* | M23: 0 | Q23: 0 | U23: 0 | Y23: 0 | AB23: 9 | AC23: 12 | AF23: 9 | AG23: 12 | AI23: -5 | AK23: 0 | AM23: -5 | AO23: 0 | AQ23: -5 | AS23: 0 | AW23: 0 | AZ23: 0 | BA23: 0 | BB23: 0 | BC23: 0 | BD23: 0 | BE23: 0 | BF23: 0 | BG23: 0 | BH23: 2 | BI23: 0 | BJ23: 0 | BK23: 0 | BL23: 0 | BM23: 0 | BN23: 0 | BO23: 0 | BP23: 0 | BQ23: 0 | BR23: 0 | BS23: 0 | BT23: 0 | BU23: 0 | BV23: 0 | BW23: 0 | BX23: 0 | BY23: 0 | BZ23: 0 | CA23: 0 | CB23: 0 | CC23: 0 | CD23: 0 | CE23: 0 | CF23: 0 | CG23: 0 | CH23: 0 | CI23: 0 | CJ23: 0 | CK23: 0 | CL23: 0 | CM23: 0 | CN23: 0
A24: 20 | B24: Victor Vaz | C24: 0 | D24: 9 | E24: 12 | I24: 0* | K24: -5 | M24: 0* | Q24: 0 | S24: -5 | U24: 0 | Y24: 0 | AA24: -5 | AC24: 0 | AE24: -5 | AG24: 0 | AI24: -5 | AK24: 0 | AM24: -5 | AO24: 0 | AQ24: -5 | AS24: 0 | AW24: 0 | AZ24: 0 | BA24: 0 | BB24: 0 | BC24: 0 | BD24: 0 | BE24: 0 | BF24: 0 | BG24: 0 | BH24: 1 | BI24: 0 | BJ24: 0 | BK24: 0 | BL24: 0 | BM24: 0 | BN24: 0 | BO24: 0 | BP24: 0 | BQ24: 0 | BR24: 0 | BS24: 0 | BT24: 0 | BU24: 0 | BV24: 0 | BW24: 0 | BX24: 0 | BY24: 0 | BZ24: 0 | CA24: 0 | CB24: 0 | CC24: 0 | CD24: 0 | CE24: 0 | CF24: 0 | CG24: 0 | CH24: 0 | CI24: 0 | CJ24: 0 | CK24: 0 | CL24: 0 | CM24: 0 | CN24: 0
A25: 21 | B25: Iago Bastos | C25: 0 | D25: 12 | E25: 9 | I25: 0* | K25: -5 | M25: 0* | O25: -5 | Q25: 0 | S25: -5 | U25: 0 | W25: -5 | Y25: 0 | AA25: -5 | AC25: 0 | AE25: -5 | AG25: 0 | AI25: -5 | AK25: 0 | AM25: -5 | AO25: 0 | AQ25: -5 | AS25: 0 | AW25: 0 | AZ25: 0 | BA25: 0 | BB25: 0 | BC25: 0 | BD25: 0 | BE25: 0 | BF25: 0 | BG25: 0 | BH25: 0 | BI25: 0 | BJ25: 0 | BK25: 1 | BL25: 0 | BM25: 0 | BN25: 0 | BO25: 0 | BP25: 0 | BQ25: 0 | BR25: 0 | BS25: 0 | BT25: 0 | BU25: 0 | BV25: 0 | BW25: 0 | BX25: 0 | BY25: 0 | BZ25: 0 | CA25: 0 | CB25: 0 | CC25: 0 | CD25: 0 | CE25: 0 | CF25: 0 | CG25: 0 | CH25: 0 | CI25: 0 | CJ25: 0 | CK25: 0 | CL25: 0 | CM25: 0 | CN25: 0
A26: 22 | B26: Pedro Toussaint | C26: 0 | D26: 13 | E26: 8 | I26: 0* | K26: -5 | M26: 0* | O26: -5 | Q26: 0 | S26: -5 | U26: 0 | W26: -5 | Y26: 0 | AA26: -5 | AC26: 0 | AE26: -5 | AG26: 0 | AI26: -5 | AK26: 0 | AM26: -5 | AO26: 0 | AQ26: -5 | AS26: 0 | AW26: 0 | AZ26: 0 | BA26: 0 | BB26: 0 | BC26: 0 | BD26: 0 | BE26: 0 | BF26: 0 | BG26: 0 | BH26: 0 | BI26: 0 | BJ26: 0 | BK26: 0 | BL26: 1 | BM26: 0 | BN26: 0 | BO26: 0 | BP26: 0 | BQ26: 0 | BR26: 0 | BS26: 0 | BT26: 0 | BU26: 0 | BV26: 0 | BW26: 0 | BX26: 0 | BY26: 0 | BZ26: 0 | CA26: 0 | CB26: 0 | CC26: 0 | CD26: 0 | CE26: 0 | CF26: 0 | CG26: 0 | CH26: 0 | CI26: 0 | CJ26: 0 | CK26: 0 | CL26: 0 | CM26: 0 | CN26: 0
A27: 23 | B27: Alan Tacchi | C27: 0 | D27: 16 | E27: 5 | H27: 14 | I27: 7 | J27: 0 | M27: 0* | Q27: 0* | S27: -5 | U27: 0 | W27: -5 | Y27: 0 | AA27: -5 | AC27: 0 | AE27: -5 | AG27: 0 | AI27: -5 | AK27: 0 | AM27: -5 | AO27: 0 | AQ27: -5 | AS27: 0 | AW27: 0 | AZ27: 0 | BA27: 0 | BB27: 0 | BC27: 0 | BD27: 0 | BE27: 0 | BF27: 0 | BG27: 0 | BH27: 0 | BI27: 0 | BJ27: 0 | BK27: 0 | BL27: 0 | BM27: 1 | BN27: 0 | BO27: 1 | BP27: 0 | BQ27: 0 | BR27: 0 | BS27: 0 | BT27: 0 | BU27: 0 | BV27: 0 | BW27: 0 | BX27: 0 | BY27: 0 | BZ27: 0 | CA27: 0 | CB27: 0 | CC27: 0 | CD27: 0 | CE27: 0 | CF27: 0 | CG27: 0 | CH27: 0 | CI27: 0 | CJ27: 0 | CK27: 0 | CL27: 0 | CM27: 0 | CN27: 0
A28: 24 | B28: Raphael Fraga | C28: 0 | D28: 14 | E28: 7 | I28: 0* | K28: -5 | M28: 0* | Q28: 0 | S28: -5 | U28: 0 | W28: -5 | Y28: 0 | AA28: -5 | AC28: 0 | AE28: -5 | AG28: 0 | AI28: -5 | AK28: 0 | AM28: -5 | AO28: 0 | AQ28: -5 | AS28: 0 | AW28: 0 | AZ28: 0 | BA28: 0 | BB28: 0 | BC28: 0 | BD28: 0 | BE28: 0 | BF28: 0 | BG28: 0 | BH28: 0 | BI28: 0 | BJ28: 0 | BK28: 0 | BL28: 0 | BM28: 1 | BN28: 0 | BO28: 0 | BP28: 0 | BQ28: 0 | BR28: 0 | BS28: 0 | BT28: 0 | BU28: 0 | BV28: 0 | BW28: 0 | BX28: 0 | BY28: 0 | BZ28: 0 | CA28: 0 | CB28: 0 | CC28: 0 | CD28: 0 | CE28: 0 | CF28: 0 | CG28: 0 | CH28: 0 | CI28: 0 | CJ28: 0 | CK28: 0 | CL28: 0 | CM28: 0 | CN28: 0
A29: 25 | B29: Lisandro Sodré | C29: 0 | D29: 17 | E29: 4 | H29: 16 | I29: 5 | J29: 0 | M29: 0* | Q29: 0* | U29: 0 | Y29: 0 | AA29: -5 | AC29: 0 | AE29: -5 | AG29: 0 | AI29: -5 | AK29: 0 | AM29: -5 | AO29: 0 | AQ29: -5 | AS29: 0 | AW29: 0 | AZ29: 0 | BA29: 0 | BB29: 0 | BC29: 0 | BD29: 0 | BE29: 0 | BF29: 0 | BG29: 0 | BH29: 0 | BI29: 0 | BJ29: 0 | BK29: 0 | BL29: 0 | BM29: 0 | BN29: 0 | BO29: 1 | BP29: 1 | BQ29: 0 | BR29: 0 | BS29: 0 | BT29: 0 | BU29: 0 | BV29: 0 | BW29: 0 | BX29: 0 | BY29: 0 | BZ29: 0 | CA29: 0 | CB29: 0 | CC29: 0 | CD29: 0 | CE29: 0 | CF29: 0 | CG29: 0 | CH29: 0 | CI29: 0 | CJ29: 0 | CK29: 0 | CL29: 0 | CM29: 0 | CN29: 0
A30: 26 | B30: Alexandre Missionschnick | C30: 0 | D30: 30 | E30: 0 | G30: SIM | I30: 0* | M30: 0* | O30: -5 | Q30: 0 | S30: -5 | U30: 0 | W30: -5 | Y30: 0 | AA30: -5 | AC30: 0 | AE30: -5 | AG30: 0 | AI30: -5 | AK30: 0 | AM30: -5 | AO30: 0 | AQ30: -5 | AS30: 0 | AW30: 0 | AZ30: 0 | BA30: 0 | BB30: 0 | BC30: 0 | BD30: 0 | BE30: 0 | BF30: 0 | BG30: 0 | BH30: 0 | BI30: 0 | BJ30: 0 | BK30: 0 | BL30: 0 | BM30: 0 | BN30: 0 | BO30: 0 | BP30: 0 | BQ30: 0 | BR30: 0 | BS30: 0 | BT30: 0 | BU30: 0 | BV30: 0 | BW30: 0 | BX30: 0 | BY30: 0 | BZ30: 0 | CA30: 0 | CB30: 0 | CC30: 1 | CD30: 0 | CE30: 0 | CF30: 0 | CG30: 0 | CH30: 0 | CI30: 0 | CJ30: 0 | CK30: 0 | CL30: 0 | CM30: 0 | CN30: 0
A31: 27 | B31: XXXXX | C31: 0 | E31: 0* | I31: 0* | M31: 0 | Q31: 0 | S31: SIM | U31: 0 | W31: SIM | Y31: 0 | AC31: 0 | AG31: 0 | AK31: 0 | AO31: 0 | AS31: 0 | AW31: 0 | AZ31: 0 | BA31: 0 | BB31: 0 | BC31: 0 | BD31: 0 | BE31: 0 | BF31: 0 | BG31: 0 | BH31: 0 | BI31: 0 | BJ31: 0 | BK31: 0 | BL31: 0 | BM31: 0 | BN31: 0 | BO31: 0 | BP31: 0 | BQ31: 0 | BR31: 0 | BS31: 0 | BT31: 0 | BU31: 0 | BV31: 0 | BW31: 0 | BX31: 0 | BY31: 0 | BZ31: 0 | CA31: 0 | CB31: 0 | CC31: 0 | CD31: 0 | CE31: 0 | CF31: 0 | CG31: 0 | CH31: 0 | CI31: 0 | CJ31: 0 | CK31: 0 | CL31: 0 | CM31: 0 | CN31: 0
A32: 28 | B32: Thiago Santos | C32: 0 | E32: 0* | I32: 0* | K32: -5 | M32: 0 | O32: -5 | Q32: 0 | S32: -5 | U32: 0 | W32: -5 | Y32: 0 | AA32: -5 | AC32: 0 | AE32: -5 | AG32: 0 | AI32: -5 | AK32: 0 | AM32: -5 | AO32: 0 | AQ32: -5 | AS32: 0 | AW32: 0 | AZ32: 0 | BA32: 0 | BB32: 0 | BC32: 0 | BD32: 0 | BE32: 0 | BF32: 0 | BG32: 0 | BH32: 0 | BI32: 0 | BJ32: 0 | BK32: 0 | BL32: 0 | BM32: 0 | BN32: 0 | BO32: 0 | BP32: 0 | BQ32: 0 | BR32: 0 | BS32: 0 | BT32: 0 | BU32: 0 | BV32: 0 | BW32: 0 | BX32: 0 | BY32: 0 | BZ32: 0 | CA32: 0 | CB32: 0 | CC32: 0 | CD32: 0 | CE32: 0 | CF32: 0 | CG32: 0 | CH32: 0 | CI32: 0 | CJ32: 0 | CK32: 0 | CL32: 0 | CM32: 0 | CN32: 0
A33: 29 | C33: 0 | E33: 0 | I33: 0 | M33: 0 | Q33: 0 | U33: 0 | Y33: 0 | AC33: 0 | AG33: 0 | AK33: 0 | AO33: 0 | AS33: 0 | AW33: 0 | AZ33: 0 | BA33: 0 | BB33: 0 | BC33: 0 | BD33: 0 | BE33: 0 | BF33: 0 | BG33: 0 | BH33: 0 | BI33: 0 | BJ33: 0 | BK33: 0 | BL33: 0 | BM33: 0 | BN33: 0 | BO33: 0 | BP33: 0 | BQ33: 0 | BR33: 0 | BS33: 0 | BT33: 0 | BU33: 0 | BV33: 0 | BW33: 0 | BX33: 0 | BY33: 0 | BZ33: 0 | CA33: 0 | CB33: 0 | CC33: 0 | CD33: 0 | CE33: 0 | CF33: 0 | CG33: 0 | CH33: 0 | CI33: 0 | CJ33: 0 | CK33: 0 | CL33: 0 | CM33: 0 | CN33: 0
A34: 30 | C34: 0 | E34: 0 | I34: 0 | M34: 0 | Q34: 0 | U34: 0 | Y34: 0 | AC34: 0 | AG34: 0 | AK34: 0 | AO34: 0 | AS34: 0 | AW34: 0 | AZ34: 0 | BA34: 0 | BB34: 0 | BC34: 0 | BD34: 0 | BE34: 0 | BF34: 0 | BG34: 0 | BH34: 0 | BI34: 0 | BJ34: 0 | BK34: 0 | BL34: 0 | BM34: 0 | BN34: 0 | BO34: 0 | BP34: 0 | BQ34: 0 | BR34: 0 | BS34: 0 | BT34: 0 | BU34: 0 | BV34: 0 | BW34: 0 | BX34: 0 | BY34: 0 | BZ34: 0 | CA34: 0 | CB34: 0 | CC34: 0 | CD34: 0 | CE34: 0 | CF34: 0 | CG34: 0 | CH34: 0 | CI34: 0 | CJ34: 0 | CK34: 0 | CL34: 0 | CM34: 0 | CN34: 0
A35: 31 | C35: 0 | E35: 0 | I35: 0 | M35: 0 | Q35: 0 | U35: 0 | Y35: 0 | AC35: 0 | AG35: 0 | AK35: 0 | AO35: 0 | AS35: 0 | AW35: 0 | AZ35: 0 | BA35: 0 | BB35: 0 | BC35: 0 | BD35: 0 | BE35: 0 | BF35: 0 | BG35: 0 | BH35: 0 | BI35: 0 | BJ35: 0 | BK35: 0 | BL35: 0 | BM35: 0 | BN35: 0 | BO35: 0 | BP35: 0 | BQ35: 0 | BR35: 0 | BS35: 0 | BT35: 0 | BU35: 0 | BV35: 0 | BW35: 0 | BX35: 0 | BY35: 0 | BZ35: 0 | CA35: 0 | CB35: 0 | CC35: 0 | CD35: 0 | CE35: 0 | CF35: 0 | CG35: 0 | CH35: 0 | CI35: 0 | CJ35: 0 | CK35: 0 | CL35: 0 | CM35: 0 | CN35: 0
A36: 32 | C36: 0 | E36: 0 | I36: 0 | M36: 0 | Q36: 0 | U36: 0 | Y36: 0 | AC36: 0 | AG36: 0 | AK36: 0 | AO36: 0 | AS36: 0 | AW36: 0 | AZ36: 0 | BA36: 0 | BB36: 0 | BC36: 0 | BD36: 0 | BE36: 0 | BF36: 0 | BG36: 0 | BH36: 0 | BI36: 0 | BJ36: 0 | BK36: 0 | BL36: 0 | BM36: 0 | BN36: 0 | BO36: 0 | BP36: 0 | BQ36: 0 | BR36: 0 | BS36: 0 | BT36: 0 | BU36: 0 | BV36: 0 | BW36: 0 | BX36: 0 | BY36: 0 | BZ36: 0 | CA36: 0 | CB36: 0 | CC36: 0 | CD36: 0 | CE36: 0 | CF36: 0 | CG36: 0 | CH36: 0 | CI36: 0 | CJ36: 0 | CK36: 0 | CL36: 0 | CM36: 0 | CN36: 0
A37: 33 | C37: 0 | E37: 0 | I37: 0 | M37: 0 | Q37: 0 | U37: 0 | Y37: 0 | AC37: 0 | AG37: 0 | AK37: 0 | AO37: 0 | AS37: 0 | AW37: 0 | AZ37: 0 | BA37: 0 | BB37: 0 | BC37: 0 | BD37: 0 | BE37: 0 | BF37: 0 | BG37: 0 | BH37: 0 | BI37: 0 | BJ37: 0 | BK37: 0 | BL37: 0 | BM37: 0 | BN37: 0 | BO37: 0 | BP37: 0 | BQ37: 0 | BR37: 0 | BS37: 0 | BT37: 0 | BU37: 0 | BV37: 0 | BW37: 0 | BX37: 0 | BY37: 0 | BZ37: 0 | CA37: 0 | CB37: 0 | CC37: 0 | CD37: 0 | CE37: 0 | CF37: 0 | CG37: 0 | CH37: 0 | CI37: 0 | CJ37: 0 | CK37: 0 | CL37: 0 | CM37: 0 | CN37: 0
A38: 34 | C38: 0 | E38: 0 | I38: 0 | M38: 0 | Q38: 0 | U38: 0 | Y38: 0 | AC38: 0 | AG38: 0 | AK38: 0 | AO38: 0 | AS38: 0 | AW38: 0 | AZ38: 0 | BA38: 0 | BB38: 0 | BC38: 0 | BD38: 0 | BE38: 0 | BF38: 0 | BG38: 0 | BH38: 0 | BI38: 0 | BJ38: 0 | BK38: 0 | BL38: 0 | BM38: 0 | BN38: 0 | BO38: 0 | BP38: 0 | BQ38: 0 | BR38: 0 | BS38: 0 | BT38: 0 | BU38: 0 | BV38: 0 | BW38: 0 | BX38: 0 | BY38: 0 | BZ38: 0 | CA38: 0 | CB38: 0 | CC38: 0 | CD38: 0 | CE38: 0 | CF38: 0 | CG38: 0 | CH38: 0 | CI38: 0 | CJ38: 0 | CK38: 0 | CL38: 0 | CM38: 0 | CN38: 0
A39: 35 | C39: 0 | E39: 0 | I39: 0 | M39: 0 | Q39: 0 | U39: 0 | Y39: 0 | AC39: 0 | AG39: 0 | AK39: 0 | AO39: 0 | AS39: 0 | AW39: 0 | AZ39: 0 | BA39: 0 | BB39: 0 | BC39: 0 | BD39: 0 | BE39: 0 | BF39: 0 | BG39: 0 | BH39: 0 | BI39: 0 | BJ39: 0 | BK39: 0 | BL39: 0 | BM39: 0 | BN39: 0 | BO39: 0 | BP39: 0 | BQ39: 0 | BR39: 0 | BS39: 0 | BT39: 0 | BU39: 0 | BV39: 0 | BW39: 0 | BX39: 0 | BY39: 0 | BZ39: 0 | CA39: 0 | CB39: 0 | CC39: 0 | CD39: 0 | CE39: 0 | CF39: 0 | CG39: 0 | CH39: 0 | CI39: 0 | CJ39: 0 | CK39: 0 | CL39: 0 | CM39: 0 | CN39: 0
A40: 36 | C40: 0 | E40: 0 | I40: 0 | M40: 0 | Q40: 0 | U40: 0 | Y40: 0 | AC40: 0 | AG40: 0 | AK40: 0 | AO40: 0 | AS40: 0 | AW40: 0 | AZ40: 0 | BA40: 0 | BB40: 0 | BC40: 0 | BD40: 0 | BE40: 0 | BF40: 0 | BG40: 0 | BH40: 0 | BI40: 0 | BJ40: 0 | BK40: 0 | BL40: 0 | BM40: 0 | BN40: 0 | BO40: 0 | BP40: 0 | BQ40: 0 | BR40: 0 | BS40: 0 | BT40: 0 | BU40: 0 | BV40: 0 | BW40: 0 | BX40: 0 | BY40: 0 | BZ40: 0 | CA40: 0 | CB40: 0 | CC40: 0 | CD40: 0 | CE40: 0 | CF40: 0 | CG40: 0 | CH40: 0 | CI40: 0 | CJ40: 0 | CK40: 0 | CL40: 0 | CM40: 0 | CN40: 0
A41: 37 | C41: 0 | E41: 0 | I41: 0 | M41: 0 | Q41: 0 | U41: 0 | Y41: 0 | AC41: 0 | AG41: 0 | AK41: 0 | AO41: 0 | AS41: 0 | AW41: 0 | AZ41: 0 | BA41: 0 | BB41: 0 | BC41: 0 | BD41: 0 | BE41: 0 | BF41: 0 | BG41: 0 | BH41: 0 | BI41: 0 | BJ41: 0 | BK41: 0 | BL41: 0 | BM41: 0 | BN41: 0 | BO41: 0 | BP41: 0 | BQ41: 0 | BR41: 0 | BS41: 0 | BT41: 0 | BU41: 0 | BV41: 0 | BW41: 0 | BX41: 0 | BY41: 0 | BZ41: 0 | CA41: 0 | CB41: 0 | CC41: 0 | CD41: 0 | CE41: 0 | CF41: 0 | CG41: 0 | CH41: 0 | CI41: 0 | CJ41: 0 | CK41: 0 | CL41: 0 | CM41: 0 | CN41: 0
A42: 38 | C42: 0 | E42: 0 | I42: 0 | M42: 0 | Q42: 0 | U42: 0 | Y42: 0 | AC42: 0 | AG42: 0 | AK42: 0 | AO42: 0 | AS42: 0 | AW42: 0 | AZ42: 0 | BA42: 0 | BB42: 0 | BC42: 0 | BD42: 0 | BE42: 0 | BF42: 0 | BG42: 0 | BH42: 0 | BI42: 0 | BJ42: 0 | BK42: 0 | BL42: 0 | BM42: 0 | BN42: 0 | BO42: 0 | BP42: 0 | BQ42: 0 | BR42: 0 | BS42: 0 | BT42: 0 | BU42: 0 | BV42: 0 | BW42: 0 | BX42: 0 | BY42: 0 | BZ42: 0 | CA42: 0 | CB42: 0 | CC42: 0 | CD42: 0 | CE42: 0 | CF42: 0 | CG42: 0 | CH42: 0 | CI42: 0 | CJ42: 0 | CK42: 0 | CL42: 0 | CM42: 0 | CN42: 0
A43: 39 | C43: 0 | E43: 0 | I43: 0 | M43: 0 | Q43: 0 | U43: 0 | Y43: 0 | AC43: 0 | AG43: 0 | AK43: 0 | AO43: 0 | AS43: 0 | AW43: 0 | AZ43: 0 | BA43: 0 | BB43: 0 | BC43: 0 | BD43: 0 | BE43: 0 | BF43: 0 | BG43: 0 | BH43: 0 | BI43: 0 | BJ43: 0 | BK43: 0 | BL43: 0 | BM43: 0 | BN43: 0 | BO43: 0 | BP43: 0 | BQ43: 0 | BR43: 0 | BS43: 0 | BT43: 0 | BU43: 0 | BV43: 0 | BW43: 0 | BX43: 0 | BY43: 0 | BZ43: 0 | CA43: 0 | CB43: 0 | CC43: 0 | CD43: 0 | CE43: 0 | CF43: 0 | CG43: 0 | CH43: 0 | CI43: 0 | CJ43: 0 | CK43: 0 | CL43: 0 | CM43: 0 | CN43: 0
A44: 40 | C44: 0 | E44: 0 | I44: 0 | M44: 0 | Q44: 0 | U44: 0 | Y44: 0 | AC44: 0 | AG44: 0 | AK44: 0 | AO44: 0 | AS44: 0 | AW44: 0 | AZ44: 0 | BA44: 0 | BB44: 0 | BC44: 0 | BD44: 0 | BE44: 0 | BF44: 0 | BG44: 0 | BH44: 0 | BI44: 0 | BJ44: 0 | BK44: 0 | BL44: 0 | BM44: 0 | BN44: 0 | BO44: 0 | BP44: 0 | BQ44: 0 | BR44: 0 | BS44: 0 | BT44: 0 | BU44: 0 | BV44: 0 | BW44: 0 | BX44: 0 | BY44: 0 | BZ44: 0 | CA44: 0 | CB44: 0 | CC44: 0 | CD44: 0 | CE44: 0 | CF44: 0 | CG44: 0 | CH44: 0 | CI44: 0 | CJ44: 0 | CK44: 0 | CL44: 0 | CM44: 0 | CN44: 0
A45: 41 | C45: 0 | E45: 0 | I45: 0 | M45: 0 | Q45: 0 | U45: 0 | Y45: 0 | AC45: 0 | AG45: 0 | AK45: 0 | AO45: 0 | AS45: 0 | AW45: 0 | AZ45: 0 | BA45: 0 | BB45: 0 | BC45: 0 | BD45: 0 | BE45: 0 | BF45: 0 | BG45: 0 | BH45: 0 | BI45: 0 | BJ45: 0 | BK45: 0 | BL45: 0 | BM45: 0 | BN45: 0 | BO45: 0 | BP45: 0 | BQ45: 0 | BR45: 0 | BS45: 0 | BT45: 0 | BU45: 0 | BV45: 0 | BW45: 0 | BX45: 0 | BY45: 0 | BZ45: 0 | CA45: 0 | CB45: 0 | CC45: 0 | CD45: 0 | CE45: 0 | CF45: 0 | CG45: 0 | CH45: 0 | CI45: 0 | CJ45: 0 | CK45: 0 | CL45: 0 | CM45: 0 | CN45: 0
A46: 42 | C46: 0 | E46: 0 | I46: 0 | M46: 0 | Q46: 0 | U46: 0 | Y46: 0 | AC46: 0 | AG46: 0 | AK46: 0 | AO46: 0 | AS46: 0 | AW46: 0 | AZ46: 0 | BA46: 0 | BB46: 0 | BC46: 0 | BD46: 0 | BE46: 0 | BF46: 0 | BG46: 0 | BH46: 0 | BI46: 0 | BJ46: 0 | BK46: 0 | BL46: 0 | BM46: 0 | BN46: 0 | BO46: 0 | BP46: 0 | BQ46: 0 | BR46: 0 | BS46: 0 | BT46: 0 | BU46: 0 | BV46: 0 | BW46: 0 | BX46: 0 | BY46: 0 | BZ46: 0 | CA46: 0 | CB46: 0 | CC46: 0 | CD46: 0 | CE46: 0 | CF46: 0 | CG46: 0 | CH46: 0 | CI46: 0 | CJ46: 0 | CK46: 0 | CL46: 0 | CM46: 0 | CN46: 0
A47: 43 | C47: 0 | E47: 0 | I47: 0 | M47: 0 | Q47: 0 | U47: 0 | Y47: 0 | AC47: 0 | AG47: 0 | AK47: 0 | AO47: 0 | AS47: 0 | AW47: 0 | AZ47: 0 | BA47: 0 | BB47: 0 | BC47: 0 | BD47: 0 | BE47: 0 | BF47: 0 | BG47: 0 | BH47: 0 | BI47: 0 | BJ47: 0 | BK47: 0 | BL47: 0 | BM47: 0 | BN47: 0 | BO47: 0 | BP47: 0 | BQ47: 0 | BR47: 0 | BS47: 0 | BT47: 0 | BU47: 0 | BV47: 0 | BW47: 0 | BX47: 0 | BY47: 0 | BZ47: 0 | CA47: 0 | CB47: 0 | CC47: 0 | CD47: 0 | CE47: 0 | CF47: 0 | CG47: 0 | CH47: 0 | CI47: 0 | CJ47: 0 | CK47: 0 | CL47: 0 | CM47: 0 | CN47: 0
A48: 44 | C48: 0 | E48: 0 | I48: 0 | M48: 0 | Q48: 0 | U48: 0 | Y48: 0 | AC48: 0 | AG48: 0 | AK48: 0 | AO48: 0 | AS48: 0 | AW48: 0 | AZ48: 0 | BA48: 0 | BB48: 0 | BC48: 0 | BD48: 0 | BE48: 0 | BF48: 0 | BG48: 0 | BH48: 0 | BI48: 0 | BJ48: 0 | BK48: 0 | BL48: 0 | BM48: 0 | BN48: 0 | BO48: 0 | BP48: 0 | BQ48: 0 | BR48: 0 | BS48: 0 | BT48: 0 | BU48: 0 | BV48: 0 | BW48: 0 | BX48: 0 | BY48: 0 | BZ48: 0 | CA48: 0 | CB48: 0 | CC48: 0 | CD48: 0 | CE48: 0 | CF48: 0 | CG48: 0 | CH48: 0 | CI48: 0 | CJ48: 0 | CK48: 0 | CL48: 0 | CM48: 0 | CN48: 0
A49: 45 | C49: 0 | E49: 0 | I49: 0 | M49: 0 | Q49: 0 | U49: 0 | Y49: 0 | AC49: 0 | AG49: 0 | AK49: 0 | AO49: 0 | AS49: 0 | AW49: 0 | AZ49: 0 | BA49: 0 | BB49: 0 | BC49: 0 | BD49: 0 | BE49: 0 | BF49: 0 | BG49: 0 | BH49: 0 | BI49: 0 | BJ49: 0 | BK49: 0 | BL49: 0 | BM49: 0 | BN49: 0 | BO49: 0 | BP49: 0 | BQ49: 0 | BR49: 0 | BS49: 0 | BT49: 0 | BU49: 0 | BV49: 0 | BW49: 0 | BX49: 0 | BY49: 0 | BZ49: 0 | CA49: 0 | CB49: 0 | CC49: 0 | CD49: 0 | CE49: 0 | CF49: 0 | CG49: 0 | CH49: 0 | CI49: 0 | CJ49: 0 | CK49: 0 | CL49: 0 | CM49: 0 | CN49: 0

Sheet Vazia
